Workbook

Sheet MTK2_UAH (hidden)
A2: Державний та гарантований державою борг України за поточний рік
I4: =VALUAH -> млн. грн
B5: 2015-12-31 | C5: 2016-01-31 | D5: 2016-02-29 | E5: 2016-03-31 | F5: 2016-04-30 | G5: 2016-05-31 | H5: 2016-06-30 | I5: 2016-07-31
A6: Загальна сума державного та гарантованого державою боргу | B6: =B$7+B$47 -> 1572180.159 | C6: 1645619.663 | D6: 1740938.652 | E6: 1710381.007 | F6: 1690002.355 | G6: 1683546.283 | H6: 1668252.938 | I6: 1661360.659
A7: Внутрішній борг | B7: =B$8+B$32 -> 529460.578 | C7: 549606.2367 | D7: 565468.4222 | E7: 553420.678 | F7: 567878.1697 | G7: 572964.1851 | H7: 570690.8484 | I7: 565364.324
A8: Державний борг | B8: =B$9+B$30 -> 508001.1231 | C8: 528455.9892 | D8: 544518.1747 | E8: 532470.4305 | F8: 547313.5796 | G8: 552476.045 | H8: 550279.1583 | I8: 545075.7913
A9: 1. Заборгованість за випущеними цінними паперами на внутрішньому ринку | B9: =SUM(B$10:B$29) -> 505356.0727 | C9: 525810.9387 | D9: 541873.1242 | E9: 529858.4432 | F9: 544701.5923 | G9: 549864.0577 | H9: 547700.2341 | I9: 542496.8672
A10: Казначейські зобов'язання | B10: 98.638 | C10: 99.6 | D10: 99.6 | E10: 99.6 | F10: 99.6 | G10: 0 | H10: 0 | I10: -0.24798204
A11: ОВДП (10 - річні) | B11: 60558.463 | C11: 60558.463 | D11: 60558.463 | E11: 60558.463 | F11: 60558.463 | G11: 60558.463 | H11: 60558.463 | I11: 60558.463
A12: ОВДП (11 - річні) | B12: 38882.981 | C12: 38882.981 | D12: 38882.981 | E12: 38882.981 | F12: 38882.981 | G12: 38882.981 | H12: 38882.981 | I12: 38882.981
A13: ОВДП (12 - місячні) | B13: 8283.710212 | C13: 8781.007312 | D13: 9437.687091 | E13: 9199.030938 | F13: 9443.004207 | G13: 10135.91976 | H13: 6849.757734 | I13: 2704.57
A14: ОВДП (12 - річні) | B14: 1500 | C14: 1500 | D14: 1500 | E14: 1500 | F14: 1500 | G14: 1500 | H14: 1500 | I14: 1500
A15: ОВДП (13 - річні) | B15: 2617.63 | C15: 2617.63 | D15: 2617.63 | E15: 2617.63 | F15: 2617.63 | G15: 2617.63 | H15: 2617.63 | I15: 2617.63
A16: ОВДП (14 - річні) | B16: 3250 | C16: 3250 | D16: 3250 | E16: 3250 | F16: 3250 | G16: 3250 | H16: 3250 | I16: 3250
A17: ОВДП (15 - річні) | B17: 15848.84 | C17: 15848.84 | D17: 15848.84 | E17: 15848.84 | F17: 15848.84 | G17: 15848.84 | H17: 15848.84 | I17: 15848.84
A18: ОВДП (18 - місячні) | B18: 1048.92516 | C18: 13283.27801 | D18: 14299.24562 | E18: 13890.56205 | F18: 12203.20024 | G18: 19013.3675 | H18: 18777.95338 | I18: 18735.48949
A19: ОВДП (2 - річні) | B19: 21910.34234 | C19: 22039.55115 | D19: 34281.42733 | E19: 34176.96595 | F19: 49158.49615 | G19: 52111.63869 | H19: 48930.94395 | I19: 49252.23519
A20: ОВДП (3 - місячні) | B20: 0 | C20: 0 | D20: 0 | E20: 0 | F20: 300 | G20: 300 | H20: 716 | I20: 416
A21: ОВДП (3 - річні) | B21: 43377.23613 | C21: 36369.62179 | D21: 38704.98374 | E21: 29230.92083 | F21: 34196.92528 | G21: 32717.95282 | H21: 34006.99511 | I21: 34859.32385
A22: ОВДП (4 - річні) | B22: 3845.10672 | C22: 4029.28304 | D22: 4333.70224 | E22: 4199.88896 | F22: 4034.84448 | G22: 4031.56032 | H22: 3981.70544 | I22: 3972.71264
A23: ОВДП (5 - річні) | B23: 160233.8121 | C23: 160325.7754 | D23: 159833.6562 | E23: 158098.6525 | F23: 157487.133 | G23: 157475.2296 | H23: 161608.9895 | I23: 161025.665
A24: ОВДП (6 - місячні) | B24: 0 | C24: 50 | D24: 50 | E24: 130 | F24: 830 | G24: 830 | H24: 883.5 | I24: 1086.73
A25: ОВДП (6 - річні) | B25: 27100 | C25: 27100 | D25: 27100 | E25: 27100 | F25: 27100 | G25: 27100 | H25: 25600 | I25: 24100
A26: ОВДП (7 - річні) | B26: 48624.791 | C26: 48624.791 | D26: 48624.791 | E26: 48624.791 | F26: 44739.791 | G26: 41039.791 | H26: 41039.791 | I26: 41039.791
A27: ОВДП (8 - річні) | B27: 31301.198 | C27: 31301.198 | D27: 31301.198 | E27: 31301.198 | F27: 31301.198 | G27: 31301.198 | H27: 31301.198 | I27: 31301.198
A28: ОВДП (9 - місячні) | B28: 0 | C28: 0 | D28: 0 | E28: 0 | F28: 0.567 | G28: 0.567 | H28: 196.567 | I28: 196.567
A29: ОВДП (9 - річні) | B29: 36874.399 | C29: 51148.919 | D29: 51148.919 | E29: 51148.919 | F29: 51148.919 | G29: 51148.919 | H29: 51148.919 | I29: 51148.919
A30: 2. Заборгованість перед банківськими та іншими фінансовими установами | B30: =SUM(B$31:B$31) -> 2645.05045 | C30: 2645.05045 | D30: 2645.05045 | E30: 2611.987319 | F30: 2611.987319 | G30: 2611.987319 | H30: 2578.924189 | I30: 2578.924189
A31: Національний банк України | B31: 2645.05045 | C31: 2645.05045 | D31: 2645.05045 | E31: 2611.987319 | F31: 2611.987319 | G31: 2611.987319 | H31: 2578.924189 | I31: 2578.924189
A32: Гарантований державою борг | B32: =B$33+B$41+B$45 -> 21459.45491 | C32: 21150.24749 | D32: 20950.24749 | E32: 20950.24749 | F32: 20564.59008 | G32: 20488.14008 | H32: 20411.69008 | I32: 20288.53266
A33: 1. Заборгованість за випущеними цінними паперами на внутрішньому ринку | B33: =SUM(B$34:B$40) -> 16400.0116 | C33: 16400.0116 | D33: 16200.0116 | E33: 16200.0116 | F33: 16200.0116 | G33: 16200.0116 | H33: 16200.0116 | I33: 16200.0116
A34: Державні цінні папери | B34: 0.0116 | C34: 0.0116 | D34: 0.0116 | E34: 0.0116 | F34: 0.0116 | G34: 0.0116 | H34: 0.0116 | I34: 0.0116
A35: Облігації ДІУ (10 - річні) | B35: 1000 | C35: 1000 | D35: 1000 | E35: 1000 | F35: 1000 | G35: 1000 | H35: 1000 | I35: 1000
A36: Облігації ДІУ (5 - річні) | B36: 3000 | C36: 3000 | D36: 3000 | E36: 3000 | F36: 3000 | G36: 3000 | H36: 3000 | I36: 3000
A37: Облігації ДІУ (7 - річні) | B37: 3200 | C37: 3200 | D37: 3000 | E37: 3000 | F37: 3000 | G37: 3000 | H37: 3000 | I37: 3000
A38: Облігації НАК "Нафтогаз України" (3 - річні) | B38: 4800 | C38: 4800 | D38: 4800 | E38: 4800 | F38: 4800 | G38: 4800 | H38: 4800 | I38: 4800
A39: Облігації Укравтодору (3 - річні) | B39: 250 | C39: 250 | D39: 250 | E39: 250 | F39: 250 | G39: 250 | H39: 250 | I39: 250
A40: Облігації Укравтодору (5 - річні) | B40: 4150 | C40: 4150 | D40: 4150 | E40: 4150 | F40: 4150 | G40: 4150 | H40: 4150 | I40: 4150
A41: 2. Заборгованість перед банківськими та іншими фінансовими установами | B41: =SUM(B$42:B$44) -> 5058.488656 | C41: 4749.281241 | D41: 4749.281241 | E41: 4749.281241 | F41: 4363.623827 | G41: 4287.173827 | H41: 4210.723827 | I41: 4087.566413
A42: ВАТ "Державний експортно-імпортний банк України" | B42: 1050 | C42: 787.5 | D42: 787.5 | E42: 787.5 | F42: 525 | G42: 525 | H42: 525 | I42: 525
A43: ВАТ "Державний ощадний банк України" | B43: 3859.862318 | C43: 3822.362318 | D43: 3822.362318 | E43: 3822.362318 | F43: 3708.412318 | G43: 3631.962318 | H43: 3555.512318 | I43: 3441.562318
A44: ПАТ АБ "Укргазбанк" | B44: 148.6263374 | C44: 139.4189231 | D44: 139.4189231 | E44: 139.4189231 | F44: 130.2115088 | G44: 130.2115088 | H44: 130.2115088 | I44: 121.0040945
A45: 3. Заборгованість, не віднесена до інших категорій | B45: =SUM(B$46:B$46) -> 0.95465 | C45: 0.95465 | D45: 0.95465 | E45: 0.95465 | F45: 0.95465 | G45: 0.95465 | H45: 0.95465 | I45: 0.95465
A46: Інші кредитори | B46: 0.95465 | C46: 0.95465 | D46: 0.95465 | E46: 0.95465 | F46: 0.95465 | G46: 0.95465 | H46: 0.95465 | I46: 0.95465
A47: Зовнішній борг | B47: =B$48+B$70 -> 1042719.581 | C47: 1096013.426 | D47: 1175470.23 | E47: 1156960.329 | F47: 1122124.185 | G47: 1110582.098 | H47: 1097562.09 | I47: 1095996.335
A48: Державний борг | B48: =B$49+B$56+B$62+B$64+B$68 -> 826270.4782 | C48: 863944.3558 | D48: 939335.3381 | E48: 925203.338 | F48: 901600.1277 | G48: 896072.3185 | H48: 886037.5107 | I48: 882284.9694
A49: 1. Заборгованість за позиками, одержаними від міжнародних фінансових організацій | B49: =SUM(B$50:B$55) -> 337449.2911 | C49: 351875.2138 | D49: 379266.0818 | E49: 372540.702 | F49: 358955.0337 | G49: 355004.8726 | H49: 350589.069 | I49: 348620.0896
A50: Європейське Співтовариство | B50: 57953.11509 | C50: 60604.77254 | D50: 65805.09481 | E50: 65613.41267 | F50: 63221.15839 | G50: 61951.6261 | H50: 60915.4234 | I50: 60777.66968
A51: Європейський банк реконструкції та розвитку | B51: 13990.69907 | C51: 14720.37804 | D51: 15989.42881 | E51: 15932.55976 | F51: 15598.93252 | G51: 14882.86828 | H51: 14856.55122 | I51: 14952.85272
A52: Європейський Інвестиційний Банк | B52: 12530.14512 | C52: 13103.46465 | D52: 14049.92352 | E52: 14008.99783 | F52: 13555.44578 | G52: 13283.2414 | H52: 13061.06595 | I52: 13306.54182
A53: Міжнародний банк реконструкції та розвитку | B53: 124747.1258 | C53: 129575.8776 | D53: 139338.8677 | E53: 134577.1219 | F53: 129362.7866 | G53: 128769.3267 | H53: 127710.1294 | I53: 126362.5217
A54: Міжнародний Валютний Фонд | B54: 128207.6972 | C54: 133849.2284 | D54: 144059.6486 | E54: 142386.2062 | F54: 137195.1882 | G54: 136096.3055 | H54: 134024.6606 | I54: 133199.3133
A55: Фонд чистих технологій (МБРР) | B55: 20.50886997 | C55: 21.49250101 | D55: 23.11831358 | E55: 22.40365658 | F55: 21.522203 | G55: 21.50466328 | H55: 21.23840317 | I55: 21.1903753
A56: 2. Заборгованість за позиками, одержаними від органів управління іноземних держав | B56: =SUM(B$57:B$61) -> 32708.52715 | C56: 34242.40941 | D56: 37526.91602 | E56: 45388.06967 | F56: 44490.38557 | G56: 43633.18039 | H56: 44296.31136 | I56: 43789.7977
A57: Канада | B57: 6914.0144 | C57: 7142.7944 | D57: 7988.748 | E57: 8048.6144 | F57: 8023.2388 | G57: 7720.3 | H57: 7652.8188 | I57: 7537.1588
A58: Німеччина | B58: 5428.187703 | C58: 5676.555618 | D58: 6163.644627 | E58: 6145.690689 | F58: 5921.619813 | G58: 5802.70887 | H58: 5705.65278 | I58: 5692.750056
A59: Росія | B59: 14540.94475 | C59: 15238.34664 | D59: 16391.06011 | E59: 15884.36287 | F59: 15259.40558 | G59: 15246.96978 | H59: 15058.18934 | I59: 15024.13721
A60: США | B60: 216.533956 | C60: 226.9191953 | D60: 244.084628 | E60: 236.5392338 | F60: 227.2327909 | G60: 227.0476054 | H60: 224.2364141 | I60: 223.7293328
A61: Японія | B61: 5608.846349 | C61: 5957.79356 | D61: 6739.378653 | E61: 15072.86248 | F61: 15058.88859 | G61: 14636.15413 | H61: 15655.41402 | I61: 15312.0223
A62: 3. Заборгованість за позиками, одержаними від іноземних комерційних банків, інших іноземних фінансових установ | B62: =SUM(B$63:B$63) -> 1.34076761 | C62: 1.40211472 | D62: 1.52242618 | E62: 1.51799154 | F62: 1.46264582 | G62: 1.4332747 | H62: 1.40930175 | I62: 1.40611476
A63: Chase Manhattan Bank Luxembourg S.A. | B63: 1.34076761 | C63: 1.40211472 | D63: 1.52242618 | E63: 1.51799154 | F63: 1.46264582 | G63: 1.4332747 | H63: 1.40930175 | I63: 1.40611476
A64: 4. Заборгованість за випущеними цінними паперами на зовнішньому ринку | B64: =SUM(B$65:B$67) -> 415269.9327 | C64: 435186.798 | D64: 476649.6904 | E64: 461915.0067 | F64: 454448.8363 | G64: 454078.4789 | H64: 448456.3035 | I64: 447442.1782
A65: ОЗДП 2013 року | B65: 72002.001 | C65: 75455.307 | D65: 81163.167 | E65: 78654.168 | F65: 75559.584 | G65: 75498.006 | H65: 74563.227 | I65: 74394.612
A66: ОЗДП 2014 року | B66: 24000.667 | C66: 25151.769 | D66: 27054.389 | E66: 26218.056 | F66: 25186.528 | G66: 25166.002 | H66: 24854.409 | I66: 24798.204
A67: ОЗДП 2015 року | B67: 319267.2647 | C67: 334579.722 | D67: 368432.1344 | E67: 357042.7827 | F67: 353702.7243 | G67: 353414.4709 | H67: 349038.6675 | I67: 348249.3622
A68: 5. Заборгованість, не віднесена до інших категорій | B68: =SUM(B$69:B$69) -> 40841.38642 | C68: 42638.5325 | D68: 45891.1275 | E68: 45358.04165 | F68: 43704.40948 | G68: 43354.35334 | H68: 42694.41755 | I68: 42431.49784
A69: Міжнародний Валютний Фонд | B69: 40841.38642 | C69: 42638.5325 | D69: 45891.1275 | E69: 45358.04165 | F69: 43704.40948 | G69: 43354.35334 | H69: 42694.41755 | I69: 42431.49784
A70: Гарантований державою борг | B70: =B$71+B$77+B$79+B$89+B$90 -> 216449.1028 | C70: 232069.0702 | D70: 236134.8917 | E70: 231756.9909 | F70: 220524.0574 | G70: 214509.7794 | H70: 211524.5792 | I70: 213711.3659
A71: 1. Заборгованість за позиками, одержаними від міжнародних фінансових організацій | B71: =SUM(B$72:B$76) -> 140833.8031 | C71: 153455.4402 | D71: 162602.1888 | E71: 160529.421 | F71: 154567.9991 | G71: 148901.304 | H71: 146742.1908 | I71: 150013.9723
A72: Європейське співтоватиство з атомної енергії | B72: 456.6383727 | C72: 477.9752917 | D72: 516.8489458 | E72: 451.1063015 | F72: 404.8624853 | G72: 400.2336814 | H72: 394.3282506 | I72: 393.4365237
A73: Європейський банк реконструкції та розвитку | B73: 3050.143293 | C73: 9518.366749 | D73: 7412.360918 | E73: 7137.771852 | F73: 6857.93113 | G73: 1953.246766 | H73: 1789.448053 | I73: 5772.562601
A74: Європейський Інвестиційний Банк | B74: 0 | C74: 0 | D74: 148.880305 | E74: 148.446635 | F74: 143.034295 | G74: 140.16205 | H74: 137.8177 | I74: 275.01208
A75: Міжнародний банк реконструкції та розвитку | B75: 9418.982998 | C75: 9922.714356 | D75: 10801.15939 | E75: 10738.68802 | F75: 10287.64808 | G75: 10629.45264 | H75: 10709.19083 | I75: 10684.97339
A76: Міжнародний Валютний Фонд | B76: 127908.0385 | C76: 133536.3838 | D76: 143722.9393 | E76: 142053.4082 | F76: 136874.5231 | G76: 135778.2088 | H76: 133711.406 | I76: 132887.9877
A77: 2. Заборгованість за позиками, одержаними від органів управління іноземних держав | B77: =SUM(B$78:B$78) -> 4679.066995 | C77: 4290.545786 | D77: 4615.106584 | E77: 4472.43968 | F77: 4296.475193 | G77: 4292.97374 | H77: 4239.820261 | I77: 3625.913538
A78: Канада | B78: 4679.066995 | C78: 4290.545786 | D78: 4615.106584 | E78: 4472.43968 | F78: 4296.475193 | G78: 4292.97374 | H78: 4239.820261 | I78: 3625.913538
A79: 3. Заборгованість за позиками, одержаними від іноземних комерційних банків, інших іноземних фінансових установ | B79: =SUM(B$80:B$88) -> 68227.55055 | C79: 71495.21178 | D79: 65874.00524 | E79: 63746.89454 | F79: 58761.01962 | G79: 58440.15464 | H79: 57710.98927 | I79: 57257.33862
A80: Citibank, N.A. London | B80: 978.6004447 | C80: 1023.376522 | D80: 0 | E80: 0 | F80: 0 | G80: 0 | H80: 0 | I80: 0
A81: Credit Suisse International | B81: 2419.267234 | C81: 2535.298315 | D81: 2727.082411 | E81: 2642.780045 | F81: 0 | G81: 0 | H81: 0 | I81: 0
A82: Deutsche Bank AG London | B82: 0 | C82: 0 | D82: 0 | E82: 0 | F82: 220.4260584 | G82: 378.7919925 | H82: 373.172053 | I82: 372.3281643
A83: UniCredit Bank Austria AG | B83: 1114.482976 | C83: 1165.476388 | D83: 1265.482585 | E83: 1135.616751 | F83: 1094.21235 | G83: 1072.239676 | H83: 1054.305399 | I83: 1051.9212
A84: ВАТ "Газпромбанк" | B84: 12000.3335 | C84: 12575.8845 | D84: 13527.1945 | E84: 13109.028 | F84: 12593.264 | G84: 12583.001 | H84: 12427.2045 | I84: 12399.102
A85: Державний банк розвитку КНР | B85: 1729.968077 | C85: 1812.93951 | D85: 1950.080359 | E85: 1889.797476 | F85: 1652.739967 | G85: 1651.393051 | H85: 1630.946319 | I85: 1627.258146
A86: Експортно-імпортний банк Китаю | B86: 37252.00875 | C86: 39038.66167 | D86: 41991.76363 | E86: 40693.6712 | F86: 39092.61194 | G86: 39060.75305 | H86: 38577.12211 | I86: 38166.74024
A87: Експортно-імпортний банк Кореї | B87: 3914.358784 | C87: 4102.096325 | D87: 4412.401756 | E87: 4276.001071 | F87: 4107.765301 | G87: 3693.975875 | H87: 3648.238891 | I87: 3639.988875
A88: Сбербанк Росії | B88: 8818.530789 | C88: 9241.478553 | D88: 0 | E88: 0 | F88: 0 | G88: 0 | H88: 0 | I88: 0
A89: 4. Заборгованість за випущеними цінними паперами на зовнішньому ринку
A90: 5. Заборгованість, не віднесена до інших категорій | B90: =SUM(B$91:B$91) -> 2708.682131 | C90: 2827.87244 | D90: 3043.591022 | E90: 3008.235706 | F90: 2898.563525 | G90: 2875.347105 | H90: 2831.578848 | I90: 2814.141488
A91: Міжнародний Валютний Фонд | B91: 2708.682131 | C91: 2827.87244 | D91: 3043.591022 | E91: 3008.235706 | F91: 2898.563525 | G91: 2875.347105 | H91: 2831.578848 | I91: 2814.141488

Sheet MTK2_USD (hidden)
A2: Державний та гарантований державою борг України за поточний рік
I4: =VALUSD -> млн. дол. США
B5: 2015-12-31 | C5: 2016-01-31 | D5: 2016-02-29 | E5: 2016-03-31 | F5: 2016-04-30 | G5: 2016-05-31 | H5: 2016-06-30 | I5: 2016-07-31
A6: Загальна сума державного та гарантованого державою боргу | B6: =B$7+B$47 -> 65505.68611 | C6: 65427.5913 | D6: 64349.58306 | E6: 65236.75923 | F6: 67099.45709 | G6: 66897.6456 | H6: 67121.00611 | I6: 66995.20092
A7: Внутрішній борг | B7: =B$8+B$32 -> 22060.24433 | C7: 21851.59369 | D7: 20901.17142 | E7: 21108.37958 | F7: 22546.90165 | G7: 22767.39011 | H7: 22961.35259 | I7: 22798.59961
A8: Державний борг | B8: =B$9+B$30 -> 21166.12522 | C8: 21010.68872 | D8: 20126.79624 | E8: 20309.30251 | F8: 21730.40999 | G8: 21953.27033 | H8: 22140.10232 | I8: 21980.45436
A9: 1. Заборгованість за випущеними цінними паперами на внутрішньому ринку | B9: =SUM(B$10:B$29) -> 21055.91785 | C9: 20905.52512 | D9: 20029.02835 | E9: 20209.677 | F9: 21626.70426 | G9: 21849.48001 | H9: 22036.34108 | I9: 21876.45795
A10: Казначейські зобов'язання | B10: 4.10980245 | C10: 3.95996003 | D10: 3.6814729 | E10: 3.79890866 | F10: 3.95449504 | G10: 0 | H10: 0 | I10: -0.01
A11: ОВДП (10 - річні) | B11: 2523.199168 | C11: 2407.721819 | D11: 2238.396994 | E11: 2309.799895 | F11: 2404.39901 | G11: 2406.360096 | H11: 2436.527982 | I11: 2442.05036
A12: ОВДП (11 - річні) | B12: 1620.079184 | C12: 1545.934244 | D12: 1437.21527 | E12: 1483.061177 | F12: 1543.800757 | G12: 1545.059919 | H12: 1564.429917 | I12: 1567.975689
A13: ОВДП (12 - місячні) | B13: 345.145 | C13: 349.1208635 | D13: 348.8412579 | E13: 350.866248 | F13: 374.9228241 | G13: 402.7624158 | H13: 275.595277 | I13: 109.0631402
A14: ОВДП (12 - річні) | B14: 62.49826307 | C14: 59.6379523 | D14: 55.44386902 | E14: 57.21247983 | F14: 59.55564816 | G14: 59.60422319 | H14: 60.35146521 | I14: 60.48825149
A15: ОВДП (13 - річні) | B15: 109.0648856 | C15: 104.0733954 | D15: 96.75435657 | E15: 99.84073571 | F15: 103.9297675 | G15: 104.0145352 | H15: 105.3185373 | I15: 105.5572412
A16: ОВДП (14 - річні) | B16: 135.4129033 | C16: 129.2155633 | D16: 120.1283829 | E16: 123.960373 | F16: 129.0372377 | G16: 129.1424836 | H16: 130.761508 | I16: 131.0578782
A17: ОВДП (15 - річні) | B17: 660.3499811 | C17: 630.1282427 | D17: 585.814006 | E17: 604.5009592 | F17: 629.2586259 | G17: 629.7718644 | H17: 637.6671439 | I17: 639.1124131
A18: ОВДП (18 - місячні) | B18: 43.70400039 | C18: 528.1250004 | D18: 528.5370007 | E18: 529.8090006 | F18: 484.513 | G18: 755.518 | H18: 755.518 | I18: 755.518
A19: ОВДП (2 - річні) | B19: 912.9055596 | C19: 876.2624669 | D19: 1267.129978 | E19: 1303.565984 | F19: 1951.7774 | G19: 2070.715829 | H19: 1968.702774 | I19: 1986.121059
A20: ОВДП (3 - місячні) | B20: 0 | C20: 0 | D20: 0 | E20: 0 | F20: 11.91112963 | G20: 11.92084464 | H20: 28.80776606 | I20: 16.77540841
A21: ОВДП (3 - річні) | B21: 1807.33461 | C21: 1446.006513 | D21: 1430.636033 | E21: 1114.915645 | F21: 1357.7467 | G21: 1300.085441 | H21: 1368.247988 | I21: 1405.719699
A22: ОВДП (4 - річні) | B22: 160.2083275 | C22: 160.1987932 | D22: 160.1848129 | E22: 160.1907083 | F22: 160.1985188 | G22: 160.1986807 | H22: 160.2011715 | I22: 160.2016275
A23: ОВДП (5 - річні) | B23: 6676.223294 | C23: 6374.333965 | D23: 5907.864199 | E23: 6030.143977 | F23: 6252.832187 | G23: 6257.459154 | H23: 6502.226205 | I23: 6493.440612
A24: ОВДП (6 - місячні) | B24: 0 | C24: 1.98793174 | D24: 1.84812897 | E24: 4.95841492 | F24: 32.95412532 | G24: 32.9810035 | H24: 35.54701302 | I24: 43.8229317
A25: ОВДП (6 - річні) | B25: 1129.135286 | C25: 1077.459005 | D25: 1001.6859 | E25: 1033.638802 | F25: 1075.972043 | G25: 1076.849632 | H25: 1029.99834 | I25: 971.8445739
A26: ОВДП (7 - річні) | B26: 2025.976653 | C26: 1933.255311 | D26: 1797.297695 | E26: 1854.629916 | F26: 1776.338168 | G26: 1630.763242 | H26: 1651.207679 | I26: 1654.950133
A27: ОВДП (8 - річні) | B27: 1304.180338 | C27: 1244.492902 | D27: 1156.973015 | E27: 1193.879439 | F27: 1242.775423 | G27: 1243.789061 | H27: 1259.382108 | I27: 1262.236491
A28: ОВДП (9 - місячні) | B28: 0 | C28: 0 | D28: 0 | E28: 0 | F28: 0.02251204 | G28: 0.0225304 | H28: 7.90873764 | I28: 7.92666275
A29: ОВДП (9 - річні) | B29: 1536.390593 | C29: 2033.611194 | D29: 1890.595977 | E29: 1950.904331 | F29: 2030.804683 | G29: 2032.461056 | H29: 2057.94147 | I29: 2062.605784
A30: 2. Заборгованість перед банківськими та іншими фінансовими установами | B30: =SUM(B$31:B$31) -> 110.2073726 | C30: 105.1635951 | D30: 97.76788713 | E30: 99.62551455 | F30: 103.7057319 | G30: 103.7903168 | H30: 103.7612356 | I30: 103.9964099
A31: Національний банк України | B31: 110.2073726 | C31: 105.1635951 | D31: 97.76788713 | E31: 99.62551455 | F31: 103.7057319 | G31: 103.7903168 | H31: 103.7612356 | I31: 103.9964099
A32: Гарантований державою борг | B32: =B$33+B$41+B$45 -> 894.1191053 | C32: 840.9049674 | D32: 774.3751851 | E32: 799.0770747 | F32: 816.4916608 | G32: 814.1197826 | H32: 821.250269 | I32: 818.145244
A33: 1. Заборгованість за випущеними цінними паперами на внутрішньому ринку | B33: =SUM(B$34:B$40) -> 683.3148262 | C33: 652.0420731 | D33: 598.7942141 | E33: 617.8952246 | F33: 643.2014607 | G33: 643.7260714 | H33: 651.796291 | I33: 653.2735838
A34: Державні цінні папери | B34: 0.00048332 | C34: 0.0004612 | D34: 0.00042877 | E34: 0.00044244 | F34: 0.00046056 | G34: 0.00046094 | H34: 0.00046672 | I34: 0.00046778
A35: Облігації ДІУ (10 - річні) | B35: 41.66550871 | C35: 39.75863487 | D35: 36.96257934 | E35: 38.14165322 | F35: 39.70376544 | G35: 39.73614879 | H35: 40.23431014 | I35: 40.32550099
A36: Облігації ДІУ (5 - річні) | B36: 124.9965261 | C36: 119.2759046 | D36: 110.887738 | E36: 114.4249597 | F36: 119.1112963 | G36: 119.2084464 | H36: 120.7029304 | I36: 120.976503
A37: Облігації ДІУ (7 - річні) | B37: 133.3296278 | C37: 127.2276316 | D37: 110.887738 | E37: 114.4249597 | F37: 119.1112963 | G37: 119.2084464 | H37: 120.7029304 | I37: 120.976503
A38: Облігації НАК "Нафтогаз України" (3 - річні) | B38: 199.9944418 | C38: 190.8414474 | D38: 177.4203808 | E38: 183.0799354 | F38: 190.5780741 | G38: 190.7335142 | H38: 193.1246887 | I38: 193.5624048
A39: Облігації Укравтодору (3 - річні) | B39: 10.41637718 | C39: 9.93965872 | D39: 9.24064484 | E39: 9.5354133 | F39: 9.92594136 | G39: 9.9340372 | H39: 10.05857753 | I39: 10.08137525
A40: Облігації Укравтодору (5 - річні) | B40: 172.9118612 | C40: 164.9983347 | D40: 153.3947043 | E40: 158.2878609 | F40: 164.7706266 | G40: 164.9050175 | H40: 166.9723871 | I40: 167.3508291
A41: 2. Заборгованість перед банківськими та іншими фінансовими установами | B41: =SUM(B$42:B$44) -> 210.7645032 | C41: 188.8249388 | D41: 175.5456847 | E41: 181.1454381 | F41: 173.2522969 | G41: 170.3557771 | H41: 169.4155684 | I41: 164.8331634
A42: ВАТ "Державний експортно-імпортний банк України" | B42: 43.74878415 | C42: 31.30992496 | D42: 29.10803123 | E42: 30.03655191 | F42: 20.84447686 | G42: 20.86147812 | H42: 21.12301282 | I42: 21.17088802
A43: ВАТ "Державний ощадний банк України" | B43: 160.8231271 | C43: 151.9719078 | D43: 141.2843705 | E43: 145.791218 | F43: 147.2379328 | G43: 144.3201951 | H43: 143.0535853 | I43: 138.7827247
A44: ПАТ АБ "Укргазбанк" | B44: 6.19259196 | C44: 5.54310606 | D44: 5.153283 | E44: 5.31766822 | F44: 5.1698872 | G44: 5.17410389 | H44: 5.23897023 | I44: 4.87955072
A45: 3. Заборгованість, не віднесена до інших категорій | B45: =SUM(B$46:B$46) -> 0.03977598 | C45: 0.03795558 | D45: 0.03528633 | E45: 0.03641193 | F45: 0.0379032 | G45: 0.03793411 | H45: 0.03840968 | I45: 0.03849674
A46: Інші кредитори | B46: 0.03977598 | C46: 0.03795558 | D46: 0.03528633 | E46: 0.03641193 | F46: 0.0379032 | G46: 0.03793411 | H46: 0.03840968 | I46: 0.03849674
A47: Зовнішній борг | B47: =B$48+B$70 -> 43445.44179 | C47: 43575.99762 | D47: 43448.41164 | E47: 44128.37965 | F47: 44552.55544 | G47: 44130.25549 | H47: 44159.65352 | I47: 44196.60131
A48: Державний борг | B48: =B$49+B$56+B$62+B$64+B$68 -> 34426.97981 | C48: 34349.24819 | D48: 34720.25697 | E48: 35288.78487 | F48: 35796.91999 | G48: 35606.46298 | H48: 35649.108 | I48: 35578.58341
A49: 1. Заборгованість за позиками, одержаними від міжнародних фінансових організацій | B49: =SUM(B$50:B$55) -> 14059.99638 | C49: 13990.07815 | D49: 14018.65264 | E49: 14209.31827 | F49: 14251.86646 | G49: 14106.52644 | H49: 14105.70933 | I49: 14058.27977
A50: Європейське Співтовариство | B50: 2414.646022 | C50: 2409.563023 | D50: 2432.326038 | E50: 2502.604032 | F50: 2510.118044 | G50: 2461.719033 | H50: 2450.890037 | I50: 2450.889979
A51: Європейський банк реконструкції та розвитку | B51: 582.929594 | C51: 585.2621355 | D51: 591.0105311 | E51: 607.6941691 | F51: 619.3363581 | G51: 591.3878686 | H51: 597.7430895 | I51: 602.9812771
A52: Європейський Інвестиційний Банк | B52: 522.0748706 | C52: 520.9758664 | D52: 519.321413 | E52: 534.326337 | F52: 538.2022396 | G52: 527.8248567 | H52: 525.502978 | I52: 536.5929654
A53: Міжнародний банк реконструкції та розвитку | B53: 5197.652457 | C53: 5151.760007 | D53: 5150.323954 | E53: 5132.993916 | F53: 5136.189738 | G53: 5116.797125 | H53: 5138.328953 | I53: 5095.631994
A54: Міжнародний Валютний Фонд | B54: 5341.838923 | C54: 5321.662601 | D54: 5324.816192 | E54: 5430.845298 | F54: 5447.16557 | G54: 5407.943046 | H54: 5392.389762 | I54: 5371.329039
A55: Фонд чистих технологій (МБРР) | B55: 0.8545125 | C55: 0.8545125 | D55: 0.8545125 | E55: 0.8545125 | F55: 0.8545125 | G55: 0.8545125 | H55: 0.8545125 | I55: 0.8545125
A56: 2. Заборгованість за позиками, одержаними від органів управління іноземних держав | B56: =SUM(B$57:B$61) -> 1362.817423 | C56: 1361.431453 | D56: 1387.091611 | E56: 1731.176013 | F56: 1766.435833 | G56: 1733.814548 | H56: 1782.231529 | I56: 1765.84553
A57: Канада | B57: 288.0759272 | C57: 283.9877545 | D57: 295.2847318 | E57: 306.9874593 | F57: 318.5527914 | G57: 306.7749895 | H57: 307.905885 | I57: 303.9397047
A58: Німеччина | B58: 226.168202 | C58: 225.6921021 | D58: 227.8242036 | E58: 234.406803 | F58: 235.1106041 | G58: 230.5773031 | H58: 229.5630035 | I58: 229.562998
A59: Росія | B59: 605.85586 | C59: 605.85586 | D59: 605.85586 | E59: 605.85586 | F59: 605.85586 | G59: 605.85586 | H59: 605.85586 | I59: 605.85586
A60: США | B60: 9.02199743 | C60: 9.02199743 | D60: 9.02199743 | E60: 9.02199743 | F60: 9.02199743 | G60: 9.02199743 | H60: 9.02199743 | I60: 9.02199743
A61: Японія | B61: 233.6954364 | C61: 236.8737388 | D61: 249.1048182 | E61: 574.9038937 | F61: 597.8945803 | G61: 581.5843982 | H61: 629.8847832 | I61: 617.4649704
A62: 3. Заборгованість за позиками, одержаними від іноземних комерційних банків, інших іноземних фінансових установ | B62: =SUM(B$63:B$63) -> 0.05586376 | C62: 0.05574617 | D62: 0.0562728 | E62: 0.05789871 | F62: 0.05807255 | G62: 0.05695282 | H62: 0.05670228 | I62: 0.05670228
A63: Chase Manhattan Bank Luxembourg S.A. | B63: 0.05586376 | C63: 0.05574617 | D63: 0.0562728 | E63: 0.05789871 | F63: 0.05807255 | G63: 0.05695282 | H63: 0.05670228 | I63: 0.05670228
A64: 4. Заборгованість за випущеними цінними паперами на зовнішньому ринку | B64: =SUM(B$65:B$67) -> 17302.433 | C64: 17302.433 | D64: 17618.202 | E64: 17618.202 | F64: 18043.33 | G64: 18043.33 | H64: 18043.33 | I64: 18043.33
A65: ОЗДП 2013 року | B65: 3000 | C65: 3000 | D65: 3000 | E65: 3000 | F65: 3000 | G65: 3000 | H65: 3000 | I65: 3000
A66: ОЗДП 2014 року | B66: 1000 | C66: 1000 | D66: 1000 | E66: 1000 | F66: 1000 | G66: 1000 | H66: 1000 | I66: 1000
A67: ОЗДП 2015 року | B67: 13302.433 | C67: 13302.433 | D67: 13618.202 | E67: 13618.202 | F67: 14043.33 | G67: 14043.33 | H67: 14043.33 | I67: 14043.33
A68: 5. Заборгованість, не віднесена до інших категорій | B68: =SUM(B$69:B$69) -> 1701.677142 | C68: 1695.249845 | D68: 1696.254441 | E68: 1730.030695 | F68: 1735.229623 | G68: 1722.735035 | H68: 1717.780437 | I68: 1711.071408
A69: Міжнародний Валютний Фонд | B69: 1701.677142 | C69: 1695.249845 | D69: 1696.254441 | E69: 1730.030695 | F69: 1735.229623 | G69: 1722.735035 | H69: 1717.780437 | I69: 1711.071408
A70: Гарантований державою борг | B70: =B$71+B$77+B$79+B$89+B$90 -> 9018.461978 | C70: 9226.749428 | D70: 8728.154669 | E70: 8839.594777 | F70: 8755.635449 | G70: 8523.792514 | H70: 8510.545521 | I70: 8618.017899
A71: 1. Заборгованість за позиками, одержаними від міжнародних фінансових організацій | B71: =SUM(B$72:B$76) -> 5867.912051 | C71: 6101.178817 | D71: 6010.196306 | E71: 6122.857505 | F71: 6136.93158 | G71: 5916.76437 | H71: 5904.070816 | I71: 6049.388589
A72: Європейське співтоватиство з атомної енергії | B72: 19.0260701 | C72: 19.0036451 | D72: 19.10407017 | E72: 17.20594011 | F72: 16.07456515 | G72: 15.90374512 | H72: 15.86552513 | I72: 15.86552493
A73: Європейський банк реконструкції та розвитку | B73: 127.085772 | C73: 378.4372681 | D73: 273.9799786 | E73: 272.2464187 | F73: 272.285689 | G73: 77.61450412 | H73: 71.99720794 | I73: 232.7814789
A74: Європейський Інвестиційний Банк | B74: 0 | C74: 0 | D74: 5.50300009 | E74: 5.66200007 | F74: 5.6790001 | G74: 5.56950007 | H74: 5.54500008 | I74: 11.0899999
A75: Міжнародний банк реконструкції та розвитку | B75: 392.4467181 | C75: 394.513577 | D75: 399.2387109 | E75: 409.5913143 | F75: 408.4583665 | G75: 422.3735117 | H75: 430.876905 | I75: 430.876905
A76: Міжнародний Валютний Фонд | B76: 5329.353491 | C76: 5309.224327 | D76: 5312.370546 | E76: 5418.151832 | F76: 5434.433959 | G76: 5395.303109 | H76: 5379.786178 | I76: 5358.77468
A77: 2. Заборгованість за позиками, одержаними від органів управління іноземних держав | B77: =SUM(B$78:B$78) -> 194.9557066 | C77: 170.5862433 | D77: 170.5862433 | E77: 170.5862433 | F77: 170.5862433 | G77: 170.5862433 | H77: 170.5862433 | I77: 146.21678
A78: Канада | B78: 194.9557066 | C78: 170.5862433 | D78: 170.5862433 | E78: 170.5862433 | F78: 170.5862433 | G78: 170.5862433 | H78: 170.5862433 | I78: 146.21678
A79: 3. Заборгованість за позиками, одержаними від іноземних комерційних банків, інших іноземних фінансових установ | B79: =SUM(B$80:B$88) -> 2842.735602 | C79: 2842.55202 | D79: 2434.873145 | E79: 2431.411945 | F79: 2333.03374 | G79: 2322.18668 | H79: 2321.961841 | I79: 2308.930865
A80: Citibank, N.A. London | B80: 40.77388535 | C80: 40.68805347 | D80: 0 | E80: 0 | F80: 0 | G80: 0 | H80: 0 | I80: 0
A81: Credit Suisse International | B81: 100.8 | C81: 100.8 | D81: 100.8 | E81: 100.8 | F81: 0 | G81: 0 | H81: 0 | I81: 0
A82: Deutsche Bank AG London | B82: 0 | C82: 0 | D82: 0 | E82: 0 | F82: 8.75174452 | G82: 15.05173498 | H82: 15.01432012 | I82: 15.01431976
A83: UniCredit Bank Austria AG | B83: 46.43550014 | C83: 46.33775017 | D83: 46.77550046 | E83: 43.3143003 | F83: 43.44435049 | G83: 42.60667531 | H83: 42.41925039 | I83: 42.41924938
A84: ВАТ "Газпромбанк" | B84: 500 | C84: 500 | D84: 500 | E84: 500 | F84: 500 | G84: 500 | H84: 500 | I84: 500
A85: Державний банк розвитку КНР | B85: 72.08 | C85: 72.08 | D85: 72.08 | E85: 72.08 | F85: 65.62 | G85: 65.62 | H85: 65.62 | I85: 65.62
A86: Експортно-імпортний банк Китаю | B86: 1552.123895 | C86: 1552.123895 | D86: 1552.123895 | E86: 1552.123895 | F86: 1552.123895 | G86: 1552.123895 | H86: 1552.123895 | I86: 1539.092921
A87: Експортно-імпортний банк Кореї | B87: 163.09375 | C87: 163.09375 | D87: 163.09375 | E87: 163.09375 | F87: 163.09375 | G87: 146.784375 | H87: 146.784375 | I87: 146.784375
A88: Сбербанк Росії | B88: 367.4285714 | C88: 367.4285714 | D88: 0 | E88: 0 | F88: 0 | G88: 0 | H88: 0 | I88: 0
A89: 4. Заборгованість за випущеними цінними паперами на зовнішньому ринку
A90: 5. Заборгованість, не віднесена до інших категорій | B90: =SUM(B$91:B$91) -> 112.8586189 | C90: 112.4323478 | D90: 112.4989746 | E90: 114.7390831 | F90: 115.0838863 | G90: 114.2552204 | H90: 113.9266215 | I90: 113.4816654
A91: Міжнародний Валютний Фонд | B91: 112.8586189 | C91: 112.4323478 | D91: 112.4989746 | E91: 114.7390831 | F91: 115.0838863 | G91: 114.2552204 | H91: 113.9266215 | I91: 113.4816654

Sheet DKT2
A2: ="Державний та гарантований державою борг України за станом на " & TEXT(DREPORTDATE,"dd.MM.yyyy") -> Державний та гарантований державою борг України за станом на 31.07.2016
A3: (за ознакою умовності)
D5: =VALVAL -> млн. одиниць
B6: дол.США | C6: грн. | D6: %
A7: Загальна сума державного та гарантованого державою боргу | B7: =B$8+B$54 -> 66995.21092 | C7: =C$8+C$54 -> 1661360.907 | D7: 0.999999
A8: Державний борг | B8: =B$9+B$32 -> 57559.04777 | C8: =C$9+C$32 -> 1427361.009 | D8: =D$9+D$32 -> 0.859151
A9: Внутрішній борг | B9: =B$10+B$30 -> 21980.46436 | C9: =C$10+C$30 -> 545076.0393 | D9: =D$10+D$30 -> 0.328089
A10: 1. Заборгованість за випущеними цінними паперами на внутрішньому ринку | B10: =SUM(B$11:B$29) -> 21876.46795 | C10: =SUM(C$11:C$29) -> 542497.1151 | D10: 0.326537
A11: ОВДП (10 - річні) | B11: 2442.05036 | C11: 60558.463 | D11: 0.036451
A12: ОВДП (11 - річні) | B12: 1567.975689 | C12: 38882.981 | D12: 0.023404
A13: ОВДП (12 - місячні) | B13: 109.0631402 | C13: 2704.57 | D13: 0.001628
A14: ОВДП (12 - річні) | B14: 60.48825149 | C14: 1500 | D14: 0.000903
A15: ОВДП (13 - річні) | B15: 105.5572412 | C15: 2617.63 | D15: 0.001576
A16: ОВДП (14 - річні) | B16: 131.0578782 | C16: 3250 | D16: 0.001956
A17: ОВДП (15 - річні) | B17: 639.1124131 | C17: 15848.84 | D17: 0.00954
A18: ОВДП (18 - місячні) | B18: 755.518 | C18: 18735.48949 | D18: 0.011277
A19: ОВДП (2 - річні) | B19: 1986.121059 | C19: 49252.23519 | D19: 0.029646
A20: ОВДП (3 - місячні) | B20: 16.77540841 | C20: 416 | D20: 0.00025
A21: ОВДП (3 - річні) | B21: 1405.719699 | C21: 34859.32385 | D21: 0.020982
A22: ОВДП (4 - річні) | B22: 160.2016275 | C22: 3972.71264 | D22: 0.002391
A23: ОВДП (5 - річні) | B23: 6493.440612 | C23: 161025.665 | D23: 0.096924
A24: ОВДП (6 - місячні) | B24: 43.8229317 | C24: 1086.73 | D24: 0.000654
A25: ОВДП (6 - річні) | B25: 971.8445739 | C25: 24100 | D25: 0.014506
A26: ОВДП (7 - річні) | B26: 1654.950133 | C26: 41039.791 | D26: 0.024703
A27: ОВДП (8 - річні) | B27: 1262.236491 | C27: 31301.198 | D27: 0.018841
A28: ОВДП (9 - місячні) | B28: 7.92666275 | C28: 196.567 | D28: 0.000118
A29: ОВДП (9 - річні) | B29: 2062.605784 | C29: 51148.919 | D29: 0.030787
A30: 2. Заборгованість перед банківськими та іншими фінансовими установами | B30: =SUM(B$31:B$31) -> 103.9964099 | C30: 2578.924189 | D30: 0.001552
A31: Національний банк України | B31: 103.9964099 | C31: 2578.924189 | D31: 0.001552
A32: Зовнішній борг | B32: =B$33+B$40+B$46+B$48+B$52 -> 35578.58341 | C32: 882284.9694 | D32: 0.531062
A33: 1. Заборгованість за позиками, одержаними від міжнародних фінансових організацій | B33: =SUM(B$34:B$39) -> 14058.27977 | C33: 348620.0896 | D33: 0.20984
A34: Європейське Співтовариство | B34: 2450.889979 | C34: 60777.66968 | D34: 0.036583
A35: Європейський банк реконструкції та розвитку | B35: 602.9812771 | C35: 14952.85272 | D35: 0.009
A36: Європейський Інвестиційний Банк | B36: 536.5929654 | C36: 13306.54182 | D36: 0.008009
A37: Міжнародний банк реконструкції та розвитку | B37: 5095.631994 | C37: 126362.5217 | D37: 0.07606
A38: Міжнародний Валютний Фонд | B38: 5371.329039 | C38: 133199.3133 | D38: 0.080175
A39: Фонд чистих технологій (МБРР) | B39: 0.8545125 | C39: 21.1903753 | D39: 1.3e-05
A40: 2. Заборгованість за позиками, одержаними від органів управління іноземних держав | B40: =SUM(B$41:B$45) -> 1765.84553 | C40: 43789.7977 | D40: 0.026359
A41: Канада | B41: 303.9397047 | C41: 7537.1588 | D41: 0.004537
A42: Німеччина | B42: 229.562998 | C42: 5692.750056 | D42: 0.003427
A43: Росія | B43: 605.85586 | C43: 15024.13721 | D43: 0.009043
A44: США | B44: 9.02199743 | C44: 223.7293328 | D44: 0.000135
A45: Японія | B45: 617.4649704 | C45: 15312.0223 | D45: 0.009217
A46: 3. Заборгованість за позиками, одержаними від іноземних комерційних банків, інших іноземних фінансових установ | B46: =SUM(B$47:B$47) -> 0.05670228 | C46: 1.40611476 | D46: 1e-06
A47: Chase Manhattan Bank Luxembourg S.A. | B47: 0.05670228 | C47: 1.40611476 | D47: 1e-06
A48: 4. Заборгованість за випущеними цінними паперами на зовнішньому ринку | B48: =SUM(B$49:B$51) -> 18043.33 | C48: 447442.1782 | D48: 0.269322
A49: ОЗДП 2013 року | B49: 3000 | C49: 74394.612 | D49: 0.044779
A50: ОЗДП 2014 року | B50: 1000 | C50: 24798.204 | D50: 0.014926
A51: ОЗДП 2015 року | B51: 14043.33 | C51: 348249.3622 | D51: 0.209617
A52: 5. Заборгованість, не віднесена до інших категорій | B52: =SUM(B$53:B$53) -> 1711.071408 | C52: 42431.49784 | D52: 0.02554
A53: Міжнародний Валютний Фонд | B53: 1711.071408 | C53: 42431.49784 | D53: 0.02554
A54: Гарантований державою борг | B54: =B$55+B$70 -> 9436.163143 | C54: 233999.8986 | D54: 0.140848
A55: Внутрішній борг | B55: =B$56+B$64+B$68 -> 818.145244 | C55: 20288.53266 | D55: 0.012213
A56: 1. Заборгованість за випущеними цінними паперами на внутрішньому ринку | B56: =SUM(B$57:B$63) -> 653.2735838 | C56: 16200.0116 | D56: 0.009751
A57: Державні цінні папери | B57: 0.00046778 | C57: 0.0116 | D57: 0
A58: Облігації ДІУ (10 - річні) | B58: 40.32550099 | C58: 1000 | D58: 0.000602
A59: Облігації ДІУ (5 - річні) | B59: 120.976503 | C59: 3000 | D59: 0.001806
A60: Облігації ДІУ (7 - річні) | B60: 120.976503 | C60: 3000 | D60: 0.001806
A61: Облігації НАК "Нафтогаз України" (3 - річні) | B61: 193.5624048 | C61: 4800 | D61: 0.002889
A62: Облігації Укравтодору (3 - річні) | B62: 10.08137525 | C62: 250 | D62: 0.00015
A63: Облігації Укравтодору (5 - річні) | B63: 167.3508291 | C63: 4150 | D63: 0.002498
A64: 2. Заборгованість перед банківськими та іншими фінансовими установами | B64: =SUM(B$65:B$67) -> 164.8331634 | C64: 4087.566413 | D64: 0.002461
A65: ВАТ "Державний експортно-імпортний банк України" | B65: 21.17088802 | C65: 525 | D65: 0.000316
A66: ВАТ "Державний ощадний банк України" | B66: 138.7827247 | C66: 3441.562318 | D66: 0.002072
A67: ПАТ АБ "Укргазбанк" | B67: 4.87955072 | C67: 121.0040945 | D67: 7.3e-05
A68: 3. Заборгованість, не віднесена до інших категорій | B68: =SUM(B$69:B$69) -> 0.03849674 | C68: 0.95465 | D68: 1e-06
A69: Інші кредитори | B69: 0.03849674 | C69: 0.95465 | D69: 1e-06
A70: Зовнішній борг | B70: =B$71+B$77+B$79+B$86+B$87 -> 8618.017899 | C70: 213711.3659 | D70: 0.128635
A71: 1. Заборгованість за позиками, одержаними від міжнародних фінансових організацій | B71: =SUM(B$72:B$76) -> 6049.388589 | C71: 150013.9723 | D71: 0.090296
A72: Європейське співтоватиство з атомної енергії | B72: 15.86552493 | C72: 393.4365237 | D72: 0.000237
A73: Європейський банк реконструкції та розвитку | B73: 232.7814789 | C73: 5772.562601 | D73: 0.003475
A74: Європейський Інвестиційний Банк | B74: 11.0899999 | C74: 275.01208 | D74: 0.000166
A75: Міжнародний банк реконструкції та розвитку | B75: 430.876905 | C75: 10684.97339 | D75: 0.006431
A76: Міжнародний Валютний Фонд | B76: 5358.77468 | C76: 132887.9877 | D76: 0.079987
A77: 2. Заборгованість за позиками, одержаними від органів управління іноземних держав | B77: =SUM(B$78:B$78) -> 146.21678 | C77: 3625.913538 | D77: 0.002182
A78: Канада | B78: 146.21678 | C78: 3625.913538 | D78: 0.002182
A79: 3. Заборгованість за позиками, одержаними від іноземних комерційних банків, інших іноземних фінансових установ | B79: =SUM(B$80:B$85) -> 2308.930865 | C79: 57257.33862 | D79: 0.034463
A80: Deutsche Bank AG London | B80: 15.01431976 | C80: 372.3281643 | D80: 0.000224
A81: UniCredit Bank Austria AG | B81: 42.41924938 | C81: 1051.9212 | D81: 0.000633
A82: ВАТ "Газпромбанк" | B82: 500 | C82: 12399.102 | D82: 0.007463
A83: Державний банк розвитку КНР | B83: 65.62 | C83: 1627.258146 | D83: 0.000979
A84: Експортно-імпортний банк Китаю | B84: 1539.092921 | C84: 38166.74024 | D84: 0.022973
A85: Експортно-імпортний банк Кореї | B85: 146.784375 | C85: 3639.988875 | D85: 0.002191
A86: 4. Заборгованість за випущеними цінними паперами на зовнішньому ринку
A87: 5. Заборгованість, не віднесена до інших категорій | B87: =SUM(B$88:B$88) -> 113.4816654 | C87: 2814.141488 | D87: 0.001694
A88: Міжнародний Валютний Фонд | B88: 113.4816654 | C88: 2814.141488 | D88: 0.001694

Sheet MKT2_UAH
A2: Державний та гарантований державою борг України за поточний рік
I4: =VALUAH -> млн. грн
B5: 2015-12-31 | C5: 2016-01-31 | D5: 2016-02-29 | E5: 2016-03-31 | F5: 2016-04-30 | G5: 2016-05-31 | H5: 2016-06-30 | I5: 2016-07-31
A6: Загальна сума державного та гарантованого державою боргу | B6: =B$7+B$54 -> 1572180.159 | C6: 1645619.663 | D6: 1740938.652 | E6: 1710381.007 | F6: 1690002.355 | G6: 1683546.283 | H6: 1668252.938 | I6: 1661360.907
A7: Державний борг | B7: =B$8+B$32 -> 1334271.601 | C7: 1392400.345 | D7: 1483853.513 | E7: 1457673.768 | F7: 1448913.707 | G7: 1448548.364 | H7: 1436316.669 | I7: 1427361.009
A8: Внутрішній борг | B8: =B$9+B$30 -> 508001.1231 | C8: 528455.9892 | D8: 544518.1747 | E8: 532470.4305 | F8: 547313.5796 | G8: 552476.045 | H8: 550279.1583 | I8: 545076.0393
A9: 1. Заборгованість за випущеними цінними паперами на внутрішньому ринку | B9: =SUM(B$10:B$29) -> 505356.0727 | C9: 525810.9387 | D9: 541873.1242 | E9: 529858.4432 | F9: 544701.5923 | G9: 549864.0577 | H9: 547700.2341 | I9: 542497.1151
A10: Казначейські зобов'язання | B10: 98.638 | C10: 99.6 | D10: 99.6 | E10: 99.6 | F10: 99.6 | G10: 0 | H10: 0 | I10: 0
A11: ОВДП (10 - річні) | B11: 60558.463 | C11: 60558.463 | D11: 60558.463 | E11: 60558.463 | F11: 60558.463 | G11: 60558.463 | H11: 60558.463 | I11: 60558.463
A12: ОВДП (11 - річні) | B12: 38882.981 | C12: 38882.981 | D12: 38882.981 | E12: 38882.981 | F12: 38882.981 | G12: 38882.981 | H12: 38882.981 | I12: 38882.981
A13: ОВДП (12 - місячні) | B13: 8283.710212 | C13: 8781.007312 | D13: 9437.687091 | E13: 9199.030938 | F13: 9443.004207 | G13: 10135.91976 | H13: 6849.757734 | I13: 2704.57
A14: ОВДП (12 - річні) | B14: 1500 | C14: 1500 | D14: 1500 | E14: 1500 | F14: 1500 | G14: 1500 | H14: 1500 | I14: 1500
A15: ОВДП (13 - річні) | B15: 2617.63 | C15: 2617.63 | D15: 2617.63 | E15: 2617.63 | F15: 2617.63 | G15: 2617.63 | H15: 2617.63 | I15: 2617.63
A16: ОВДП (14 - річні) | B16: 3250 | C16: 3250 | D16: 3250 | E16: 3250 | F16: 3250 | G16: 3250 | H16: 3250 | I16: 3250
A17: ОВДП (15 - річні) | B17: 15848.84 | C17: 15848.84 | D17: 15848.84 | E17: 15848.84 | F17: 15848.84 | G17: 15848.84 | H17: 15848.84 | I17: 15848.84
A18: ОВДП (18 - місячні) | B18: 1048.92516 | C18: 13283.27801 | D18: 14299.24562 | E18: 13890.56205 | F18: 12203.20024 | G18: 19013.3675 | H18: 18777.95338 | I18: 18735.48949
A19: ОВДП (2 - річні) | B19: 21910.34234 | C19: 22039.55115 | D19: 34281.42733 | E19: 34176.96595 | F19: 49158.49615 | G19: 52111.63869 | H19: 48930.94395 | I19: 49252.23519
A20: ОВДП (3 - місячні) | B20: 0 | C20: 0 | D20: 0 | E20: 0 | F20: 300 | G20: 300 | H20: 716 | I20: 416
A21: ОВДП (3 - річні) | B21: 43377.23613 | C21: 36369.62179 | D21: 38704.98374 | E21: 29230.92083 | F21: 34196.92528 | G21: 32717.95282 | H21: 34006.99511 | I21: 34859.32385
A22: ОВДП (4 - річні) | B22: 3845.10672 | C22: 4029.28304 | D22: 4333.70224 | E22: 4199.88896 | F22: 4034.84448 | G22: 4031.56032 | H22: 3981.70544 | I22: 3972.71264
A23: ОВДП (5 - річні) | B23: 160233.8121 | C23: 160325.7754 | D23: 159833.6562 | E23: 158098.6525 | F23: 157487.133 | G23: 157475.2296 | H23: 161608.9895 | I23: 161025.665
A24: ОВДП (6 - місячні) | B24: 0 | C24: 50 | D24: 50 | E24: 130 | F24: 830 | G24: 830 | H24: 883.5 | I24: 1086.73
A25: ОВДП (6 - річні) | B25: 27100 | C25: 27100 | D25: 27100 | E25: 27100 | F25: 27100 | G25: 27100 | H25: 25600 | I25: 24100
A26: ОВДП (7 - річні) | B26: 48624.791 | C26: 48624.791 | D26: 48624.791 | E26: 48624.791 | F26: 44739.791 | G26: 41039.791 | H26: 41039.791 | I26: 41039.791
A27: ОВДП (8 - річні) | B27: 31301.198 | C27: 31301.198 | D27: 31301.198 | E27: 31301.198 | F27: 31301.198 | G27: 31301.198 | H27: 31301.198 | I27: 31301.198
A28: ОВДП (9 - місячні) | B28: 0 | C28: 0 | D28: 0 | E28: 0 | F28: 0.567 | G28: 0.567 | H28: 196.567 | I28: 196.567
A29: ОВДП (9 - річні) | B29: 36874.399 | C29: 51148.919 | D29: 51148.919 | E29: 51148.919 | F29: 51148.919 | G29: 51148.919 | H29: 51148.919 | I29: 51148.919
A30: 2. Заборгованість перед банківськими та іншими фінансовими установами | B30: =SUM(B$31:B$31) -> 2645.05045 | C30: 2645.05045 | D30: 2645.05045 | E30: 2611.987319 | F30: 2611.987319 | G30: 2611.987319 | H30: 2578.924189 | I30: 2578.924189
A31: Національний банк України | B31: 2645.05045 | C31: 2645.05045 | D31: 2645.05045 | E31: 2611.987319 | F31: 2611.987319 | G31: 2611.987319 | H31: 2578.924189 | I31: 2578.924189
A32: Зовнішній борг | B32: =B$33+B$40+B$46+B$48+B$52 -> 826270.4782 | C32: 863944.3558 | D32: 939335.3381 | E32: 925203.338 | F32: 901600.1277 | G32: 896072.3185 | H32: 886037.5107 | I32: 882284.9694
A33: 1. Заборгованість за позиками, одержаними від міжнародних фінансових організацій | B33: =SUM(B$34:B$39) -> 337449.2911 | C33: 351875.2138 | D33: 379266.0818 | E33: 372540.702 | F33: 358955.0337 | G33: 355004.8726 | H33: 350589.069 | I33: 348620.0896
A34: Європейське Співтовариство | B34: 57953.11509 | C34: 60604.77254 | D34: 65805.09481 | E34: 65613.41267 | F34: 63221.15839 | G34: 61951.6261 | H34: 60915.4234 | I34: 60777.66968
A35: Європейський банк реконструкції та розвитку | B35: 13990.69907 | C35: 14720.37804 | D35: 15989.42881 | E35: 15932.55976 | F35: 15598.93252 | G35: 14882.86828 | H35: 14856.55122 | I35: 14952.85272
A36: Європейський Інвестиційний Банк | B36: 12530.14512 | C36: 13103.46465 | D36: 14049.92352 | E36: 14008.99783 | F36: 13555.44578 | G36: 13283.2414 | H36: 13061.06595 | I36: 13306.54182
A37: Міжнародний банк реконструкції та розвитку | B37: 124747.1258 | C37: 129575.8776 | D37: 139338.8677 | E37: 134577.1219 | F37: 129362.7866 | G37: 128769.3267 | H37: 127710.1294 | I37: 126362.5217
A38: Міжнародний Валютний Фонд | B38: 128207.6972 | C38: 133849.2284 | D38: 144059.6486 | E38: 142386.2062 | F38: 137195.1882 | G38: 136096.3055 | H38: 134024.6606 | I38: 133199.3133
A39: Фонд чистих технологій (МБРР) | B39: 20.50886997 | C39: 21.49250101 | D39: 23.11831358 | E39: 22.40365658 | F39: 21.522203 | G39: 21.50466328 | H39: 21.23840317 | I39: 21.1903753
A40: 2. Заборгованість за позиками, одержаними від органів управління іноземних держав | B40: =SUM(B$41:B$45) -> 32708.52715 | C40: 34242.40941 | D40: 37526.91602 | E40: 45388.06967 | F40: 44490.38557 | G40: 43633.18039 | H40: 44296.31136 | I40: 43789.7977
A41: Канада | B41: 6914.0144 | C41: 7142.7944 | D41: 7988.748 | E41: 8048.6144 | F41: 8023.2388 | G41: 7720.3 | H41: 7652.8188 | I41: 7537.1588
A42: Німеччина | B42: 5428.187703 | C42: 5676.555618 | D42: 6163.644627 | E42: 6145.690689 | F42: 5921.619813 | G42: 5802.70887 | H42: 5705.65278 | I42: 5692.750056
A43: Росія | B43: 14540.94475 | C43: 15238.34664 | D43: 16391.06011 | E43: 15884.36287 | F43: 15259.40558 | G43: 15246.96978 | H43: 15058.18934 | I43: 15024.13721
A44: США | B44: 216.533956 | C44: 226.9191953 | D44: 244.084628 | E44: 236.5392338 | F44: 227.2327909 | G44: 227.0476054 | H44: 224.2364141 | I44: 223.7293328
A45: Японія | B45: 5608.846349 | C45: 5957.79356 | D45: 6739.378653 | E45: 15072.86248 | F45: 15058.88859 | G45: 14636.15413 | H45: 15655.41402 | I45: 15312.0223
A46: 3. Заборгованість за позиками, одержаними від іноземних комерційних банків, інших іноземних фінансових установ | B46: =SUM(B$47:B$47) -> 1.34076761 | C46: 1.40211472 | D46: 1.52242618 | E46: 1.51799154 | F46: 1.46264582 | G46: 1.4332747 | H46: 1.40930175 | I46: 1.40611476
A47: Chase Manhattan Bank Luxembourg S.A. | B47: 1.34076761 | C47: 1.40211472 | D47: 1.52242618 | E47: 1.51799154 | F47: 1.46264582 | G47: 1.4332747 | H47: 1.40930175 | I47: 1.40611476
A48: 4. Заборгованість за випущеними цінними паперами на зовнішньому ринку | B48: =SUM(B$49:B$51) -> 415269.9327 | C48: 435186.798 | D48: 476649.6904 | E48: 461915.0067 | F48: 454448.8363 | G48: 454078.4789 | H48: 448456.3035 | I48: 447442.1782
A49: ОЗДП 2013 року | B49: 72002.001 | C49: 75455.307 | D49: 81163.167 | E49: 78654.168 | F49: 75559.584 | G49: 75498.006 | H49: 74563.227 | I49: 74394.612
A50: ОЗДП 2014 року | B50: 24000.667 | C50: 25151.769 | D50: 27054.389 | E50: 26218.056 | F50: 25186.528 | G50: 25166.002 | H50: 24854.409 | I50: 24798.204
A51: ОЗДП 2015 року | B51: 319267.2647 | C51: 334579.722 | D51: 368432.1344 | E51: 357042.7827 | F51: 353702.7243 | G51: 353414.4709 | H51: 349038.6675 | I51: 348249.3622
A52: 5. Заборгованість, не віднесена до інших категорій | B52: =SUM(B$53:B$53) -> 40841.38642 | C52: 42638.5325 | D52: 45891.1275 | E52: 45358.04165 | F52: 43704.40948 | G52: 43354.35334 | H52: 42694.41755 | I52: 42431.49784
A53: Міжнародний Валютний Фонд | B53: 40841.38642 | C53: 42638.5325 | D53: 45891.1275 | E53: 45358.04165 | F53: 43704.40948 | G53: 43354.35334 | H53: 42694.41755 | I53: 42431.49784
A54: Гарантований державою борг | B54: =B$55+B$70 -> 237908.5577 | C54: 253219.3177 | D54: 257085.1392 | E54: 252707.2384 | F54: 241088.6475 | G54: 234997.9195 | H54: 231936.2693 | I54: 233999.8986
A55: Внутрішній борг | B55: =B$56+B$64+B$68 -> 21459.45491 | C55: 21150.24749 | D55: 20950.24749 | E55: 20950.24749 | F55: 20564.59008 | G55: 20488.14008 | H55: 20411.69008 | I55: 20288.53266
A56: 1. Заборгованість за випущеними цінними паперами на внутрішньому ринку | B56: =SUM(B$57:B$63) -> 16400.0116 | C56: 16400.0116 | D56: 16200.0116 | E56: 16200.0116 | F56: 16200.0116 | G56: 16200.0116 | H56: 16200.0116 | I56: 16200.0116
A57: Державні цінні папери | B57: 0.0116 | C57: 0.0116 | D57: 0.0116 | E57: 0.0116 | F57: 0.0116 | G57: 0.0116 | H57: 0.0116 | I57: 0.0116
A58: Облігації ДІУ (10 - річні) | B58: 1000 | C58: 1000 | D58: 1000 | E58: 1000 | F58: 1000 | G58: 1000 | H58: 1000 | I58: 1000
A59: Облігації ДІУ (5 - річні) | B59: 3000 | C59: 3000 | D59: 3000 | E59: 3000 | F59: 3000 | G59: 3000 | H59: 3000 | I59: 3000
A60: Облігації ДІУ (7 - річні) | B60: 3200 | C60: 3200 | D60: 3000 | E60: 3000 | F60: 3000 | G60: 3000 | H60: 3000 | I60: 3000
A61: Облігації НАК "Нафтогаз України" (3 - річні) | B61: 4800 | C61: 4800 | D61: 4800 | E61: 4800 | F61: 4800 | G61: 4800 | H61: 4800 | I61: 4800
A62: Облігації Укравтодору (3 - річні) | B62: 250 | C62: 250 | D62: 250 | E62: 250 | F62: 250 | G62: 250 | H62: 250 | I62: 250
A63: Облігації Укравтодору (5 - річні) | B63: 4150 | C63: 4150 | D63: 4150 | E63: 4150 | F63: 4150 | G63: 4150 | H63: 4150 | I63: 4150
A64: 2. Заборгованість перед банківськими та іншими фінансовими установами | B64: =SUM(B$65:B$67) -> 5058.488656 | C64: 4749.281241 | D64: 4749.281241 | E64: 4749.281241 | F64: 4363.623827 | G64: 4287.173827 | H64: 4210.723827 | I64: 4087.566413
A65: ВАТ "Державний експортно-імпортний банк України" | B65: 1050 | C65: 787.5 | D65: 787.5 | E65: 787.5 | F65: 525 | G65: 525 | H65: 525 | I65: 525
A66: ВАТ "Державний ощадний банк України" | B66: 3859.862318 | C66: 3822.362318 | D66: 3822.362318 | E66: 3822.362318 | F66: 3708.412318 | G66: 3631.962318 | H66: 3555.512318 | I66: 3441.562318
A67: ПАТ АБ "Укргазбанк" | B67: 148.6263374 | C67: 139.4189231 | D67: 139.4189231 | E67: 139.4189231 | F67: 130.2115088 | G67: 130.2115088 | H67: 130.2115088 | I67: 121.0040945
A68: 3. Заборгованість, не віднесена до інших категорій | B68: =SUM(B$69:B$69) -> 0.95465 | C68: 0.95465 | D68: 0.95465 | E68: 0.95465 | F68: 0.95465 | G68: 0.95465 | H68: 0.95465 | I68: 0.95465
A69: Інші кредитори | B69: 0.95465 | C69: 0.95465 | D69: 0.95465 | E69: 0.95465 | F69: 0.95465 | G69: 0.95465 | H69: 0.95465 | I69: 0.95465
A70: Зовнішній борг | B70: =B$71+B$77+B$79+B$89+B$90 -> 216449.1028 | C70: 232069.0702 | D70: 236134.8917 | E70: 231756.9909 | F70: 220524.0574 | G70: 214509.7794 | H70: 211524.5792 | I70: 213711.3659
A71: 1. Заборгованість за позиками, одержаними від міжнародних фінансових організацій | B71: =SUM(B$72:B$76) -> 140833.8031 | C71: 153455.4402 | D71: 162602.1888 | E71: 160529.421 | F71: 154567.9991 | G71: 148901.304 | H71: 146742.1908 | I71: 150013.9723
A72: Європейське співтоватиство з атомної енергії | B72: 456.6383727 | C72: 477.9752917 | D72: 516.8489458 | E72: 451.1063015 | F72: 404.8624853 | G72: 400.2336814 | H72: 394.3282506 | I72: 393.4365237
A73: Європейський банк реконструкції та розвитку | B73: 3050.143293 | C73: 9518.366749 | D73: 7412.360918 | E73: 7137.771852 | F73: 6857.93113 | G73: 1953.246766 | H73: 1789.448053 | I73: 5772.562601
A74: Європейський Інвестиційний Банк | B74: 0 | C74: 0 | D74: 148.880305 | E74: 148.446635 | F74: 143.034295 | G74: 140.16205 | H74: 137.8177 | I74: 275.01208
A75: Міжнародний банк реконструкції та розвитку | B75: 9418.982998 | C75: 9922.714356 | D75: 10801.15939 | E75: 10738.68802 | F75: 10287.64808 | G75: 10629.45264 | H75: 10709.19083 | I75: 10684.97339
A76: Міжнародний Валютний Фонд | B76: 127908.0385 | C76: 133536.3838 | D76: 143722.9393 | E76: 142053.4082 | F76: 136874.5231 | G76: 135778.2088 | H76: 133711.406 | I76: 132887.9877
A77: 2. Заборгованість за позиками, одержаними від органів управління іноземних держав | B77: =SUM(B$78:B$78) -> 4679.066995 | C77: 4290.545786 | D77: 4615.106584 | E77: 4472.43968 | F77: 4296.475193 | G77: 4292.97374 | H77: 4239.820261 | I77: 3625.913538
A78: Канада | B78: 4679.066995 | C78: 4290.545786 | D78: 4615.106584 | E78: 4472.43968 | F78: 4296.475193 | G78: 4292.97374 | H78: 4239.820261 | I78: 3625.913538
A79: 3. Заборгованість за позиками, одержаними від іноземних комерційних банків, інших іноземних фінансових установ | B79: =SUM(B$80:B$88) -> 68227.55055 | C79: 71495.21178 | D79: 65874.00524 | E79: 63746.89454 | F79: 58761.01962 | G79: 58440.15464 | H79: 57710.98927 | I79: 57257.33862
A80: Citibank, N.A. London | B80: 978.6004447 | C80: 1023.376522 | D80: 0 | E80: 0 | F80: 0 | G80: 0 | H80: 0 | I80: 0
A81: Credit Suisse International | B81: 2419.267234 | C81: 2535.298315 | D81: 2727.082411 | E81: 2642.780045 | F81: 0 | G81: 0 | H81: 0 | I81: 0
A82: Deutsche Bank AG London | B82: 0 | C82: 0 | D82: 0 | E82: 0 | F82: 220.4260584 | G82: 378.7919925 | H82: 373.172053 | I82: 372.3281643
A83: UniCredit Bank Austria AG | B83: 1114.482976 | C83: 1165.476388 | D83: 1265.482585 | E83: 1135.616751 | F83: 1094.21235 | G83: 1072.239676 | H83: 1054.305399 | I83: 1051.9212
A84: ВАТ "Газпромбанк" | B84: 12000.3335 | C84: 12575.8845 | D84: 13527.1945 | E84: 13109.028 | F84: 12593.264 | G84: 12583.001 | H84: 12427.2045 | I84: 12399.102
A85: Державний банк розвитку КНР | B85: 1729.968077 | C85: 1812.93951 | D85: 1950.080359 | E85: 1889.797476 | F85: 1652.739967 | G85: 1651.393051 | H85: 1630.946319 | I85: 1627.258146
A86: Експортно-імпортний банк Китаю | B86: 37252.00875 | C86: 39038.66167 | D86: 41991.76363 | E86: 40693.6712 | F86: 39092.61194 | G86: 39060.75305 | H86: 38577.12211 | I86: 38166.74024
A87: Експортно-імпортний банк Кореї | B87: 3914.358784 | C87: 4102.096325 | D87: 4412.401756 | E87: 4276.001071 | F87: 4107.765301 | G87: 3693.975875 | H87: 3648.238891 | I87: 3639.988875
A88: Сбербанк Росії | B88: 8818.530789 | C88: 9241.478553 | D88: 0 | E88: 0 | F88: 0 | G88: 0 | H88: 0 | I88: 0
A89: 4. Заборгованість за випущеними цінними паперами на зовнішньому ринку
A90: 5. Заборгованість, не віднесена до інших категорій | B90: =SUM(B$91:B$91) -> 2708.682131 | C90: 2827.87244 | D90: 3043.591022 | E90: 3008.235706 | F90: 2898.563525 | G90: 2875.347105 | H90: 2831.578848 | I90: 2814.141488
A91: Міжнародний Валютний Фонд | B91: 2708.682131 | C91: 2827.87244 | D91: 3043.591022 | E91: 3008.235706 | F91: 2898.563525 | G91: 2875.347105 | H91: 2831.578848 | I91: 2814.141488

Sheet MKT2_USD
A2: Державний та гарантований державою борг України за поточний рік
I4: =VALUSD -> млн. дол. США
B5: 2015-12-31 | C5: 2016-01-31 | D5: 2016-02-29 | E5: 2016-03-31 | F5: 2016-04-30 | G5: 2016-05-31 | H5: 2016-06-30 | I5: 2016-07-31
A6: Загальна сума державного та гарантованого державою боргу | B6: =B$7+B$54 -> 65505.68611 | C6: 65427.5913 | D6: 64349.58306 | E6: 65236.75923 | F6: 67099.45709 | G6: 66897.6456 | H6: 67121.00611 | I6: 66995.21092
A7: Державний борг | B7: =B$8+B$32 -> 55593.10503 | C7: 55359.93691 | D7: 54847.0532 | E7: 55598.08738 | F7: 57527.32998 | G7: 57559.73331 | H7: 57789.21032 | I7: 57559.04777
A8: Внутрішній борг | B8: =B$9+B$30 -> 21166.12522 | C8: 21010.68872 | D8: 20126.79624 | E8: 20309.30251 | F8: 21730.40999 | G8: 21953.27033 | H8: 22140.10232 | I8: 21980.46436
A9: 1. Заборгованість за випущеними цінними паперами на внутрішньому ринку | B9: =SUM(B$10:B$29) -> 21055.91785 | C9: 20905.52512 | D9: 20029.02835 | E9: 20209.677 | F9: 21626.70426 | G9: 21849.48001 | H9: 22036.34108 | I9: 21876.46795
A10: Казначейські зобов'язання | B10: 4.10980245 | C10: 3.95996003 | D10: 3.6814729 | E10: 3.79890866 | F10: 3.95449504 | G10: 0 | H10: 0 | I10: 0
A11: ОВДП (10 - річні) | B11: 2523.199168 | C11: 2407.721819 | D11: 2238.396994 | E11: 2309.799895 | F11: 2404.39901 | G11: 2406.360096 | H11: 2436.527982 | I11: 2442.05036
A12: ОВДП (11 - річні) | B12: 1620.079184 | C12: 1545.934244 | D12: 1437.21527 | E12: 1483.061177 | F12: 1543.800757 | G12: 1545.059919 | H12: 1564.429917 | I12: 1567.975689
A13: ОВДП (12 - місячні) | B13: 345.145 | C13: 349.1208635 | D13: 348.8412579 | E13: 350.866248 | F13: 374.9228241 | G13: 402.7624158 | H13: 275.595277 | I13: 109.0631402
A14: ОВДП (12 - річні) | B14: 62.49826307 | C14: 59.6379523 | D14: 55.44386902 | E14: 57.21247983 | F14: 59.55564816 | G14: 59.60422319 | H14: 60.35146521 | I14: 60.48825149
A15: ОВДП (13 - річні) | B15: 109.0648856 | C15: 104.0733954 | D15: 96.75435657 | E15: 99.84073571 | F15: 103.9297675 | G15: 104.0145352 | H15: 105.3185373 | I15: 105.5572412
A16: ОВДП (14 - річні) | B16: 135.4129033 | C16: 129.2155633 | D16: 120.1283829 | E16: 123.960373 | F16: 129.0372377 | G16: 129.1424836 | H16: 130.761508 | I16: 131.0578782
A17: ОВДП (15 - річні) | B17: 660.3499811 | C17: 630.1282427 | D17: 585.814006 | E17: 604.5009592 | F17: 629.2586259 | G17: 629.7718644 | H17: 637.6671439 | I17: 639.1124131
A18: ОВДП (18 - місячні) | B18: 43.70400039 | C18: 528.1250004 | D18: 528.5370007 | E18: 529.8090006 | F18: 484.513 | G18: 755.518 | H18: 755.518 | I18: 755.518
A19: ОВДП (2 - річні) | B19: 912.9055596 | C19: 876.2624669 | D19: 1267.129978 | E19: 1303.565984 | F19: 1951.7774 | G19: 2070.715829 | H19: 1968.702774 | I19: 1986.121059
A20: ОВДП (3 - місячні) | B20: 0 | C20: 0 | D20: 0 | E20: 0 | F20: 11.91112963 | G20: 11.92084464 | H20: 28.80776606 | I20: 16.77540841
A21: ОВДП (3 - річні) | B21: 1807.33461 | C21: 1446.006513 | D21: 1430.636033 | E21: 1114.915645 | F21: 1357.7467 | G21: 1300.085441 | H21: 1368.247988 | I21: 1405.719699
A22: ОВДП (4 - річні) | B22: 160.2083275 | C22: 160.1987932 | D22: 160.1848129 | E22: 160.1907083 | F22: 160.1985188 | G22: 160.1986807 | H22: 160.2011715 | I22: 160.2016275
A23: ОВДП (5 - річні) | B23: 6676.223294 | C23: 6374.333965 | D23: 5907.864199 | E23: 6030.143977 | F23: 6252.832187 | G23: 6257.459154 | H23: 6502.226205 | I23: 6493.440612
A24: ОВДП (6 - місячні) | B24: 0 | C24: 1.98793174 | D24: 1.84812897 | E24: 4.95841492 | F24: 32.95412532 | G24: 32.9810035 | H24: 35.54701302 | I24: 43.8229317
A25: ОВДП (6 - річні) | B25: 1129.135286 | C25: 1077.459005 | D25: 1001.6859 | E25: 1033.638802 | F25: 1075.972043 | G25: 1076.849632 | H25: 1029.99834 | I25: 971.8445739
A26: ОВДП (7 - річні) | B26: 2025.976653 | C26: 1933.255311 | D26: 1797.297695 | E26: 1854.629916 | F26: 1776.338168 | G26: 1630.763242 | H26: 1651.207679 | I26: 1654.950133
A27: ОВДП (8 - річні) | B27: 1304.180338 | C27: 1244.492902 | D27: 1156.973015 | E27: 1193.879439 | F27: 1242.775423 | G27: 1243.789061 | H27: 1259.382108 | I27: 1262.236491
A28: ОВДП (9 - місячні) | B28: 0 | C28: 0 | D28: 0 | E28: 0 | F28: 0.02251204 | G28: 0.0225304 | H28: 7.90873764 | I28: 7.92666275
A29: ОВДП (9 - річні) | B29: 1536.390593 | C29: 2033.611194 | D29: 1890.595977 | E29: 1950.904331 | F29: 2030.804683 | G29: 2032.461056 | H29: 2057.94147 | I29: 2062.605784
A30: 2. Заборгованість перед банківськими та іншими фінансовими установами | B30: =SUM(B$31:B$31) -> 110.2073726 | C30: 105.1635951 | D30: 97.76788713 | E30: 99.62551455 | F30: 103.7057319 | G30: 103.7903168 | H30: 103.7612356 | I30: 103.9964099
A31: Національний банк України | B31: 110.2073726 | C31: 105.1635951 | D31: 97.76788713 | E31: 99.62551455 | F31: 103.7057319 | G31: 103.7903168 | H31: 103.7612356 | I31: 103.9964099
A32: Зовнішній борг | B32: =B$33+B$40+B$46+B$48+B$52 -> 34426.97981 | C32: 34349.24819 | D32: 34720.25697 | E32: 35288.78487 | F32: 35796.91999 | G32: 35606.46298 | H32: 35649.108 | I32: 35578.58341
A33: 1. Заборгованість за позиками, одержаними від міжнародних фінансових організацій | B33: =SUM(B$34:B$39) -> 14059.99638 | C33: 13990.07815 | D33: 14018.65264 | E33: 14209.31827 | F33: 14251.86646 | G33: 14106.52644 | H33: 14105.70933 | I33: 14058.27977
A34: Європейське Співтовариство | B34: 2414.646022 | C34: 2409.563023 | D34: 2432.326038 | E34: 2502.604032 | F34: 2510.118044 | G34: 2461.719033 | H34: 2450.890037 | I34: 2450.889979
A35: Європейський банк реконструкції та розвитку | B35: 582.929594 | C35: 585.2621355 | D35: 591.0105311 | E35: 607.6941691 | F35: 619.3363581 | G35: 591.3878686 | H35: 597.7430895 | I35: 602.9812771
A36: Європейський Інвестиційний Банк | B36: 522.0748706 | C36: 520.9758664 | D36: 519.321413 | E36: 534.326337 | F36: 538.2022396 | G36: 527.8248567 | H36: 525.502978 | I36: 536.5929654
A37: Міжнародний банк реконструкції та розвитку | B37: 5197.652457 | C37: 5151.760007 | D37: 5150.323954 | E37: 5132.993916 | F37: 5136.189738 | G37: 5116.797125 | H37: 5138.328953 | I37: 5095.631994
A38: Міжнародний Валютний Фонд | B38: 5341.838923 | C38: 5321.662601 | D38: 5324.816192 | E38: 5430.845298 | F38: 5447.16557 | G38: 5407.943046 | H38: 5392.389762 | I38: 5371.329039
A39: Фонд чистих технологій (МБРР) | B39: 0.8545125 | C39: 0.8545125 | D39: 0.8545125 | E39: 0.8545125 | F39: 0.8545125 | G39: 0.8545125 | H39: 0.8545125 | I39: 0.8545125
A40: 2. Заборгованість за позиками, одержаними від органів управління іноземних держав | B40: =SUM(B$41:B$45) -> 1362.817423 | C40: 1361.431453 | D40: 1387.091611 | E40: 1731.176013 | F40: 1766.435833 | G40: 1733.814548 | H40: 1782.231529 | I40: 1765.84553
A41: Канада | B41: 288.0759272 | C41: 283.9877545 | D41: 295.2847318 | E41: 306.9874593 | F41: 318.5527914 | G41: 306.7749895 | H41: 307.905885 | I41: 303.9397047
A42: Німеччина | B42: 226.168202 | C42: 225.6921021 | D42: 227.8242036 | E42: 234.406803 | F42: 235.1106041 | G42: 230.5773031 | H42: 229.5630035 | I42: 229.562998
A43: Росія | B43: 605.85586 | C43: 605.85586 | D43: 605.85586 | E43: 605.85586 | F43: 605.85586 | G43: 605.85586 | H43: 605.85586 | I43: 605.85586
A44: США | B44: 9.02199743 | C44: 9.02199743 | D44: 9.02199743 | E44: 9.02199743 | F44: 9.02199743 | G44: 9.02199743 | H44: 9.02199743 | I44: 9.02199743
A45: Японія | B45: 233.6954364 | C45: 236.8737388 | D45: 249.1048182 | E45: 574.9038937 | F45: 597.8945803 | G45: 581.5843982 | H45: 629.8847832 | I45: 617.4649704
A46: 3. Заборгованість за позиками, одержаними від іноземних комерційних банків, інших іноземних фінансових установ | B46: =SUM(B$47:B$47) -> 0.05586376 | C46: 0.05574617 | D46: 0.0562728 | E46: 0.05789871 | F46: 0.05807255 | G46: 0.05695282 | H46: 0.05670228 | I46: 0.05670228
A47: Chase Manhattan Bank Luxembourg S.A. | B47: 0.05586376 | C47: 0.05574617 | D47: 0.0562728 | E47: 0.05789871 | F47: 0.05807255 | G47: 0.05695282 | H47: 0.05670228 | I47: 0.05670228
A48: 4. Заборгованість за випущеними цінними паперами на зовнішньому ринку | B48: =SUM(B$49:B$51) -> 17302.433 | C48: 17302.433 | D48: 17618.202 | E48: 17618.202 | F48: 18043.33 | G48: 18043.33 | H48: 18043.33 | I48: 18043.33
A49: ОЗДП 2013 року | B49: 3000 | C49: 3000 | D49: 3000 | E49: 3000 | F49: 3000 | G49: 3000 | H49: 3000 | I49: 3000
A50: ОЗДП 2014 року | B50: 1000 | C50: 1000 | D50: 1000 | E50: 1000 | F50: 1000 | G50: 1000 | H50: 1000 | I50: 1000
A51: ОЗДП 2015 року | B51: 13302.433 | C51: 13302.433 | D51: 13618.202 | E51: 13618.202 | F51: 14043.33 | G51: 14043.33 | H51: 14043.33 | I51: 14043.33
A52: 5. Заборгованість, не віднесена до інших категорій | B52: =SUM(B$53:B$53) -> 1701.677142 | C52: 1695.249845 | D52: 1696.254441 | E52: 1730.030695 | F52: 1735.229623 | G52: 1722.735035 | H52: 1717.780437 | I52: 1711.071408
A53: Міжнародний Валютний Фонд | B53: 1701.677142 | C53: 1695.249845 | D53: 1696.254441 | E53: 1730.030695 | F53: 1735.229623 | G53: 1722.735035 | H53: 1717.780437 | I53: 1711.071408
A54: Гарантований державою борг | B54: =B$55+B$70 -> 9912.581084 | C54: 10067.6544 | D54: 9502.529855 | E54: 9638.671852 | F54: 9572.12711 | G54: 9337.912296 | H54: 9331.79579 | I54: 9436.163143
A55: Внутрішній борг | B55: =B$56+B$64+B$68 -> 894.1191053 | C55: 840.9049674 | D55: 774.3751851 | E55: 799.0770747 | F55: 816.4916608 | G55: 814.1197826 | H55: 821.250269 | I55: 818.145244
A56: 1. Заборгованість за випущеними цінними паперами на внутрішньому ринку | B56: =SUM(B$57:B$63) -> 683.3148262 | C56: 652.0420731 | D56: 598.7942141 | E56: 617.8952246 | F56: 643.2014607 | G56: 643.7260714 | H56: 651.796291 | I56: 653.2735838
A57: Державні цінні папери | B57: 0.00048332 | C57: 0.0004612 | D57: 0.00042877 | E57: 0.00044244 | F57: 0.00046056 | G57: 0.00046094 | H57: 0.00046672 | I57: 0.00046778
A58: Облігації ДІУ (10 - річні) | B58: 41.66550871 | C58: 39.75863487 | D58: 36.96257934 | E58: 38.14165322 | F58: 39.70376544 | G58: 39.73614879 | H58: 40.23431014 | I58: 40.32550099
A59: Облігації ДІУ (5 - річні) | B59: 124.9965261 | C59: 119.2759046 | D59: 110.887738 | E59: 114.4249597 | F59: 119.1112963 | G59: 119.2084464 | H59: 120.7029304 | I59: 120.976503
A60: Облігації ДІУ (7 - річні) | B60: 133.3296278 | C60: 127.2276316 | D60: 110.887738 | E60: 114.4249597 | F60: 119.1112963 | G60: 119.2084464 | H60: 120.7029304 | I60: 120.976503
A61: Облігації НАК "Нафтогаз України" (3 - річні) | B61: 199.9944418 | C61: 190.8414474 | D61: 177.4203808 | E61: 183.0799354 | F61: 190.5780741 | G61: 190.7335142 | H61: 193.1246887 | I61: 193.5624048
A62: Облігації Укравтодору (3 - річні) | B62: 10.41637718 | C62: 9.93965872 | D62: 9.24064484 | E62: 9.5354133 | F62: 9.92594136 | G62: 9.9340372 | H62: 10.05857753 | I62: 10.08137525
A63: Облігації Укравтодору (5 - річні) | B63: 172.9118612 | C63: 164.9983347 | D63: 153.3947043 | E63: 158.2878609 | F63: 164.7706266 | G63: 164.9050175 | H63: 166.9723871 | I63: 167.3508291
A64: 2. Заборгованість перед банківськими та іншими фінансовими установами | B64: =SUM(B$65:B$67) -> 210.7645032 | C64: 188.8249388 | D64: 175.5456847 | E64: 181.1454381 | F64: 173.2522969 | G64: 170.3557771 | H64: 169.4155684 | I64: 164.8331634
A65: ВАТ "Державний експортно-імпортний банк України" | B65: 43.74878415 | C65: 31.30992496 | D65: 29.10803123 | E65: 30.03655191 | F65: 20.84447686 | G65: 20.86147812 | H65: 21.12301282 | I65: 21.17088802
A66: ВАТ "Державний ощадний банк України" | B66: 160.8231271 | C66: 151.9719078 | D66: 141.2843705 | E66: 145.791218 | F66: 147.2379328 | G66: 144.3201951 | H66: 143.0535853 | I66: 138.7827247
A67: ПАТ АБ "Укргазбанк" | B67: 6.19259196 | C67: 5.54310606 | D67: 5.153283 | E67: 5.31766822 | F67: 5.1698872 | G67: 5.17410389 | H67: 5.23897023 | I67: 4.87955072
A68: 3. Заборгованість, не віднесена до інших категорій | B68: =SUM(B$69:B$69) -> 0.03977598 | C68: 0.03795558 | D68: 0.03528633 | E68: 0.03641193 | F68: 0.0379032 | G68: 0.03793411 | H68: 0.03840968 | I68: 0.03849674
A69: Інші кредитори | B69: 0.03977598 | C69: 0.03795558 | D69: 0.03528633 | E69: 0.03641193 | F69: 0.0379032 | G69: 0.03793411 | H69: 0.03840968 | I69: 0.03849674
A70: Зовнішній борг | B70: =B$71+B$77+B$79+B$89+B$90 -> 9018.461978 | C70: 9226.749428 | D70: 8728.154669 | E70: 8839.594777 | F70: 8755.635449 | G70: 8523.792514 | H70: 8510.545521 | I70: 8618.017899
A71: 1. Заборгованість за позиками, одержаними від міжнародних фінансових організацій | B71: =SUM(B$72:B$76) -> 5867.912051 | C71: 6101.178817 | D71: 6010.196306 | E71: 6122.857505 | F71: 6136.93158 | G71: 5916.76437 | H71: 5904.070816 | I71: 6049.388589
A72: Європейське співтоватиство з атомної енергії | B72: 19.0260701 | C72: 19.0036451 | D72: 19.10407017 | E72: 17.20594011 | F72: 16.07456515 | G72: 15.90374512 | H72: 15.86552513 | I72: 15.86552493
A73: Європейський банк реконструкції та розвитку | B73: 127.085772 | C73: 378.4372681 | D73: 273.9799786 | E73: 272.2464187 | F73: 272.285689 | G73: 77.61450412 | H73: 71.99720794 | I73: 232.7814789
A74: Європейський Інвестиційний Банк | B74: 0 | C74: 0 | D74: 5.50300009 | E74: 5.66200007 | F74: 5.6790001 | G74: 5.56950007 | H74: 5.54500008 | I74: 11.0899999
A75: Міжнародний банк реконструкції та розвитку | B75: 392.4467181 | C75: 394.513577 | D75: 399.2387109 | E75: 409.5913143 | F75: 408.4583665 | G75: 422.3735117 | H75: 430.876905 | I75: 430.876905
A76: Міжнародний Валютний Фонд | B76: 5329.353491 | C76: 5309.224327 | D76: 5312.370546 | E76: 5418.151832 | F76: 5434.433959 | G76: 5395.303109 | H76: 5379.786178 | I76: 5358.77468
A77: 2. Заборгованість за позиками, одержаними від органів управління іноземних держав | B77: =SUM(B$78:B$78) -> 194.9557066 | C77: 170.5862433 | D77: 170.5862433 | E77: 170.5862433 | F77: 170.5862433 | G77: 170.5862433 | H77: 170.5862433 | I77: 146.21678
A78: Канада | B78: 194.9557066 | C78: 170.5862433 | D78: 170.5862433 | E78: 170.5862433 | F78: 170.5862433 | G78: 170.5862433 | H78: 170.5862433 | I78: 146.21678
A79: 3. Заборгованість за позиками, одержаними від іноземних комерційних банків, інших іноземних фінансових установ | B79: =SUM(B$80:B$88) -> 2842.735602 | C79: 2842.55202 | D79: 2434.873145 | E79: 2431.411945 | F79: 2333.03374 | G79: 2322.18668 | H79: 2321.961841 | I79: 2308.930865
A80: Citibank, N.A. London | B80: 40.77388535 | C80: 40.68805347 | D80: 0 | E80: 0 | F80: 0 | G80: 0 | H80: 0 | I80: 0
A81: Credit Suisse International | B81: 100.8 | C81: 100.8 | D81: 100.8 | E81: 100.8 | F81: 0 | G81: 0 | H81: 0 | I81: 0
A82: Deutsche Bank AG London | B82: 0 | C82: 0 | D82: 0 | E82: 0 | F82: 8.75174452 | G82: 15.05173498 | H82: 15.01432012 | I82: 15.01431976
A83: UniCredit Bank Austria AG | B83: 46.43550014 | C83: 46.33775017 | D83: 46.77550046 | E83: 43.3143003 | F83: 43.44435049 | G83: 42.60667531 | H83: 42.41925039 | I83: 42.41924938
A84: ВАТ "Газпромбанк" | B84: 500 | C84: 500 | D84: 500 | E84: 500 | F84: 500 | G84: 500 | H84: 500 | I84: 500
A85: Державний банк розвитку КНР | B85: 72.08 | C85: 72.08 | D85: 72.08 | E85: 72.08 | F85: 65.62 | G85: 65.62 | H85: 65.62 | I85: 65.62
A86: Експортно-імпортний банк Китаю | B86: 1552.123895 | C86: 1552.123895 | D86: 1552.123895 | E86: 1552.123895 | F86: 1552.123895 | G86: 1552.123895 | H86: 1552.123895 | I86: 1539.092921
A87: Експортно-імпортний банк Кореї | B87: 163.09375 | C87: 163.09375 | D87: 163.09375 | E87: 163.09375 | F87: 163.09375 | G87: 146.784375 | H87: 146.784375 | I87: 146.784375
A88: Сбербанк Росії | B88: 367.4285714 | C88: 367.4285714 | D88: 0 | E88: 0 | F88: 0 | G88: 0 | H88: 0 | I88: 0
A89: 4. Заборгованість за випущеними цінними паперами на зовнішньому ринку
A90: 5. Заборгованість, не віднесена до інших категорій | B90: =SUM(B$91:B$91) -> 112.8586189 | C90: 112.4323478 | D90: 112.4989746 | E90: 114.7390831 | F90: 115.0838863 | G90: 114.2552204 | H90: 113.9266215 | I90: 113.4816654
A91: Міжнародний Валютний Фонд | B91: 112.8586189 | C91: 112.4323478 | D91: 112.4989746 | E91: 114.7390831 | F91: 115.0838863 | G91: 114.2552204 | H91: 113.9266215 | I91: 113.4816654

Sheet MT_ALL (hidden)
A2: Державний та гарантований державою борг України за поточний рік
A4: =$A$2 & " (" &I4 & ")" -> Державний та гарантований державою борг України за поточний рік (млн. грн) | I4: =VALUAH -> млн. грн
B5: 2015-12-31 | C5: 2016-01-31 | D5: 2016-02-29 | E5: 2016-03-31 | F5: 2016-04-30 | G5: 2016-05-31 | H5: 2016-06-30 | I5: 2016-07-31
A6: Загальна сума державного та гарантованого державою боргу | B6: =SUM(B7:B8) -> 1572180.159 | C6: 1645619.663 | D6: 1740938.652 | E6: 1710381.007 | F6: 1690002.355 | G6: 1683546.283 | H6: 1668252.938 | I6: 1661360.659
A7: Внутрішній борг | B7: 529460.578 | C7: 549606.2367 | D7: 565468.4222 | E7: 553420.678 | F7: 567878.1697 | G7: 572964.1851 | H7: 570690.8484 | I7: 565364.324
A8: Зовнішній борг | B8: 1042719.581 | C8: 1096013.426 | D8: 1175470.23 | E8: 1156960.329 | F8: 1122124.185 | G8: 1110582.098 | H8: 1097562.09 | I8: 1095996.335
A10: =$A$2 & " (" &I10 & ")" -> Державний та гарантований державою борг України за поточний рік (млн. дол. США) | I10: =VALUSD -> млн. дол. США
B11: 2015-12-31 | C11: 2016-01-31 | D11: 2016-02-29 | E11: 2016-03-31 | F11: 2016-04-30 | G11: 2016-05-31 | H11: 2016-06-30 | I11: 2016-07-31
A12: Загальна сума державного та гарантованого державою боргу | B12: =SUM(B13:B14) -> 65505.68611 | C12: 65427.5913 | D12: 64349.58306 | E12: 65236.75923 | F12: 67099.45709 | G12: 66897.6456 | H12: 67121.00611 | I12: 66995.20092
A13: Внутрішній борг | B13: 22060.24433 | C13: 21851.59369 | D13: 20901.17142 | E13: 21108.37958 | F13: 22546.90165 | G13: 22767.39011 | H13: 22961.35259 | I13: 22798.59961
A14: Зовнішній борг | B14: 43445.44179 | C14: 43575.99762 | D14: 43448.41164 | E14: 44128.37965 | F14: 44552.55544 | G14: 44130.25549 | H14: 44159.65352 | I14: 44196.60131
I16: %%
B17: 2015-12-31 | C17: 2016-01-31 | D17: 2016-02-29 | E17: 2016-03-31 | F17: 2016-04-30 | G17: 2016-05-31 | H17: 2016-06-30 | I17: 2016-07-31
A18: Загальна сума державного та гарантованого державою боргу | B18: =SUM(B19:B20) -> 1 | C18: 1 | D18: 1 | E18: 1 | F18: 1 | G18: 1 | H18: 1 | I18: 1
A19: Внутрішній борг | B19: 0.336768 | C19: 0.333981 | D19: 0.324807 | E19: 0.323566 | F19: 0.336022 | G19: 0.340332 | H19: 0.342089 | I19: 0.340302
A20: Зовнішній борг | B20: 0.663232 | C20: 0.666019 | D20: 0.675193 | E20: 0.676434 | F20: 0.663978 | G20: 0.659668 | H20: 0.657911 | I20: 0.659698

Sheet MTM_ALL (hidden)
A2: Державний та гарантований державою борг України за поточний рік
I4: млрд. грн.
B5: =MT_ALL!B5 -> 2015-12-31 | C5: =MT_ALL!C5 -> 2016-01-31 | D5: =MT_ALL!D5 -> 2016-02-29 | E5: =MT_ALL!E5 -> 2016-03-31 | F5: =MT_ALL!F5 -> 2016-04-30 | G5: =MT_ALL!G5 -> 2016-05-31 | H5: =MT_ALL!H5 -> 2016-06-30 | I5: =MT_ALL!I5 -> 2016-07-31
A6: =MT_ALL!A6 -> Загальна сума державного та гарантованого державою боргу | B6: =SUM(B7:B8) -> 1572.180159 | C6: 1645.619663 | D6: 1740.938652 | E6: 1710.381007 | F6: 1690.002355 | G6: 1683.546283 | H6: 1668.252938 | I6: 1661.360659
A7: =MT_ALL!A7 -> Внутрішній борг | B7: =MT_ALL!B7/DMLMLR -> 529.460578 | C7: =MT_ALL!C7/DMLMLR -> 549.6062367 | D7: =MT_ALL!D7/DMLMLR -> 565.4684222 | E7: =MT_ALL!E7/DMLMLR -> 553.420678 | F7: =MT_ALL!F7/DMLMLR -> 567.8781697 | G7: =MT_ALL!G7/DMLMLR -> 572.9641851 | H7: =MT_ALL!H7/DMLMLR -> 570.6908484 | I7: =MT_ALL!I7/DMLMLR -> 565.364324
A8: =MT_ALL!A8 -> Зовнішній борг | B8: =MT_ALL!B8/DMLMLR -> 1042.719581 | C8: =MT_ALL!C8/DMLMLR -> 1096.013426 | D8: =MT_ALL!D8/DMLMLR -> 1175.47023 | E8: =MT_ALL!E8/DMLMLR -> 1156.960329 | F8: =MT_ALL!F8/DMLMLR -> 1122.124185 | G8: =MT_ALL!G8/DMLMLR -> 1110.582098 | H8: =MT_ALL!H8/DMLMLR -> 1097.56209 | I8: =MT_ALL!I8/DMLMLR -> 1095.996335
I10: млрд. дол.США
B11: =MT_ALL!B11 -> 2015-12-31 | C11: =MT_ALL!C11 -> 2016-01-31 | D11: =MT_ALL!D11 -> 2016-02-29 | E11: =MT_ALL!E11 -> 2016-03-31 | F11: =MT_ALL!F11 -> 2016-04-30 | G11: =MT_ALL!G11 -> 2016-05-31 | H11: =MT_ALL!H11 -> 2016-06-30 | I11: =MT_ALL!I11 -> 2016-07-31
A12: =MT_ALL!A12 -> Загальна сума державного та гарантованого державою боргу | B12: =SUM(B13:B14) -> 65.50568611 | C12: 65.4275913 | D12: 64.34958306 | E12: 65.23675923 | F12: 67.09945709 | G12: 66.8976456 | H12: 67.12100611 | I12: 66.99520092
A13: =MT_ALL!A13 -> Внутрішній борг | B13: =MT_ALL!B13/DMLMLR -> 22.06024433 | C13: =MT_ALL!C13/DMLMLR -> 21.85159369 | D13: =MT_ALL!D13/DMLMLR -> 20.90117142 | E13: =MT_ALL!E13/DMLMLR -> 21.10837958 | F13: =MT_ALL!F13/DMLMLR -> 22.54690165 | G13: =MT_ALL!G13/DMLMLR -> 22.76739011 | H13: =MT_ALL!H13/DMLMLR -> 22.96135259 | I13: =MT_ALL!I13/DMLMLR -> 22.79859961
A14: =MT_ALL!A14 -> Зовнішній борг | B14: =MT_ALL!B14/DMLMLR -> 43.44544179 | C14: =MT_ALL!C14/DMLMLR -> 43.57599762 | D14: =MT_ALL!D14/DMLMLR -> 43.44841164 | E14: =MT_ALL!E14/DMLMLR -> 44.12837965 | F14: =MT_ALL!F14/DMLMLR -> 44.55255544 | G14: =MT_ALL!G14/DMLMLR -> 44.13025549 | H14: =MT_ALL!H14/DMLMLR -> 44.15965352 | I14: =MT_ALL!I14/DMLMLR -> 44.19660131
I16: %%
B17: =MT_ALL!B17 -> 2015-12-31 | C17: =MT_ALL!C17 -> 2016-01-31 | D17: =MT_ALL!D17 -> 2016-02-29 | E17: =MT_ALL!E17 -> 2016-03-31 | F17: =MT_ALL!F17 -> 2016-04-30 | G17: =MT_ALL!G17 -> 2016-05-31 | H17: =MT_ALL!H17 -> 2016-06-30 | I17: =MT_ALL!I17 -> 2016-07-31
A18: =MT_ALL!A18 -> Загальна сума державного та гарантованого державою боргу | B18: =SUM(B19:B20) -> 1 | C18: 1 | D18: 1 | E18: 1 | F18: 1 | G18: 1 | H18: 1 | I18: 1
A19: =MT_ALL!A19 -> Внутрішній борг | B19: =MT_ALL!B19 -> 0.336768 | C19: =MT_ALL!C19 -> 0.333981 | D19: =MT_ALL!D19 -> 0.324807 | E19: =MT_ALL!E19 -> 0.323566 | F19: =MT_ALL!F19 -> 0.336022 | G19: =MT_ALL!G19 -> 0.340332 | H19: =MT_ALL!H19 -> 0.342089 | I19: =MT_ALL!I19 -> 0.340302
A20: =MT_ALL!A20 -> Зовнішній борг | B20: =MT_ALL!B20 -> 0.663232 | C20: =MT_ALL!C20 -> 0.666019 | D20: =MT_ALL!D20 -> 0.675193 | E20: =MT_ALL!E20 -> 0.676434 | F20: =MT_ALL!F20 -> 0.663978 | G20: =MT_ALL!G20 -> 0.659668 | H20: =MT_ALL!H20 -> 0.657911 | I20: =MT_ALL!I20 -> 0.659698

Sheet MK_ALL (hidden)
A2: Державний та гарантований державою борг України за поточний рік
A4: =$A$2 & " (" &I4 & ")" -> Державний та гарантований державою борг України за поточний рік (млн. грн) | I4: =VALUAH -> млн. грн
B5: 2015-12-31 | C5: 2016-01-31 | D5: 2016-02-29 | E5: 2016-03-31 | F5: 2016-04-30 | G5: 2016-05-31 | H5: 2016-06-30 | I5: 2016-07-31
A6: Загальна сума державного та гарантованого державою боргу | B6: =SUM(B7:B8) -> 1572180.159 | C6: 1645619.663 | D6: 1740938.652 | E6: 1710381.007 | F6: 1690002.355 | G6: 1683546.283 | H6: 1668252.938 | I6: 1661360.659
A7: Державний борг | B7: 1334271.601 | C7: 1392400.345 | D7: 1483853.513 | E7: 1457673.768 | F7: 1448913.707 | G7: 1448548.364 | H7: 1436316.669 | I7: 1427360.761
A8: Гарантований державою борг | B8: 237908.5577 | C8: 253219.3177 | D8: 257085.1392 | E8: 252707.2384 | F8: 241088.6475 | G8: 234997.9195 | H8: 231936.2693 | I8: 233999.8986
A10: =$A$2 & " (" &I10 & ")" -> Державний та гарантований державою борг України за поточний рік (млн. дол. США) | I10: =VALUSD -> млн. дол. США
B11: 2015-12-31 | C11: 2016-01-31 | D11: 2016-02-29 | E11: 2016-03-31 | F11: 2016-04-30 | G11: 2016-05-31 | H11: 2016-06-30 | I11: 2016-07-31
A12: Загальна сума державного та гарантованого державою боргу | B12: =SUM(B13:B14) -> 65505.68611 | C12: 65427.5913 | D12: 64349.58306 | E12: 65236.75923 | F12: 67099.45709 | G12: 66897.6456 | H12: 67121.00611 | I12: 66995.20092
A13: Державний борг | B13: 55593.10503 | C13: 55359.93691 | D13: 54847.0532 | E13: 55598.08738 | F13: 57527.32998 | G13: 57559.73331 | H13: 57789.21032 | I13: 57559.03777
A14: Гарантований державою борг | B14: 9912.581084 | C14: 10067.6544 | D14: 9502.529855 | E14: 9638.671852 | F14: 9572.12711 | G14: 9337.912296 | H14: 9331.79579 | I14: 9436.163143
I16: %%
B17: 2015-12-31 | C17: 2016-01-31 | D17: 2016-02-29 | E17: 2016-03-31 | F17: 2016-04-30 | G17: 2016-05-31 | H17: 2016-06-30 | I17: 2016-07-31
A18: Загальна сума державного та гарантованого державою боргу | B18: =SUM(B19:B20) -> 1 | C18: 1 | D18: 1 | E18: 1 | F18: 1 | G18: 1 | H18: 1 | I18: 1
A19: Державний борг | B19: 0.848676 | C19: 0.846125 | D19: 0.85233 | E19: 0.852251 | F19: 0.857344 | G19: 0.860415 | H19: 0.860971 | I19: 0.859152
A20: Гарантований державою борг | B20: 0.151324 | C20: 0.153875 | D20: 0.14767 | E20: 0.147749 | F20: 0.142656 | G20: 0.139585 | H20: 0.139029 | I20: 0.140848

Sheet SRATE_M (hidden)
A2: ="Державний та гарантований державою борг України за станом на " & TEXT(DREPORTDATE,"dd.MM.yyyy")&" (за видами відсоткових ставок)" -> Державний та гарантований державою борг України за станом на 31.07.2016 (за видами відсоткових ставок)
D4: =VALVAL -> млн. одиниць
B5: дол.США | C5: грн. | D5: %
A6: Загальна сума державного та гарантованого державою боргу | B6: =SUM(B$7+ B$8) -> 66995.20092 | C6: 1661360.659 | D6: 1
A7: Борг, по якому сплата відсотків здійснюється за плаваючими процентними ставками | B7: 21495.28598 | C7: 533044.4868 | D7: 0.320848
A8: Борг, по якому сплата відсотків здійснюється за фіксованими процентними ставками | B8: 45499.91494 | C8: 1128316.173 | D8: 0.679152

Sheet SRATE (hidden)
A2: ="Державний та гарантований державою борг України за станом на " & TEXT(DREPORTDATE,"dd.MM.yyyy") -> Державний та гарантований державою борг України за станом на 31.07.2016
A3: (за видами відсоткових ставок)
D5: =VALVAL -> млн. одиниць
B6: дол.США | C6: грн. | D6: %
A7: Загальна сума державного та гарантованого державою боргу | B7: =SUM(B$8+ B$9) -> 66995.20092 | C7: 1661360.659 | D7: 1
A8: =SRATE_M!A7 -> Борг, по якому сплата відсотків здійснюється за плаваючими процентними ставками | B8: =SRATE_M!B7 -> 21495.28598 | C8: =SRATE_M!C7 -> 533044.4868 | D8: =SRATE_M!D7 -> 0.320848
A9: =SRATE_M!A8 -> Борг, по якому сплата відсотків здійснюється за фіксованими процентними ставками | B9: =SRATE_M!B8 -> 45499.91494 | C9: =SRATE_M!C8 -> 1128316.173 | D9: =SRATE_M!D8 -> 0.679152
A11: В тому числі:
D12: =VALVAL -> млн. одиниць
B13: дол.США | C13: грн. | D13: %
A14: Загальна сума державного та гарантованого державою боргу | B14: =B$18+B$15 -> 66995.20092 | C14: 1661360.659 | D14: 1
A15: Державний борг | B15: =SUM(B$16:B$17) -> 57559.03777 | C15: 1427360.761 | D15: 1.063206
A16: Борг, по якому сплата відсотків здійснюється за плаваючими процентними ставками | B16: 13670.61703 | C16: 339006.7499 | D16: 0.204054
A17: Борг, по якому сплата відсотків здійснюється за фіксованими процентними ставками | B17: 43888.42074 | C17: 1088354.011 | D17: 0.655098
A18: Гарантований державою борг | B18: =SUM(B$19:B$20) -> 9436.163143 | C18: 233999.8986 | D18: 0.257642
A19: Борг, по якому сплата відсотків здійснюється за плаваючими процентними ставками | B19: 7824.668949 | C19: 194037.7368 | D19: 0.116794
A20: Борг, по якому сплата відсотків здійснюється за фіксованими процентними ставками | B20: 1611.494195 | C20: 39962.16178 | D20: 0.024054

Sheet RATE_M
A2: ="Державний та гарантований державою борг України за станом на " & TEXT(DREPORTDATE,"dd.MM.yyyy") -> Державний та гарантований державою борг України за станом на 31.07.2016
A3: (за видами відсоткових ставок)
D5: =VALVAL -> млн. одиниць
B6: дол.США | C6: грн. | D6: %
A7: Загальна сума державного та гарантованого державою боргу | B7: =SUM(B8:B19) -> 66995.21092 | C7: 1661360.907 | D7: 1
A8: LIBOR | B8: 8940.629187 | C8: 221711.5465 | D8: 0.133452
A9: Ставка МВФ | B9: 12554.65679 | C9: 311332.9403 | D9: 0.187396
A10: Фіксована | B10: 45499.92494 | C10: 1128316.421 | D10: 0.679152

Sheet RATE (hidden)
A2: ="Державний та гарантований державою борг України за станом на " & TEXT(DREPORTDATE,"dd.MM.yyyy") -> Державний та гарантований державою борг України за станом на 31.07.2016
A3: (за видами відсоткових ставок)
D5: =VALVAL -> млн. одиниць
B6: дол.США | C6: грн. | D6: %
A7: Загальна сума державного та гарантованого державою боргу | B7: =SUM(B8:B18) -> 66995.20092 | C7: 1661360.659 | D7: 1
A8: LIBOR | B8: 8940.629187 | C8: 221711.5465 | D8: 0.133452
A9: Ставка МВФ | B9: 12554.65679 | C9: 311332.9403 | D9: 0.187396
A10: Фіксована | B10: 45499.91494 | C10: 1128316.173 | D10: 0.679152
A19: В тому числі:
B20: ="Державний борг України за станом на " & TEXT(DREPORTDATE,"dd.MM.yyyy") -> Державний борг України за станом на 31.07.2016 | D20: =VALVAL -> млн. одиниць
B21: дол.США | C21: грн. | D21: %
A22: Загальна сума державного та гарантованого державою боргу | B22: =B$27+B$23 -> 66995.20092 | C22: 1661360.659 | D22: 1
A23: Державний борг | B23: =SUM(B$24:B$26) -> 57559.03777 | C23: 1427360.761 | D23: 0.859152
A24: LIBOR | B24: 6588.216583 | C24: 163375.9388 | D24: 0.098339
A25: Ставка МВФ | B25: 7082.400447 | C25: 175630.8111 | D25: 0.105715
A26: Фіксована | B26: 43888.42074 | C26: 1088354.011 | D26: 0.655098
A27: Гарантований державою борг | B27: =SUM(B$28:B$30) -> 9436.163143 | C27: 233999.8986 | D27: 0.140848
A28: LIBOR | B28: 2352.412603 | C28: 58335.60763 | D28: 0.035113
A29: Ставка МВФ | B29: 5472.256345 | C29: 135702.1292 | D29: 0.081681
A30: Фіксована | B30: 1611.494195 | C30: 39962.16178 | D30: 0.024054

Sheet RATE_CMP (hidden)
A2: Структура боргу за типом ставки на кінець попереднього року та звітну дату
H4: =VALVAL -> млн. одиниць
B5: 2015-12-31 | E5: 2016-07-31
B6: дол.США | C6: грн. | D6: % | E6: дол.США | F6: грн. | G6: % | H6: Зміна структури
A7: Загальна сума державного та гарантованого державою боргу | B7: =SUM(B8:B15) -> 65505.68611 | C7: 1572180.159 | D7: 1 | E7: 66995.20092 | F7: 1661360.659 | G7: 1 | H7: 0
A8: LIBOR | B8: 8905.883117 | C8: 213747.135 | D8: 0.135956 | E8: 8940.629187 | F8: 221711.5465 | G8: 0.133452 | H8: -0.002504
A9: Ставка МВФ | B9: 12485.72817 | C9: 299665.8042 | D9: 0.190605 | E9: 12554.65679 | F9: 311332.9403 | G9: 0.187396 | H9: -0.003209
A10: Фіксована | B10: 44114.07482 | C10: 1058767.22 | D10: 0.673439 | E10: 45499.91494 | F10: 1128316.173 | G10: 0.679152 | H10: 0.005713
H11: =G11-D11 -> 0
H12: 0
H13: 0
H17: =VALVAL -> млн. одиниць
B18: 2015-12-31 | E18: 2016-07-31
B19: дол.США | C19: грн. | D19: % | E19: дол.США | F19: грн. | G19: % | H19: Зміна структури
A20: Загальна сума державного та гарантованого державою боргу | B20: =B$25+B$21 -> 65505.68611 | C20: 1572180.159 | D20: 0.999999 | E20: 66995.20092 | F20: 1661360.659 | G20: 1 | H20: 0
A21: Державний борг | B21: =SUM(B$22:B$24) -> 55593.10503 | C21: 1334271.601 | D21: 0.848675 | E21: 57559.03777 | F21: 1427360.761 | G21: 0.859152 | H21: 0.010476
A22: LIBOR | B22: 6302.656922 | C22: 151267.97 | D22: 0.096215 | E22: 6588.216583 | F22: 163375.9388 | G22: 0.098339 | H22: 0.002123
A23: Ставка МВФ | B23: 7043.516065 | C23: 169049.0836 | D23: 0.107525 | E23: 7082.400447 | F23: 175630.8111 | G23: 0.105715 | H23: -0.00181
A24: Фіксована | B24: 42246.93204 | C24: 1013954.548 | D24: 0.644935 | E24: 43888.42074 | F24: 1088354.011 | G24: 0.655098 | H24: 0.010163
A25: Гарантований державою борг | B25: =SUM(B$26:B$28) -> 9912.581084 | C25: 237908.5577 | D25: 0.151324 | E25: 9436.163143 | F25: 233999.8986 | G25: 0.140848 | H25: -0.010476
A26: LIBOR | B26: 2603.226196 | C26: 62479.16505 | D26: 0.03974 | E26: 2352.412603 | F26: 58335.60763 | G26: 0.035113 | H26: -0.004627
A27: Ставка МВФ | B27: 5442.21211 | C27: 130616.7206 | D27: 0.08308 | E27: 5472.256345 | F27: 135702.1292 | G27: 0.081681 | H27: -0.001399
A28: Фіксована | B28: 1867.142779 | C28: 44812.67207 | D28: 0.028504 | E28: 1611.494195 | F28: 39962.16178 | G28: 0.024054 | H28: -0.00445

Sheet RATE (2)
A2: ="Державний та гарантований державою борг України за станом на " & TEXT(DREPORTDATE,"dd.MM.yyyy") -> Державний та гарантований державою борг України за станом на 31.07.2016
A3: (за видами відсоткових ставок)
D5: =VALVAL -> млн. одиниць
B6: дол.США | C6: грн. | D6: %
A7: Загальна сума державного та гарантованого державою боргу | B7: =SUM(B8:B18) -> 66995.21092 | C7: 1661360.907 | D7: 1
A8: LIBOR | B8: 8940.629187 | C8: 221711.5465 | D8: 0.133452
A9: Ставка МВФ | B9: 12554.65679 | C9: 311332.9403 | D9: 0.187396
A10: Фіксована | B10: 45499.92494 | C10: 1128316.421 | D10: 0.679152
A19: В тому числі:
B20: ="Державний борг України за станом на " & TEXT(DREPORTDATE,"dd.MM.yyyy") -> Державний борг України за станом на 31.07.2016 | D20: =VALVAL -> млн. одиниць
B21: дол.США | C21: грн. | D21: %
A22: Загальна сума державного та гарантованого державою боргу | B22: =B$27+B$23 -> 66995.21092 | C22: 1661360.907 | D22: 1
A23: Державний борг | B23: =SUM(B$24:B$26) -> 57559.04777 | C23: 1427361.009 | D23: 0.859152
A24: LIBOR | B24: 6588.216583 | C24: 163375.9388 | D24: 0.098339
A25: Ставка МВФ | B25: 7082.400447 | C25: 175630.8111 | D25: 0.105715
A26: Фіксована | B26: 43888.43074 | C26: 1088354.259 | D26: 0.655098
A27: Гарантований державою борг | B27: =SUM(B$28:B$30) -> 9436.163143 | C27: 233999.8986 | D27: 0.140848
A28: LIBOR | B28: 2352.412603 | C28: 58335.60763 | D28: 0.035113
A29: Ставка МВФ | B29: 5472.256345 | C29: 135702.1292 | D29: 0.081681
A30: Фіксована | B30: 1611.494195 | C30: 39962.16178 | D30: 0.024054

Sheet CUR_M
A2: ="Державний та гарантований державою борг України за станом на " & TEXT(DREPORTDATE,"dd.MM.yyyy") -> Державний та гарантований державою борг України за станом на 31.07.2016
A3: (в розрізі валют погашеня)
D5: =VALVAL -> млн. одиниць
B6: дол.США | C6: грн. | D6: %
A7: Загальна сума державного та гарантованого державою боргу | B7: =SUM(B8:B26) -> 66995.21092 | C7: 1661360.907 | D7: 1
A8: Долар США | B8: 30213.29235 | C8: 749235.3872 | D8: 0.450977
A9: ЄВРО | B9: 3913.817488 | C9: 97055.64449 | D9: 0.058419
A10: Канадський долар | B10: 303.9397047 | C10: 7537.1588 | D10: 0.004537
A11: СПЗ | B11: 12554.65679 | C11: 311332.9403 | D11: 0.187396
A12: Українська гривня | B12: 19392.03961 | C12: 480887.7542 | D12: 0.289454
A13: Японська єна | B13: 617.4649704 | C13: 15312.0223 | D13: 0.009217

Sheet CUR (hidden)
A2: ="Державний та гарантований державою борг України за станом на " & TEXT(DREPORTDATE,"dd.MM.yyyy") -> Державний та гарантований державою борг України за станом на 31.07.2016
A3: (в розрізі валют погашеня)
D5: =VALVAL -> млн. одиниць
B6: дол.США | C6: грн. | D6: %
A7: Загальна сума державного та гарантованого державою боргу | B7: =SUM(B8:B18) -> 66995.20092 | C7: 1661360.659 | D7: 1
A8: Долар США | B8: 30213.28235 | C8: 749235.1393 | D8: 0.450977
A9: ЄВРО | B9: 3913.817488 | C9: 97055.64449 | D9: 0.058419
A10: Канадський долар | B10: 303.9397047 | C10: 7537.1588 | D10: 0.004537
A11: СПЗ | B11: 12554.65679 | C11: 311332.9403 | D11: 0.187396
A12: Українська гривня | B12: 19392.03961 | C12: 480887.7542 | D12: 0.289454
A13: Японська єна | B13: 617.4649704 | C13: 15312.0223 | D13: 0.009217
A20: В тому числі:
B21: ="Державний борг України за станом на " & TEXT(DREPORTDATE,"dd.MM.yyyy") -> Державний борг України за станом на 31.07.2016 | D21: =VALVAL -> млн. одиниць
B22: дол.США | C22: грн. | D22: %
A23: Загальна сума державного та гарантованого державою боргу | B23: =B$31+B$24 -> 66995.20092 | C23: 1661360.659 | D23: 1
A24: Державний борг | B24: =SUM(B$25:B$30) -> 57559.03777 | C24: 1427360.761 | D24: 0.859152
A25: Долар США | B25: 27161.25436 | C25: 673550.3266 | D25: 0.405421
A26: ЄВРО | B26: 3820.083922 | C26: 94731.22039 | D26: 0.05702
A27: Канадський долар | B27: 303.9397047 | C27: 7537.1588 | D27: 0.004537
A28: СПЗ | B28: 7082.400447 | C28: 175630.8111 | D28: 0.105715
A29: Українська гривня | B29: 18573.89436 | C29: 460599.2215 | D29: 0.277242
A30: Японська єна | B30: 617.4649704 | C30: 15312.0223 | D30: 0.009217
A31: Гарантований державою борг | B31: =SUM(B$32:B$35) -> 9436.163143 | C31: 233999.8986 | D31: 0.140848
A32: Долар США | B32: 3052.027988 | C32: 75684.81265 | D32: 0.045556
A33: ЄВРО | B33: 93.73356633 | C33: 2324.424099 | D33: 0.001399
A34: СПЗ | B34: 5472.256345 | C34: 135702.1292 | D34: 0.081681
A35: Українська гривня | B35: 818.145244 | C35: 20288.53266 | D35: 0.012212

Sheet CUR_CMP (hidden)
A2: Валютна структура державного боргу на кінець попереднього року та звітну дату
H5: =VALVAL -> млн. одиниць
B6: 2015-12-31 | E6: 2016-07-31
B7: дол.США | C7: грн. | D7: % | E7: дол.США | F7: грн. | G7: % | H7: Зміна структури
A8: Загальна сума державного та гарантованого державою боргу | B8: =SUM(B9:B18) -> 65505.68611 | C8: 1572180.159 | D8: 1.000001 | E8: 66995.20092 | F8: 1661360.659 | G8: 1 | H8: 0
A9: Долар США | B9: 29083.06251 | C9: 698012.8986 | D9: 0.443978 | E9: 30213.28235 | F9: 749235.1393 | G9: 0.450977 | H9: 0.006999
A10: ЄВРО | B10: 3899.63574 | C10: 93593.85881 | D10: 0.059531 | E10: 3913.817488 | F10: 97055.64449 | G10: 0.058419 | H10: -0.001112
A11: Канадський долар | B11: 288.0759272 | C11: 6914.0144 | D11: 0.004398 | E11: 303.9397047 | F11: 7537.1588 | G11: 0.004537 | H11: 0.000139
A12: СПЗ | B12: 12485.72817 | C12: 299665.8042 | D12: 0.190605 | E12: 12554.65679 | F12: 311332.9403 | G12: 0.187396 | H12: -0.003209
A13: Українська гривня | B13: 19515.48833 | C13: 468384.7367 | D13: 0.297921 | E13: 19392.03961 | F13: 480887.7542 | G13: 0.289454 | H13: -0.008466
A14: Японська єна | B14: 233.6954364 | C14: 5608.846349 | D14: 0.003568 | E14: 617.4649704 | F14: 15312.0223 | G14: 0.009217 | H14: 0.005649
H21: =VALVAL -> млн. одиниць
B22: 2015-12-31 | E22: 2016-07-31
B23: дол.США | C23: грн. | D23: % | E23: дол.США | F23: грн. | G23: % | H23: Зміна структури
A24: Загальна сума державного та гарантованого державою боргу | B24: =B$32+B$25 -> 65505.68611 | C24: 1572180.159 | D24: 0.999999 | E24: 66995.20092 | F24: 1661360.659 | G24: 1 | H24: 1e-06
A25: Державний борг | B25: =SUM(B$26:B$31) -> 55593.10503 | C25: 1334271.601 | D25: 0.848676 | E25: 57559.03777 | F25: 1427360.761 | G25: 0.859152 | H25: 0.010476
A26: Долар США | B26: 25616.86983 | C26: 614821.9623 | D26: 0.391063 | E26: 27161.25436 | F26: 673550.3266 | G26: 0.405421 | H26: 0.014358
A27: ЄВРО | B27: 3789.578552 | C27: 90952.41291 | D27: 0.057851 | E27: 3820.083922 | F27: 94731.22039 | G27: 0.05702 | H27: -0.000831
A28: Канадський долар | B28: 288.0759272 | C28: 6914.0144 | D28: 0.004398 | E28: 303.9397047 | F28: 7537.1588 | G28: 0.004537 | H28: 0.000139
A29: СПЗ | B29: 7043.516065 | C29: 169049.0836 | D29: 0.107525 | E29: 7082.400447 | F29: 175630.8111 | G29: 0.105715 | H29: -0.00181
A30: Українська гривня | B30: 18621.36922 | C30: 446925.2818 | D30: 0.284271 | E30: 18573.89436 | F30: 460599.2215 | G30: 0.277242 | H30: -0.007029
A31: Японська єна | B31: 233.6954364 | C31: 5608.846349 | D31: 0.003568 | E31: 617.4649704 | F31: 15312.0223 | G31: 0.009217 | H31: 0.005649
A32: Гарантований державою борг | B32: =SUM(B$33:B$36) -> 9912.581084 | C32: 237908.5577 | D32: 0.151323 | E32: 9436.163143 | F32: 233999.8986 | G32: 0.140848 | H32: -0.010475
A33: Долар США | B33: 3466.192681 | C33: 83190.9363 | D33: 0.052914 | E33: 3052.027988 | F33: 75684.81265 | G33: 0.045556 | H33: -0.007358
A34: ЄВРО | B34: 110.0571874 | C34: 2641.445906 | D34: 0.00168 | E34: 93.73356633 | F34: 2324.424099 | G34: 0.001399 | H34: -0.000281
A35: СПЗ | B35: 5442.21211 | C35: 130616.7206 | D35: 0.08308 | E35: 5472.256345 | F35: 135702.1292 | G35: 0.081681 | H35: -0.001399
A36: Українська гривня | B36: 894.1191053 | C36: 21459.45491 | D36: 0.013649 | E36: 818.145244 | F36: 20288.53266 | G36: 0.012212 | H36: -0.001437

Sheet CUR_M_EXT (hidden)
A2: Валютна структура боргу на кінець попереднього року та на звітну дату
N4: =VALVAL -> млн. одиниць
B5: 2015-12-31 | H5: 2016-07-31
B6: оріг. | C6: курс до USD | D6: курс до UAH | E6: дол.США | F6: грн. | G6: % | H6: оріг. | I6: курс до USD | J6: курс до UAH | K6: дол.США | L6: грн. | M6: % | N6: Зміна структури
A7: Загальна сума державного та гарантованого державою боргу | E7: =SUM(E8:E23) -> 65505.68611 | F7: 1572180.159 | G7: 1.000001 | K7: =SUM(K8:K23) -> 66995.20092 | L7: 1661360.659 | M7: 1 | N7: 0
A8: Долар США | B8: 29083.06251 | C8: 1 | D8: 24.000667 | E8: 29083.06251 | F8: 698012.8986 | G8: 0.443978 | H8: 30213.28235 | I8: 1 | J8: 24.798204 | K8: 30213.28235 | L8: 749235.1393 | M8: 0.450977 | N8: 0.006999
A9: ЄВРО | B9: 3569.133905 | C9: 1.0926 | D9: 26.223129 | E9: 3899.63574 | F9: 93593.85881 | G9: 0.059531 | H9: 3529.141138 | I9: 1.109 | J9: 27.501208 | K9: 3913.817488 | L9: 97055.64449 | M9: 0.058419 | N9: -0.001112
A10: Канадський долар | B10: 400 | C10: 0.72019 | D10: 17.285036 | E10: 288.0759272 | F10: 6914.0144 | G10: 0.004398 | H10: 400 | I10: 0.759849 | J10: 18.842897 | K10: 303.9397047 | L10: 7537.1588 | M10: 0.004537 | N10: 0.000139
A11: СПЗ | B11: 9010.213407 | C11: 1.385731 | D11: 33.258458 | E11: 12485.72817 | F11: 299665.8042 | G11: 0.190605 | H11: 9010.213407 | I11: 1.393381 | J11: 34.553337 | K11: 12554.65679 | L11: 311332.9403 | M11: 0.187396 | N11: -0.003209
A12: Українська гривня | B12: 468384.7367 | C12: 0.041666 | D12: 1 | E12: 19515.48833 | F12: 468384.7367 | G12: 0.297921 | H12: 480887.7542 | I12: 0.040326 | J12: 1 | K12: 19392.03961 | L12: 480887.7542 | M12: 0.289454 | N12: -0.008466
A13: Японська єна | B13: 28160.662 | C13: 0.008299 | D13: 0.199173 | E13: 233.6954364 | F13: 5608.846349 | G13: 0.003568 | H13: 64664.004 | I13: 0.009549 | J13: 0.236794 | K13: 617.4649704 | L13: 15312.0223 | M13: 0.009217 | N13: 0.005649

Sheet CUR_CMP_EXT (hidden)
A2: Валютна структура боргу на кінець попереднього року та на звітну дату (розширений)
N4: =VALVAL -> млн. одиниць
B5: 2015-12-31 | H5: 2016-07-31
B6: оріг. | C6: курс до USD | D6: курс до UAH | E6: дол.США | F6: грн. | G6: % | H6: оріг. | I6: курс до USD | J6: курс до UAH | K6: дол.США | L6: грн. | M6: % | N6: Зміна структури
A7: Загальна сума державного та гарантованого державою боргу | E7: =SUM(E8:E24) -> 65505.68611 | F7: 1572180.159 | G7: 1.000001 | K7: =SUM(K8:K24) -> 66995.20092 | L7: 1661360.659 | M7: 1 | N7: 0
A8: Долар США | B8: 29083.06251 | C8: 1 | D8: 24.000667 | E8: 29083.06251 | F8: 698012.8986 | G8: 0.443978 | H8: 30213.28235 | I8: 1 | J8: 24.798204 | K8: 30213.28235 | L8: 749235.1393 | M8: 0.450977 | N8: 0.006999
A9: ЄВРО | B9: 3569.133905 | C9: 1.0926 | D9: 26.223129 | E9: 3899.63574 | F9: 93593.85881 | G9: 0.059531 | H9: 3529.141138 | I9: 1.109 | J9: 27.501208 | K9: 3913.817488 | L9: 97055.64449 | M9: 0.058419 | N9: -0.001112
A10: Канадський долар | B10: 400 | C10: 0.72019 | D10: 17.285036 | E10: 288.0759272 | F10: 6914.0144 | G10: 0.004398 | H10: 400 | I10: 0.759849 | J10: 18.842897 | K10: 303.9397047 | L10: 7537.1588 | M10: 0.004537 | N10: 0.000139
A11: СПЗ | B11: 9010.213407 | C11: 1.385731 | D11: 33.258458 | E11: 12485.72817 | F11: 299665.8042 | G11: 0.190605 | H11: 9010.213407 | I11: 1.393381 | J11: 34.553337 | K11: 12554.65679 | L11: 311332.9403 | M11: 0.187396 | N11: -0.003209
A12: Українська гривня | B12: 468384.7367 | C12: 0.041666 | D12: 1 | E12: 19515.48833 | F12: 468384.7367 | G12: 0.297921 | H12: 480887.7542 | I12: 0.040326 | J12: 1 | K12: 19392.03961 | L12: 480887.7542 | M12: 0.289454 | N12: -0.008466
A13: Японська єна | B13: 28160.662 | C13: 0.008299 | D13: 0.199173 | E13: 233.6954364 | F13: 5608.846349 | G13: 0.003568 | H13: 64664.004 | I13: 0.009549 | J13: 0.236794 | K13: 617.4649704 | L13: 15312.0223 | M13: 0.009217 | N13: 0.005649
N23: =VALVAL -> млн. одиниць
B24: 2015-12-31 | H24: 2016-07-31
B25: оріг. | C25: курс до USD | D25: курс до UAH | E25: дол.США | F25: грн. | G25: % | H25: оріг. | I25: курс до USD | J25: курс до UAH | K25: дол.США | L25: грн. | M25: % | N25: Зміна структури
A26: Загальна сума державного та гарантованого державою боргу | B26: =B$34+B$27 -> 538607.8085 | C26: 7.768483 | D26: 186.448717 | E26: 65505.68611 | F26: 1572180.159 | G26: 0.999999 | H26: 588704.3951 | I26: 7.854812 | J26: 194.785189 | K26: 66995.20092 | L26: 1661360.659 | M26: 1 | N26: 1e-06
A27: Державний борг | B27: =SUM(B$28:B$33) -> 509654.1079 | C27: 4.248486 | D27: 101.966463 | E27: 55593.10503 | F27: 1334271.601 | G27: 0.848676 | H27: 561351.9902 | I27: 4.312105 | J27: 106.93244 | K27: 57559.03777 | L27: 1427360.761 | M27: 0.859152 | N27: 0.010476
A28: Долар США | B28: 25616.86983 | C28: 1 | D28: 24.000667 | E28: 25616.86983 | F28: 614821.9623 | G28: 0.391063 | H28: 27161.25436 | I28: 1 | J28: 24.798204 | K28: 27161.25436 | L28: 673550.3266 | M28: 0.405421 | N28: 0.014358
A29: ЄВРО | B29: 3468.404282 | C29: 1.0926 | D29: 26.223129 | E29: 3789.578552 | F29: 90952.41291 | G29: 0.057851 | H29: 3444.620338 | I29: 1.109 | J29: 27.501208 | K29: 3820.083922 | L29: 94731.22039 | M29: 0.05702 | N29: -0.000831
A30: Канадський долар | B30: 400 | C30: 0.72019 | D30: 17.285036 | E30: 288.0759272 | F30: 6914.0144 | G30: 0.004398 | H30: 400 | I30: 0.759849 | J30: 18.842897 | K30: 303.9397047 | L30: 7537.1588 | M30: 0.004537 | N30: 0.000139
A31: СПЗ | B31: 5082.89 | C31: 1.385731 | D31: 33.258458 | E31: 7043.516065 | F31: 169049.0836 | G31: 0.107525 | H31: 5082.89 | I31: 1.393381 | J31: 34.553337 | K31: 7082.400447 | L31: 175630.8111 | M31: 0.105715 | N31: -0.00181
A32: Українська гривня | B32: 446925.2818 | C32: 0.041666 | D32: 1 | E32: 18621.36922 | F32: 446925.2818 | G32: 0.284271 | H32: 460599.2215 | I32: 0.040326 | J32: 1 | K32: 18573.89436 | L32: 460599.2215 | M32: 0.277242 | N32: -0.007029
A33: Японська єна | B33: 28160.662 | C33: 0.008299 | D33: 0.199173 | E33: 233.6954364 | F33: 5608.846349 | G33: 0.003568 | H33: 64664.004 | I33: 0.009549 | J33: 0.236794 | K33: 617.4649704 | L33: 15312.0223 | M33: 0.009217 | N33: 0.005649
A34: Гарантований державою борг | B34: =SUM(B$35:B$38) -> 28953.70062 | C34: 3.519997 | D34: 84.482254 | E34: 9912.581084 | F34: 237908.5577 | G34: 0.151323 | H34: 27352.40486 | I34: 3.542707 | J34: 87.852749 | K34: 9436.163143 | L34: 233999.8986 | M34: 0.140848 | N34: -0.010475
A35: Долар США | B35: 3466.192681 | C35: 1 | D35: 24.000667 | E35: 3466.192681 | F35: 83190.9363 | G35: 0.052914 | H35: 3052.027988 | I35: 1 | J35: 24.798204 | K35: 3052.027988 | L35: 75684.81265 | M35: 0.045556 | N35: -0.007358
A36: ЄВРО | B36: 100.7296233 | C36: 1.0926 | D36: 26.223129 | E36: 110.0571874 | F36: 2641.445906 | G36: 0.00168 | H36: 84.52079994 | I36: 1.109 | J36: 27.501208 | K36: 93.73356633 | L36: 2324.424099 | M36: 0.001399 | N36: -0.000281
A37: СПЗ | B37: 3927.323407 | C37: 1.385731 | D37: 33.258458 | E37: 5442.21211 | F37: 130616.7206 | G37: 0.08308 | H37: 3927.323407 | I37: 1.393381 | J37: 34.553337 | K37: 5472.256345 | L37: 135702.1292 | M37: 0.081681 | N37: -0.001399
A38: Українська гривня | B38: 21459.45491 | C38: 0.041666 | D38: 1 | E38: 894.1191053 | F38: 21459.45491 | G38: 0.013649 | H38: 20288.53266 | I38: 0.040326 | J38: 1 | K38: 818.145244 | L38: 20288.53266 | M38: 0.012212 | N38: -0.001437

Sheet DKT1 (hidden)
A2: ="Державний та гарантований державою борг України за станом на " & TEXT(DREPORTDATE,"dd.MM.yyyy") -> Державний та гарантований державою борг України за станом на 31.07.2016
A3: (за типом кредитора)
D5: =VALVAL -> млн. одиниць
B6: дол.США | C6: грн. | D6: % | E6: FORMAT
A7: Загальна сума державного та гарантованого державою боргу | B7: =B$18+B$8 -> 66995.20092 | C7: 1661360.659 | D7: 1 | E7: 3
A8: Державний борг | B8: =B$9+B$12 -> 57559.03777 | C8: 1427360.761 | D8: 0.859152 | E8: 3
A9: Внутрішній борг | B9: =SUM(B$10:B$11) -> 21980.45436 | C9: 545075.7913 | D9: 0.32809 | E9: 2
A10: 1. Заборгованість за випущеними цінними паперами на внутрішньому ринку | B10: 21876.45795 | C10: 542496.8672 | D10: 0.326538 | E10: 1
A11: 2. Заборгованість перед банківськими та іншими фінансовими установами | B11: 103.9964099 | C11: 2578.924189 | D11: 0.001552
A12: Зовнішній борг | B12: =SUM(B$13:B$17) -> 35578.58341 | C12: 882284.9694 | D12: 0.531062
A13: 1. Заборгованість за позиками, одержаними від міжнародних фінансових організацій | B13: 14058.27977 | C13: 348620.0896 | D13: 0.20984
A14: 2. Заборгованість за позиками, одержаними від органів управління іноземних держав | B14: 1765.84553 | C14: 43789.7977 | D14: 0.026358
A15: 3. Заборгованість за позиками, одержаними від іноземних комерційних банків, інших іноземних фінансових установ | B15: 0.05670228 | C15: 1.40611476 | D15: 1e-06
A16: 4. Заборгованість за випущеними цінними паперами на зовнішньому ринку | B16: 18043.33 | C16: 447442.1782 | D16: 0.269323
A17: 5. Заборгованість, не віднесена до інших категорій | B17: 1711.071408 | C17: 42431.49784 | D17: 0.02554
A18: Гарантований державою борг | B18: =B$19+B$23 -> 9436.163143 | C18: 233999.8986 | D18: 0.140848
A19: Внутрішній борг | B19: =SUM(B$20:B$22) -> 818.145244 | C19: 20288.53266 | D19: 0.012212
A20: 1. Заборгованість за випущеними цінними паперами на внутрішньому ринку | B20: 653.2735838 | C20: 16200.0116 | D20: 0.009751
A21: 2. Заборгованість перед банківськими та іншими фінансовими установами | B21: 164.8331634 | C21: 4087.566413 | D21: 0.00246
A22: 3. Заборгованість, не віднесена до інших категорій | B22: 0.03849674 | C22: 0.95465 | D22: 1e-06
A23: Зовнішній борг | B23: =SUM(B$24:B$27) -> 8618.017899 | C23: 213711.3659 | D23: 0.128636
A24: 1. Заборгованість за позиками, одержаними від міжнародних фінансових організацій | B24: 6049.388589 | C24: 150013.9723 | D24: 0.090296
A25: 2. Заборгованість за позиками, одержаними від органів управління іноземних держав | B25: 146.21678 | C25: 3625.913538 | D25: 0.002182
A26: 3. Заборгованість за позиками, одержаними від іноземних комерційних банків, інших іноземних фінансових установ | B26: 2308.930865 | C26: 57257.33862 | D26: 0.034464
A27: 5. Заборгованість, не віднесена до інших категорій | B27: 113.4816654 | C27: 2814.141488 | D27: 0.001694

Sheet CUR (2)
A2: ="Державний та гарантований державою борг України за станом на " & TEXT(DREPORTDATE,"dd.MM.yyyy") -> Державний та гарантований державою борг України за станом на 31.07.2016
A3: (в розрізі валют погашеня)
D5: =VALVAL -> млн. одиниць
B6: дол.США | C6: грн. | D6: %
A7: Загальна сума державного та гарантованого державою боргу | B7: =SUM(B8:B18) -> 66995.21092 | C7: 1661360.907 | D7: 1
A8: Долар США | B8: 30213.29235 | C8: 749235.3872 | D8: 0.450977
A9: ЄВРО | B9: 3913.817488 | C9: 97055.64449 | D9: 0.058419
A10: Канадський долар | B10: 303.9397047 | C10: 7537.1588 | D10: 0.004537
A11: СПЗ | B11: 12554.65679 | C11: 311332.9403 | D11: 0.187396
A12: Українська гривня | B12: 19392.03961 | C12: 480887.7542 | D12: 0.289454
A13: Японська єна | B13: 617.4649704 | C13: 15312.0223 | D13: 0.009217
A20: В тому числі:
B21: ="Державний борг України за станом на " & TEXT(DREPORTDATE,"dd.MM.yyyy") -> Державний борг України за станом на 31.07.2016 | D21: =VALVAL -> млн. одиниць
B22: дол.США | C22: грн. | D22: %
A23: Загальна сума державного та гарантованого державою боргу | B23: =B$31+B$24 -> 66995.21092 | C23: 1661360.907 | D23: 1
A24: Державний борг | B24: =SUM(B$25:B$30) -> 57559.04777 | C24: 1427361.009 | D24: 0.859152
A25: Долар США | B25: 27161.26436 | C25: 673550.5746 | D25: 0.405421
A26: ЄВРО | B26: 3820.083922 | C26: 94731.22039 | D26: 0.05702
A27: Канадський долар | B27: 303.9397047 | C27: 7537.1588 | D27: 0.004537
A28: СПЗ | B28: 7082.400447 | C28: 175630.8111 | D28: 0.105715
A29: Українська гривня | B29: 18573.89436 | C29: 460599.2215 | D29: 0.277242
A30: Японська єна | B30: 617.4649704 | C30: 15312.0223 | D30: 0.009217
A31: Гарантований державою борг | B31: =SUM(B$32:B$35) -> 9436.163143 | C31: 233999.8986 | D31: 0.140848
A32: Долар США | B32: 3052.027988 | C32: 75684.81265 | D32: 0.045556
A33: ЄВРО | B33: 93.73356633 | C33: 2324.424099 | D33: 0.001399
A34: СПЗ | B34: 5472.256345 | C34: 135702.1292 | D34: 0.081681
A35: Українська гривня | B35: 818.145244 | C35: 20288.53266 | D35: 0.012212

Sheet DKR (hidden)
A2: ="Державний та гарантований державою борг України за станом на " & TEXT(DREPORTDATE,"dd.MM.yyyy") -> Державний та гарантований державою борг України за станом на 31.07.2016
A3: (за типом кредитора)
D5: =VALVAL -> млн. одиниць
B6: дол.США | C6: грн. | D6: %
A7: Загальна сума державного та гарантованого державою боргу | B7: =SUM(B8:B46) -> 66995.20092 | C7: 1661360.659 | D7: 1.000001
A8: Внутрішній борг за випущеними цінними паперами | B8: 22529.73154 | C8: 558696.8788 | D8: 0.336289
A9: Внутрішній борг перед банківськими та іншими фінансовими установами | B9: 268.8295733 | C9: 6666.490602 | D9: 0.004013
A10: Внутрішня заборгованість, не віднесена до інших категорій | B10: 0.03849674 | C10: 0.95465 | D10: 1e-06
A11: Зовнішній борг за випущеними цінними паперами | B11: 18043.33 | C11: 447442.1782 | D11: 0.269323
A12: Зовнішній борг за позиками, одержаними від іноземних комерційних банків, інших іноземних фінансових установ | B12: 2308.987568 | C12: 57258.74474 | D12: 0.034465
A13: Зовнішній борг за позиками, одержаними від міжнародних фінансових організацій | B13: 20107.66836 | C13: 498634.0619 | D13: 0.300136
A14: Зовнішній борг за позиками, одержаними від органів управління іноземних держав | B14: 1912.06231 | C14: 47415.71123 | D14: 0.02854
A15: Зовнішній борг, не віднесений до інших категорій | B15: 1824.553073 | C15: 45245.63932 | D15: 0.027234

Sheet DKR2 (hidden)
A1: ="Державний борг України за станом на " & TEXT(DREPORTDATE,"dd.MM.yyyy") -> Державний борг України за станом на 31.07.2016
A2: ="Гарантований державою борг України за станом на " & TEXT(DREPORTDATE,"dd.MM.yyyy") -> Гарантований державою борг України за станом на 31.07.2016
A3: ="Державний та гарантований державою борг України за станом на " & TEXT(DREPORTDATE,"dd.MM.yyyy") -> Державний та гарантований державою борг України за станом на 31.07.2016
A4: (за типом кредитора)
D6: =VALVAL -> млн. одиниць
B7: дол.США | C7: грн. | D7: %
A8: Загальна сума державного та гарантованого державою боргу | B8: =B$17+B$9 -> 66995.20092 | C8: 1661360.659 | D8: 2.053076
A9: Державний борг | B9: =SUM(B$10:B$16) -> 57559.03777 | C9: 1427360.761 | D9: 1.259152
A10: Внутрішній борг за випущеними цінними паперами | B10: 21876.45795 | C10: 542496.8672 | D10: 0.326538
A11: Внутрішній борг перед банківськими та іншими фінансовими установами | B11: 103.9964099 | C11: 2578.924189 | D11: 0.001552
A12: Зовнішній борг за випущеними цінними паперами | B12: 18043.33 | C12: 447442.1782 | D12: 0.269323
A13: Зовнішній борг за позиками, одержаними від іноземних комерційних банків, інших іноземних фінансових установ | B13: 0.05670228 | C13: 1.40611476 | D13: 1e-06
A14: Зовнішній борг за позиками, одержаними від міжнародних фінансових організацій | B14: 14058.27977 | C14: 348620.0896 | D14: 0.20984
A15: Зовнішній борг за позиками, одержаними від органів управління іноземних держав | B15: 1765.84553 | C15: 43789.7977 | D15: 0.026358
A16: Зовнішній борг, не віднесений до інших категорій | B16: 1711.071408 | C16: 42431.49784 | D16: 0.02554
A17: Гарантований державою борг | B17: =SUM(B$18:B$24) -> 9436.163143 | C17: 233999.8986 | D17: 0.140848
A18: Внутрішній борг за випущеними цінними паперами | B18: 653.2735838 | C18: 16200.0116 | D18: 0.009751
A19: Внутрішній борг перед банківськими та іншими фінансовими установами | B19: 164.8331634 | C19: 4087.566413 | D19: 0.00246
A20: Внутрішня заборгованість, не віднесена до інших категорій | B20: 0.03849674 | C20: 0.95465 | D20: 1e-06
A21: Зовнішній борг за позиками, одержаними від іноземних комерційних банків, інших іноземних фінансових установ | B21: 2308.930865 | C21: 57257.33862 | D21: 0.034464
A22: Зовнішній борг за позиками, одержаними від міжнародних фінансових організацій | B22: 6049.388589 | C22: 150013.9723 | D22: 0.090296
A23: Зовнішній борг за позиками, одержаними від органів управління іноземних держав | B23: 146.21678 | C23: 3625.913538 | D23: 0.002182
A24: Зовнішній борг, не віднесений до інших категорій | B24: 113.4816654 | C24: 2814.141488 | D24: 0.001694

Sheet YT_ALL (hidden)
A2: Державний та гарантований державою борг України за останні 5 років
A4: =$A$2 & " (" &G4 & ")" -> Державний та гарантований державою борг України за останні 5 років (млн. грн) | G4: =VALUAH -> млн. грн
B5: 2011-12-31 | C5: 2012-12-31 | D5: 2013-12-31 | E5: 2014-12-31 | F5: 2015-12-31 | G5: 2016-07-31
A6: Загальна сума державного та гарантованого державою боргу | B6: =SUM(B$7+ B$8) -> 473185.1846 | C6: 515510.8331 | D6: 584786.5709 | E6: 1100833.217 | F6: 1572180.159 | G6: 1661360.659
A7: Внутрішній борг | B7: 173770.1995 | C7: 206510.7136 | D7: 284088.7255 | E7: 488866.9074 | F7: 529460.578 | G7: 565364.324
A8: Зовнішній борг | B8: 299414.9851 | C8: 309000.1195 | D8: 300697.8455 | E8: 611966.3093 | F8: 1042719.581 | G8: 1095996.335
A10: =$A$2 & " (" &G10 & ")" -> Державний та гарантований державою борг України за останні 5 років (млн. дол. США) | G10: =VALUSD -> млн. дол. США
B11: 2011-12-31 | C11: 2012-12-31 | D11: 2013-12-31 | E11: 2014-12-31 | F11: 2015-12-31 | G11: 2016-07-31
A12: Загальна сума державного та гарантованого державою боргу | B12: =SUM(B$13+ B$14) -> 59223.65823 | C12: 64495.28751 | D12: 73162.33841 | E12: 69811.92296 | F12: 65505.68611 | G12: 66995.20092
A13: Внутрішній борг | B13: 21749.00492 | C13: 25836.44609 | D13: 35542.1901 | E13: 31002.64269 | F13: 22060.24433 | G13: 22798.59961
A14: Зовнішній борг | B14: 37474.65332 | C14: 38658.84142 | D14: 37620.14831 | E14: 38809.28028 | F14: 43445.44179 | G14: 44196.60131
G16: %
B17: 2011-12-31 | C17: 2012-12-31 | D17: 2013-12-31 | E17: 2014-12-31 | F17: 2015-12-31 | G17: 2016-07-31
A18: Загальна сума державного та гарантованого державою боргу | B18: =SUM(B$19+ B$20) -> 1 | C18: 1 | D18: 1 | E18: 1 | F18: 1 | G18: 1
A19: Внутрішній борг | B19: 0.367235 | C19: 0.400594 | D19: 0.485799 | E19: 0.444088 | F19: 0.336768 | G19: 0.340302
A20: Зовнішній борг | B20: 0.632765 | C20: 0.599406 | D20: 0.514201 | E20: 0.555912 | F20: 0.663232 | G20: 0.659698

Sheet YTM_ALL (hidden)
A2: Державний та гарантований державою борг України за останні 5 років
G4: млрд. грн.
B5: =YT_ALL!B5 -> 2011-12-31 | C5: =YT_ALL!C5 -> 2012-12-31 | D5: =YT_ALL!D5 -> 2013-12-31 | E5: =YT_ALL!E5 -> 2014-12-31 | F5: =YT_ALL!F5 -> 2015-12-31 | G5: =YT_ALL!G5 -> 2016-07-31
A6: Загальна сума державного та гарантованого державою боргу | B6: =SUM(B$7+ B$8) -> 473.1851846 | C6: 515.5108331 | D6: 584.7865709 | E6: 1100.833217 | F6: 1572.180159 | G6: 1661.360659
A7: =YT_ALL!A7 -> Внутрішній борг | B7: =YT_ALL!B7/DMLMLR -> 173.7701995 | C7: =YT_ALL!C7/DMLMLR -> 206.5107136 | D7: =YT_ALL!D7/DMLMLR -> 284.0887255 | E7: =YT_ALL!E7/DMLMLR -> 488.8669074 | F7: =YT_ALL!F7/DMLMLR -> 529.460578 | G7: =YT_ALL!G7/DMLMLR -> 565.364324
A8: =YT_ALL!A8 -> Зовнішній борг | B8: =YT_ALL!B8/DMLMLR -> 299.4149851 | C8: =YT_ALL!C8/DMLMLR -> 309.0001195 | D8: =YT_ALL!D8/DMLMLR -> 300.6978455 | E8: =YT_ALL!E8/DMLMLR -> 611.9663093 | F8: =YT_ALL!F8/DMLMLR -> 1042.719581 | G8: =YT_ALL!G8/DMLMLR -> 1095.996335
G10: млрд. дол.США
B11: =YT_ALL!B11 -> 2011-12-31 | C11: =YT_ALL!C11 -> 2012-12-31 | D11: =YT_ALL!D11 -> 2013-12-31 | E11: =YT_ALL!E11 -> 2014-12-31 | F11: =YT_ALL!F11 -> 2015-12-31 | G11: =YT_ALL!G11 -> 2016-07-31
A12: Загальна сума державного та гарантованого державою боргу | B12: =SUM(B$13+ B$14) -> 59.22365823 | C12: 64.49528751 | D12: 73.16233841 | E12: 69.81192296 | F12: 65.50568611 | G12: 66.99520092
A13: =YT_ALL!A13 -> Внутрішній борг | B13: =YT_ALL!B13/DMLMLR -> 21.74900492 | C13: =YT_ALL!C13/DMLMLR -> 25.83644609 | D13: =YT_ALL!D13/DMLMLR -> 35.5421901 | E13: =YT_ALL!E13/DMLMLR -> 31.00264269 | F13: =YT_ALL!F13/DMLMLR -> 22.06024433 | G13: =YT_ALL!G13/DMLMLR -> 22.79859961
A14: =YT_ALL!A14 -> Зовнішній борг | B14: =YT_ALL!B14/DMLMLR -> 37.47465332 | C14: =YT_ALL!C14/DMLMLR -> 38.65884142 | D14: =YT_ALL!D14/DMLMLR -> 37.62014831 | E14: =YT_ALL!E14/DMLMLR -> 38.80928028 | F14: =YT_ALL!F14/DMLMLR -> 43.44544179 | G14: =YT_ALL!G14/DMLMLR -> 44.19660131
G16: %
B17: =YT_ALL!B17 -> 2011-12-31 | C17: =YT_ALL!C17 -> 2012-12-31 | D17: =YT_ALL!D17 -> 2013-12-31 | E17: =YT_ALL!E17 -> 2014-12-31 | F17: =YT_ALL!F17 -> 2015-12-31 | G17: =YT_ALL!G17 -> 2016-07-31
A18: Загальна сума державного та гарантованого державою боргу | B18: =SUM(B$19+ B$20) -> 1 | C18: 1 | D18: 1 | E18: 1 | F18: 1 | G18: 1
A19: =YT_ALL!A19 -> Внутрішній борг | B19: =YT_ALL!B19 -> 0.367235 | C19: =YT_ALL!C19 -> 0.400594 | D19: =YT_ALL!D19 -> 0.485799 | E19: =YT_ALL!E19 -> 0.444088 | F19: =YT_ALL!F19 -> 0.336768 | G19: =YT_ALL!G19 -> 0.340302
A20: =YT_ALL!A20 -> Зовнішній борг | B20: =YT_ALL!B20 -> 0.632765 | C20: =YT_ALL!C20 -> 0.599406 | D20: =YT_ALL!D20 -> 0.514201 | E20: =YT_ALL!E20 -> 0.555912 | F20: =YT_ALL!F20 -> 0.663232 | G20: =YT_ALL!G20 -> 0.659698

Sheet YKM_ALL (hidden)
A2: Державний та гарантований державою борг України за останні 5 років
G4: млрд. грн.
B5: =YT_ALL!B5 -> 2011-12-31 | C5: =YT_ALL!C5 -> 2012-12-31 | D5: =YT_ALL!D5 -> 2013-12-31 | E5: =YT_ALL!E5 -> 2014-12-31 | F5: =YT_ALL!F5 -> 2015-12-31 | G5: =YT_ALL!G5 -> 2016-07-31
A6: Загальна сума державного та гарантованого державою боргу | B6: =SUM(B$7+ B$8) -> 473.1851846 | C6: 515.5108331 | D6: 584.7865709 | E6: 1100.833217 | F6: 1572.180159 | G6: 1661.360659
A7: =YK_ALL!A7 -> Державний борг | B7: =YK_ALL!B7/DMLMLR -> 357.2738672 | C7: =YK_ALL!C7/DMLMLR -> 399.2182341 | D7: =YK_ALL!D7/DMLMLR -> 480.2186294 | E7: =YK_ALL!E7/DMLMLR -> 947.0304691 | F7: =YK_ALL!F7/DMLMLR -> 1334.271601 | G7: =YK_ALL!G7/DMLMLR -> 1427.360761
A8: =YK_ALL!A8 -> Гарантований державою борг | B8: =YK_ALL!B8/DMLMLR -> 115.9113174 | C8: =YK_ALL!C8/DMLMLR -> 116.292599 | D8: =YK_ALL!D8/DMLMLR -> 104.5679415 | E8: =YK_ALL!E8/DMLMLR -> 153.8027476 | F8: =YK_ALL!F8/DMLMLR -> 237.9085577 | G8: =YK_ALL!G8/DMLMLR -> 233.9998986
G10: млрд. дол.США
B11: =YT_ALL!B11 -> 2011-12-31 | C11: =YT_ALL!C11 -> 2012-12-31 | D11: =YT_ALL!D11 -> 2013-12-31 | E11: =YT_ALL!E11 -> 2014-12-31 | F11: =YT_ALL!F11 -> 2015-12-31 | G11: =YT_ALL!G11 -> 2016-07-31
A12: Загальна сума державного та гарантованого державою боргу | B12: =SUM(B$13+ B$14) -> 59.22365823 | C12: 64.49528751 | D12: 73.16233841 | E12: 69.81192296 | F12: 65.50568611 | G12: 66.99520092
A13: =YK_ALL!A13 -> Державний борг | B13: =YK_ALL!B13/DMLMLR -> 44.71624661 | C13: =YK_ALL!C13/DMLMLR -> 49.945982 | D13: =YK_ALL!D13/DMLMLR -> 60.07989859 | E13: =YK_ALL!E13/DMLMLR -> 60.05816063 | F13: =YK_ALL!F13/DMLMLR -> 55.59310503 | G13: =YK_ALL!G13/DMLMLR -> 57.55903777
A14: =YK_ALL!A14 -> Гарантований державою борг | B14: =YK_ALL!B14/DMLMLR -> 14.50741162 | C14: =YK_ALL!C14/DMLMLR -> 14.54930551 | D14: =YK_ALL!D14/DMLMLR -> 13.08243982 | E14: =YK_ALL!E14/DMLMLR -> 9.753762333 | F14: =YK_ALL!F14/DMLMLR -> 9.912581084 | G14: =YK_ALL!G14/DMLMLR -> 9.436163143
G16: %
B17: =YT_ALL!B17 -> 2011-12-31 | C17: =YT_ALL!C17 -> 2012-12-31 | D17: =YT_ALL!D17 -> 2013-12-31 | E17: =YT_ALL!E17 -> 2014-12-31 | F17: =YT_ALL!F17 -> 2015-12-31 | G17: =YT_ALL!G17 -> 2016-07-31
A18: Загальна сума державного та гарантованого державою боргу | B18: =SUM(B$19+ B$20) -> 1 | C18: 1 | D18: 1 | E18: 1 | F18: 1 | G18: 1
A19: =YK_ALL!A19 -> Державний борг | B19: =YK_ALL!B19 -> 0.75504 | C19: =YK_ALL!C19 -> 0.774413 | D19: =YK_ALL!D19 -> 0.821186 | E19: =YK_ALL!E19 -> 0.860285 | F19: =YK_ALL!F19 -> 0.848676 | G19: =YK_ALL!G19 -> 0.859152
A20: =YK_ALL!A20 -> Гарантований державою борг | B20: =YK_ALL!B20 -> 0.24496 | C20: =YK_ALL!C20 -> 0.225587 | D20: =YK_ALL!D20 -> 0.178814 | E20: =YK_ALL!E20 -> 0.139715 | F20: =YK_ALL!F20 -> 0.151324 | G20: =YK_ALL!G20 -> 0.140848

Sheet YK_ALL (hidden)
A2: Державний та гарантований державою борг України за останні 5 років
G4: =VALUAH -> млн. грн
B5: 2011-12-31 | C5: 2012-12-31 | D5: 2013-12-31 | E5: 2014-12-31 | F5: 2015-12-31 | G5: 2016-07-31
A6: Загальна сума державного та гарантованого державою боргу | B6: =SUM(B$7+ B$8) -> 473185.1846 | C6: 515510.8331 | D6: 584786.5709 | E6: 1100833.217 | F6: 1572180.159 | G6: 1661360.659
A7: Державний борг | B7: 357273.8672 | C7: 399218.2341 | D7: 480218.6294 | E7: 947030.4691 | F7: 1334271.601 | G7: 1427360.761
A8: Гарантований державою борг | B8: 115911.3174 | C8: 116292.599 | D8: 104567.9415 | E8: 153802.7476 | F8: 237908.5577 | G8: 233999.8986
G10: =VALUSD -> млн. дол. США
B11: 2011-12-31 | C11: 2012-12-31 | D11: 2013-12-31 | E11: 2014-12-31 | F11: 2015-12-31 | G11: 2016-07-31
A12: Загальна сума державного та гарантованого державою боргу | B12: =SUM(B$13+ B$14) -> 59223.65823 | C12: 64495.28751 | D12: 73162.33841 | E12: 69811.92296 | F12: 65505.68611 | G12: 66995.20092
A13: Державний борг | B13: 44716.24661 | C13: 49945.982 | D13: 60079.89859 | E13: 60058.16063 | F13: 55593.10503 | G13: 57559.03777
A14: Гарантований державою борг | B14: 14507.41162 | C14: 14549.30551 | D14: 13082.43982 | E14: 9753.762333 | F14: 9912.581084 | G14: 9436.163143
G16: %
B17: 2011-12-31 | C17: 2012-12-31 | D17: 2013-12-31 | E17: 2014-12-31 | F17: 2015-12-31 | G17: 2016-07-31
A18: Загальна сума державного та гарантованого державою боргу | B18: =SUM(B$19+ B$20) -> 1 | C18: 1 | D18: 1 | E18: 1 | F18: 1 | G18: 1
A19: Державний борг | B19: 0.75504 | C19: 0.774413 | D19: 0.821186 | E19: 0.860285 | F19: 0.848676 | G19: 0.859152
A20: Гарантований державою борг | B20: 0.24496 | C20: 0.225587 | D20: 0.178814 | E20: 0.139715 | F20: 0.151324 | G20: 0.140848

Sheet YKT2_UAH
A2: Державний та гарантований державою борг України за останні 5 років
G4: =VALUAH -> млн. грн
B5: 2011-12-31 | C5: 2012-12-31 | D5: 2013-12-31 | E5: 2014-12-31 | F5: 2015-12-31 | G5: 2016-07-31
A6: Загальна сума державного та гарантованого державою боргу | B6: =B$7+B$65 -> 473185.1846 | C6: 515510.8331 | D6: 584786.5709 | E6: 1100833.217 | F6: 1572180.159 | G6: 1661360.907
A7: Державний борг | B7: =B$8+B$33 -> 357273.8672 | C7: 399218.2341 | D7: 480218.6294 | E7: 947030.4691 | F7: 1334271.601 | G7: 1427361.009
A8: Внутрішній борг | B8: =B$9+B$31 -> 161467.0063 | C8: 190299.2977 | D8: 256959.5757 | E8: 461003.6228 | F8: 508001.1231 | G8: 545076.0393
A9: 1. Заборгованість за випущеними цінними паперами на внутрішньому ринку | B9: =SUM(B$10:B$30) -> 158292.9457 | C9: 187257.4897 | D9: 254050.0202 | E9: 458226.3198 | F9: 505356.0727 | G9: 542497.1151
A10: Казначейські зобов'язання | B10: 0 | C10: 826.2324135 | D10: 1598.6 | E10: 88.426 | F10: 98.638 | G10: 0
A11: ОВДП (1 - місячні) | B11: 0 | C11: 0 | D11: 2360.977795 | E11: 0 | F11: 0 | G11: 0
A12: ОВДП (10 - річні) | B12: 15412.189 | C12: 15412.189 | D12: 15742.189 | E12: 50254.465 | F12: 60558.463 | G12: 60558.463
A13: ОВДП (11 - річні) | B13: 3849.981 | C13: 3849.981 | D13: 3849.981 | E13: 3849.981 | F13: 38882.981 | G13: 38882.981
A14: ОВДП (12 - місячні) | B14: 4628.753095 | C14: 14392.81113 | D14: 2958.7168 | E14: 7337.88948 | F14: 8283.710212 | G14: 2704.57
A15: ОВДП (12 - річні) | B15: 1500 | C15: 1500 | D15: 1500 | E15: 1500 | F15: 1500 | G15: 1500
A16: ОВДП (13 - річні) | B16: 0 | C16: 0 | D16: 0 | E16: 2617.63 | F16: 2617.63 | G16: 2617.63
A17: ОВДП (14 - річні) | B17: 0 | C17: 0 | D17: 0 | E17: 3250 | F17: 3250 | G17: 3250
A18: ОВДП (15 - річні) | B18: 0 | C18: 0 | D18: 0 | E18: 15848.84 | F18: 15848.84 | G18: 15848.84
A19: ОВДП (18 - місячні) | B19: 2100 | C19: 5709.035823 | D19: 2803.424855 | E19: 769.31632 | F19: 1048.92516 | G19: 18735.48949
A20: ОВДП (2 - річні) | B20: 6544.268 | C20: 11078.3616 | D20: 20370.80624 | E20: 40907.37357 | F20: 21910.34234 | G20: 49252.23519
A21: ОВДП (3 - місячні) | B21: 650 | C21: 0 | D21: 0 | E21: 0 | F21: 0 | G21: 416
A22: ОВДП (3 - річні) | B22: 28905.564 | C22: 28454.27742 | D22: 34656.49649 | E22: 46585.05481 | F22: 43377.23613 | G22: 34859.32385
A23: ОВДП (4 - річні) | B23: 1598.269 | C23: 1598.269 | D23: 6518.1647 | E23: 2922.18286 | F23: 3845.10672 | G23: 3972.71264
A24: ОВДП (5 - річні) | B24: 27440.7484 | C24: 32665.6933 | D24: 75317.38528 | E24: 131379.7728 | F24: 160233.8121 | G24: 161025.665
A25: ОВДП (6 - місячні) | B25: 2065.224626 | C25: 0 | D25: 553.79 | E25: 170 | F25: 0 | G25: 1086.73
A26: ОВДП (6 - річні) | B26: 9500 | C26: 9500 | D26: 9500 | E26: 27100 | F26: 27100 | G26: 24100
A27: ОВДП (7 - річні) | B27: 24539.001 | C27: 33095.042 | D27: 47143.891 | E27: 54624.791 | F27: 48624.791 | G27: 41039.791
A28: ОВДП (8 - річні) | B28: 14301.198 | C28: 14301.198 | D28: 14301.198 | E28: 31301.198 | F28: 31301.198 | G28: 31301.198
A29: ОВДП (9 - місячні) | B29: 383.350604 | C29: 0 | D29: 0 | E29: 845 | F29: 0 | G29: 196.567
A30: ОВДП (9 - річні) | B30: 14874.399 | C30: 14874.399 | D30: 14874.399 | E30: 36874.399 | F30: 36874.399 | G30: 51148.919
A31: 2. Заборгованість перед банківськими та іншими фінансовими установами | B31: =SUM(B$32:B$32) -> 3174.06054 | C31: 3041.808018 | D31: 2909.555495 | E31: 2777.302973 | F31: 2645.05045 | G31: 2578.924189
A32: Національний банк України | B32: 3174.06054 | C32: 3041.808018 | D32: 2909.555495 | E32: 2777.302973 | F32: 2645.05045 | G32: 2578.924189
A33: Зовнішній борг | B33: =B$34+B$41+B$49+B$52+B$63 -> 195806.8609 | C33: 208918.9364 | D33: 223259.0538 | E33: 486026.8463 | F33: 826270.4782 | G33: 882284.9694
A34: 1. Заборгованість за позиками, одержаними від міжнародних фінансових організацій | B34: =SUM(B$35:B$40) -> 84344.83191 | C34: 80097.20305 | D34: 61903.65009 | E34: 169089.9033 | F34: 337449.2911 | G34: 348620.0896
A35: Європейське Співтовариство | B35: 0 | C35: 0 | D35: 0 | E35: 26156.75488 | F35: 57953.11509 | G35: 60777.66968
A36: Європейський банк реконструкції та розвитку | B36: 3553.416859 | C36: 4266.735656 | D36: 4766.645754 | E36: 9368.981111 | F36: 13990.69907 | G36: 14952.85272
A37: Європейський Інвестиційний Банк | B37: 2059.6106 | C37: 3203.300288 | D37: 4283.134554 | E37: 7652.991944 | F37: 12530.14512 | G37: 13306.54182
A38: Міжнародний банк реконструкції та розвитку | B38: 24084.69397 | C38: 24233.51704 | D38: 24539.54845 | E38: 68318.98228 | F38: 124747.1258 | G38: 126362.5217
A39: Міжнародний Валютний Фонд | B39: 54647.11048 | C39: 48393.65006 | D39: 28314.32133 | E39: 57585.09724 | F39: 128207.6972 | G39: 133199.3133
A40: Фонд чистих технологій (МБРР) | B40: 0 | C40: 0 | D40: 0 | E40: 7.0958502 | F40: 20.50886997 | G40: 21.1903753
A41: 2. Заборгованість за позиками, одержаними від органів управління іноземних держав | B41: =SUM(B$42:B$48) -> 10720.9392 | C41: 9099.501375 | D41: 7278.928575 | E41: 16372.26171 | F41: 32708.52715 | G41: 43789.7977
A42: Італія | B42: 166.8904997 | C42: 84.64974598 | D42: 0 | E42: 0 | F42: 0 | G42: 0
A43: Канада | B43: 0 | C43: 0 | D43: 0 | E43: 2712.1072 | F43: 6914.0144 | G43: 7537.1588
A44: Німеччина | B44: 822.0637595 | C44: 481.9254518 | D44: 106.4888486 | E44: 134.630356 | F44: 5428.187703 | G44: 5692.750056
A45: Росія | B45: 7183.676 | C45: 6405.237389 | D45: 5623.921639 | E45: 9553.472056 | F45: 14540.94475 | G45: 15024.13721
A46: США | B46: 434.6593199 | C46: 264.8623985 | D46: 94.89139132 | E46: 164.7326001 | F46: 216.533956 | G46: 223.7293328
A47: Франція | B47: 43.39348303 | C47: 22.20053566 | D47: 0 | E47: 0 | F47: 0 | G47: 0
A48: Японія | B48: 2070.256138 | C48: 1840.625854 | D48: 1453.626696 | E48: 3807.319496 | F48: 5608.846349 | G48: 15312.0223
A49: 3. Заборгованість за позиками, одержаними від іноземних комерційних банків, інших іноземних фінансових установ | B49: =SUM(B$50:B$51) -> 15980.12653 | C49: 0.53875717 | D49: 0.5645446 | E49: 0.9833632 | F49: 1.34076761 | G49: 1.40611476
A50: Chase Manhattan Bank Luxembourg S.A. | B50: 0.52653121 | C50: 0.53875717 | D50: 0.5645446 | E50: 0.9833632 | F50: 1.34076761 | G50: 1.40611476
A51: JSC VTB Bank | B51: 15979.6 | C51: 0 | D51: 0 | E51: 0 | F51: 0 | G51: 0
A52: 4. Заборгованість за випущеними цінними паперами на зовнішньому ринку | B52: =SUM(B$53:B$62) -> 69697.7418 | C52: 104636.2032 | D52: 138909.068 | E52: 272509.3466 | F52: 415269.9327 | G52: 447442.1782
A53: ОЗДП 2003 року | B53: 7989.8 | C53: 7993 | D53: 0 | E53: 0 | F53: 0 | G53: 0
A54: ОЗДП 2005 року | B54: 6178.8318 | C54: 6322.3032 | D54: 6624.918 | E54: 11539.7448 | F54: 0 | G54: 0
A55: ОЗДП 2006 року | B55: 7989.8 | C55: 7993 | D55: 7993 | E55: 15768.556 | F55: 0 | G55: 0
A56: ОЗДП 2007 року | B56: 9587.76 | C56: 5595.1 | D56: 5595.1 | E56: 11037.9892 | F56: 0 | G56: 0
A57: ОЗДП 2010 року | B57: 15979.6 | C57: 15986 | D57: 15986 | E57: 31537.112 | F57: 0 | G57: 0
A58: ОЗДП 2011 року | B58: 21971.95 | C58: 21980.75 | D58: 21980.75 | E58: 43363.529 | F58: 0 | G58: 0
A59: ОЗДП 2012 року | B59: 0 | C59: 38766.05 | D59: 46759.05 | E59: 76477.4966 | F59: 0 | G59: 0
A60: ОЗДП 2013 року | B60: 0 | C60: 0 | D60: 33970.25 | E60: 67016.363 | F60: 72002.001 | G60: 74394.612
A61: ОЗДП 2014 року | B61: 0 | C61: 0 | D61: 0 | E61: 15768.556 | F61: 24000.667 | G61: 24798.204
A62: ОЗДП 2015 року | B62: 0 | C62: 0 | D62: 0 | E62: 0 | F62: 319267.2647 | G62: 348249.3622
A63: 5. Заборгованість, не віднесена до інших категорій | B63: =SUM(B$64:B$64) -> 15063.22148 | C63: 15085.49003 | D63: 15166.84257 | E63: 28054.35136 | F63: 40841.38642 | G63: 42431.49784
A64: Міжнародний Валютний Фонд | B64: 15063.22148 | C64: 15085.49003 | D64: 15166.84257 | E64: 28054.35136 | F64: 40841.38642 | G64: 42431.49784
A65: Гарантований державою борг | B65: =B$66+B$86 -> 115911.3174 | C65: 116292.599 | D65: 104567.9415 | E65: 153802.7476 | F65: 237908.5577 | G65: 233999.8986
A66: Внутрішній борг | B66: =B$67+B$80+B$84 -> 12303.19323 | C66: 16211.4159 | D66: 27129.14981 | E66: 27863.28456 | F66: 21459.45491 | G66: 20288.53266
A67: 1. Заборгованість за випущеними цінними паперами на внутрішньому ринку | B67: =SUM(B$68:B$79) -> 5812.982051 | C67: 9971.204724 | D67: 21135.76798 | E67: 21567.0116 | F67: 16400.0116 | G67: 16200.0116
A68: Векселі Укравтодору | B68: 1619.564451 | C68: 1567.787124 | D68: 999.8503833 | E68: 0 | F68: 0 | G68: 0
A69: Державні цінні папери | B69: 0.0116 | C69: 0.0116 | D69: 0.0116 | E69: 0.0116 | F69: 0.0116 | G69: 0.0116
A70: Облігації ДІУ (10 - річні) | B70: 0 | C70: 0 | D70: 0 | E70: 1000 | F70: 1000 | G70: 1000
A71: Облігації ДІУ (5 - річні) | B71: 1607.5 | C71: 1817.5 | D71: 1800 | E71: 3000 | F71: 3000 | G71: 3000
A72: Облігації ДІУ (7 - річні) | B72: 400 | C72: 400 | D72: 1400 | E72: 3200 | F72: 3200 | G72: 3000
A73: Облігації ДП КАЗ "Авіант" (5 - річні) | B73: 578.906 | C73: 578.906 | D73: 578.906 | E73: 0 | F73: 0 | G73: 0
A74: Облігації НАК "Нафтогаз України" (3 - річні) | B74: 0 | C74: 0 | D74: 4800 | E74: 4800 | F74: 4800 | G74: 4800
A75: Облігації Укравтодору (12 - місячні) | B75: 0 | C75: 0 | D75: 1550 | E75: 0 | F75: 0 | G75: 0
A76: Облігації Укравтодору (3 - річні) | B76: 0 | C76: 4000 | D76: 4250 | E76: 4250 | F76: 250 | G76: 250
A77: Облігації Укравтодору (5 - річні) | B77: 0 | C77: 0 | D77: 4150 | E77: 4150 | F77: 4150 | G77: 4150
A78: Облігації ХДАВП (5 - річні) | B78: 880 | C78: 880 | D78: 880 | E78: 440 | F78: 0 | G78: 0
A79: Облігації ХДАВП (6 - річні) | B79: 727 | C79: 727 | D79: 727 | E79: 727 | F79: 0 | G79: 0
A80: 2. Заборгованість перед банківськими та іншими фінансовими установами | B80: =SUM(B$81:B$83) -> 6489.25653 | C80: 6239.25653 | D80: 5992.427177 | E80: 6295.318313 | F80: 5058.488656 | G80: 4087.566413
A81: ВАТ "Державний експортно-імпортний банк України" | B81: 2100 | C81: 2100 | D81: 2100 | E81: 2100 | F81: 1050 | G81: 525
A82: ВАТ "Державний ощадний банк України" | B82: 4389.25653 | C82: 4139.25653 | D82: 3892.427177 | E82: 4009.862318 | F82: 3859.862318 | G82: 3441.562318
A83: ПАТ АБ "Укргазбанк" | B83: 0 | C83: 0 | D83: 0 | E83: 185.4559944 | F83: 148.6263374 | G83: 121.0040945
A84: 3. Заборгованість, не віднесена до інших категорій | B84: =SUM(B$85:B$85) -> 0.95465 | C84: 0.95465 | D84: 0.95465 | E84: 0.95465 | F84: 0.95465 | G84: 0.95465
A85: Інші кредитори | B85: 0.95465 | C85: 0.95465 | D85: 0.95465 | E85: 0.95465 | F85: 0.95465 | G85: 0.95465
A86: Зовнішній борг | B86: =B$87+B$93+B$95+B$108+B$112 -> 103608.1241 | C86: 100081.1831 | D86: 77438.7917 | E86: 125939.463 | F86: 216449.1028 | G86: 213711.3659
A87: 1. Заборгованість за позиками, одержаними від міжнародних фінансових організацій | B87: =SUM(B$88:B$92) -> 61533.96681 | C87: 40557.83393 | D87: 16225.62155 | E87: 40110.55668 | F87: 140833.8031 | G87: 150013.9723
A88: Європейське співтоватиство з атомної енергії | B88: 443.254084 | C88: 379.4576859 | D88: 318.3781317 | E88: 451.4504503 | F88: 456.6383727 | G88: 393.4365237
A89: Європейський банк реконструкції та розвитку | B89: 1010.012667 | C89: 904.2426181 | D89: 782.1906616 | E89: 1392.507257 | F89: 3050.143293 | G89: 5772.562601
A90: Європейський Інвестиційний Банк | B90: 0 | C90: 0 | D90: 0 | E90: 0 | F90: 0 | G90: 275.01208
A91: Міжнародний банк реконструкції та розвитку | B91: 1262.990797 | C91: 1483.629802 | D91: 1948.240733 | E91: 5807.737291 | F91: 9418.982998 | G91: 10684.97339
A92: Міжнародний Валютний Фонд | B92: 58817.70926 | C92: 37790.50383 | D92: 13176.81203 | E92: 32458.86168 | F92: 127908.0385 | G92: 132887.9877
A93: 2. Заборгованість за позиками, одержаними від органів управління іноземних держав | B93: =SUM(B$94:B$94) -> 1522.804426 | C93: 1980.933645 | D93: 1980.933645 | E93: 3842.712472 | F93: 4679.066995 | G93: 3625.913538
A94: Канада | B94: 1522.804426 | C94: 1980.933645 | D94: 1980.933645 | E94: 3842.712472 | F94: 4679.066995 | G94: 3625.913538
A95: 3. Заборгованість за позиками, одержаними від іноземних комерційних банків, інших іноземних фінансових установ | B95: =SUM(B$96:B$107) -> 16757.29481 | C95: 29341.60084 | D95: 31026.0264 | E95: 51616.02411 | F95: 68227.55055 | G95: 57257.33862
A96: Aquasafety Invest plc | B96: 514.90265 | C96: 351.2390631 | D96: 184.0254926 | E96: 0 | F96: 0 | G96: 0
A97: Citibank, N.A. London | B97: 1921.524934 | C97: 1572.913927 | D97: 1236.150671 | E97: 1435.475707 | F97: 978.6004447 | G97: 0
A98: Credit Suisse First Boston International | B98: 1198.47 | C98: 1198.95 | D98: 1198.95 | E98: 0 | F98: 0 | G98: 0
A99: Credit Suisse International | B99: 2416.11552 | C99: 2014.236 | D99: 1611.3888 | E99: 2384.205667 | F99: 2419.267234 | G99: 0
A100: Deutsche Bank AG London | B100: 456.5600068 | C100: 342.557152 | D100: 228.37144 | E100: 225.2651127 | F100: 0 | G100: 372.3281643
A101: UniCredit Bank Austria AG | B101: 787.8010503 | C101: 716.5276921 | D101: 656.9710314 | E101: 980.8783024 | F101: 1114.482976 | G101: 1051.9212
A102: VTB Capital PLC | B102: 3521.90384 | C102: 3523.3144 | D102: 2348.876277 | E102: 2316.926537 | F102: 0 | G102: 0
A103: ВАТ "Газпромбанк" | B103: 0 | C103: 0 | D103: 3996.5 | E103: 7884.278 | F103: 12000.3335 | G103: 12399.102
A104: Державний банк розвитку КНР | B104: 0 | C104: 463.0412521 | D104: 679.405 | E104: 1340.32726 | F104: 1729.968077 | G104: 1627.258146
A105: Експортно-імпортний банк Китаю | B105: 0 | C105: 11989.5 | D105: 12406.12629 | E105: 24474.75256 | F105: 37252.00875 | G105: 38166.74024
A106: Експортно-імпортний банк Кореї | B106: 858.50401 | C106: 2085.77335 | D106: 1825.051681 | E106: 3086.103516 | F106: 3914.358784 | G106: 3639.988875
A107: Сбербанк Росії | B107: 5081.5128 | C107: 5083.548 | D107: 4654.209714 | E107: 7487.811449 | F107: 8818.530789 | G107: 0
A108: 4. Заборгованість за випущеними цінними паперами на зовнішньому ринку | B108: =SUM(B$109:B$111) -> 22795.03523 | C108: 27200.31488 | D108: 27200.31488 | E108: 28509.54925 | F108: 0 | G108: 0
A109: Облігації ДП "ФІНІНПРО" (5 - річні) | B109: 0 | C109: 4396.15 | D109: 4396.15 | E109: 8672.7058 | F109: 0 | G109: 0
A110: Облігації ДП "ФІНІНПРО" (7 - річні) | B110: 10051.1684 | C110: 10055.194 | D110: 10055.194 | E110: 19836.84345 | F110: 0 | G110: 0
A111: Облігації НАК "Нафтогаз" (5 - річні) | B111: 12743.86683 | C111: 12748.97088 | D111: 12748.97088 | E111: 0 | F111: 0 | G111: 0
A112: 5. Заборгованість, не віднесена до інших категорій | B112: =SUM(B$113:B$113) -> 999.0228643 | C112: 1000.499759 | D112: 1005.895222 | E112: 1860.620486 | F112: 2708.682131 | G112: 2814.141488
A113: Міжнародний Валютний Фонд | B113: 999.0228643 | C113: 1000.499759 | D113: 1005.895222 | E113: 1860.620486 | F113: 2708.682131 | G113: 2814.141488

Sheet YKT2_USD
A2: Державний та гарантований державою борг України за останні 5 років
G4: =VALUSD -> млн. дол. США
B5: 2011-12-31 | C5: 2012-12-31 | D5: 2013-12-31 | E5: 2014-12-31 | F5: 2015-12-31 | G5: 2016-07-31
A6: Загальна сума державного та гарантованого державою боргу | B6: =B$7+B$65 -> 59223.65823 | C6: 64495.28751 | D6: 73162.33841 | E6: 69811.92296 | F6: 65505.68611 | G6: 66995.21092
A7: Державний борг | B7: =B$8+B$33 -> 44716.24661 | C7: 49945.982 | D7: 60079.89859 | E7: 60058.16063 | F7: 55593.10503 | G7: 57559.04777
A8: Внутрішній борг | B8: =B$9+B$31 -> 20209.14244 | C8: 23808.24443 | D8: 32148.07652 | E8: 29235.62708 | F8: 21166.12522 | G8: 21980.46436
A9: 1. Заборгованість за випущеними цінними паперами на внутрішньому ринку | B9: =SUM(B$10:B$30) -> 19811.87836 | C9: 23427.68544 | D9: 31784.06358 | E9: 29059.49789 | F9: 21055.91785 | G9: 21876.46795
A10: Казначейські зобов'язання | B10: 0 | C10: 103.3695 | D10: 200 | E10: 5.6077424 | F10: 4.10980245 | G10: 0
A11: ОВДП (1 - місячні) | B11: 0 | C11: 0 | D11: 295.3806825 | E11: 0 | F11: 0 | G11: 0
A12: ОВДП (10 - річні) | B12: 1928.983078 | C12: 1928.210809 | D12: 1969.496935 | E12: 3187.004885 | F12: 2523.199168 | G12: 2442.05036
A13: ОВДП (11 - річні) | B13: 481.8619991 | C13: 481.6690855 | D13: 481.6690855 | E13: 244.1555841 | F13: 1620.079184 | G13: 1567.975689
A14: ОВДП (12 - місячні) | B14: 579.3327862 | C14: 1800.676983 | D14: 370.1634931 | E14: 465.3494892 | F14: 345.145 | G14: 109.0631402
A15: ОВДП (12 - річні) | B15: 187.7393677 | C15: 187.6642062 | D15: 187.6642062 | E15: 95.12602169 | F15: 62.49826307 | G15: 60.48825149
A16: ОВДП (13 - річні) | B16: 0 | C16: 0 | D16: 0 | E16: 166.0031521 | F16: 109.0648856 | G16: 105.5572412
A17: ОВДП (14 - річні) | B17: 0 | C17: 0 | D17: 0 | E17: 206.1063803 | F17: 135.4129033 | G17: 131.0578782
A18: ОВДП (15 - річні) | B18: 0 | C18: 0 | D18: 0 | E18: 1005.091398 | F18: 660.3499811 | G18: 639.1124131
A19: ОВДП (18 - місячні) | B19: 262.8351148 | C19: 714.2544505 | D19: 350.735 | E19: 48.78800063 | F19: 43.70400039 | G19: 755.518
A20: ОВДП (2 - річні) | B20: 819.0778243 | C20: 1386.007957 | D20: 2548.580788 | E20: 2594.237137 | F20: 912.9055596 | G20: 1986.121059
A21: ОВДП (3 - місячні) | B21: 81.353726 | C21: 0 | D21: 0 | E21: 0 | F21: 0 | G21: 16.77540841
A22: ОВДП (3 - річні) | B22: 3617.808205 | C22: 3559.89959 | D22: 4335.855935 | E22: 2954.300622 | F22: 1807.33461 | G22: 1405.719699
A23: ОВДП (4 - річні) | B23: 200.0386743 | C23: 199.9585888 | D23: 815.4841361 | E23: 185.3170867 | F23: 160.2083275 | G23: 160.2016275
A24: ОВДП (5 - річні) | B24: 3434.472502 | C24: 4086.787602 | D24: 9422.918214 | E24: 8331.756744 | F24: 6676.223294 | G24: 6493.440612
A25: ОВДП (6 - місячні) | B25: 258.4826436 | C25: 0 | D25: 69.28437383 | E25: 10.78094912 | F25: 0 | G25: 43.8229317
A26: ОВДП (6 - річні) | B26: 1189.015995 | C26: 1188.539972 | D26: 1188.539972 | E26: 1718.610125 | F26: 1129.135286 | G26: 971.8445739
A27: ОВДП (7 - річні) | B27: 3071.291021 | C27: 4140.50319 | D27: 5898.147254 | E27: 3464.159369 | F27: 2025.976653 | G27: 1654.950133
A28: ОВДП (8 - річні) | B28: 1789.931913 | C28: 1789.215313 | D28: 1789.215313 | E28: 1985.03896 | F28: 1304.180338 | G28: 1262.236491
A29: ОВДП (9 - місячні) | B29: 47.98 | C29: 0 | D29: 0 | E29: 53.58765889 | F29: 0 | G29: 7.92666275
A30: ОВДП (9 - річні) | B30: 1861.673509 | C30: 1860.928187 | D30: 1860.928187 | E30: 2338.476586 | F30: 1536.390593 | G30: 2062.605784
A31: 2. Заборгованість перед банківськими та іншими фінансовими установами | B31: =SUM(B$32:B$32) -> 397.2640792 | C31: 380.5589913 | D31: 364.0129482 | E31: 176.1291885 | F31: 110.2073726 | G31: 103.9964099
A32: Національний банк України | B32: 397.2640792 | C32: 380.5589913 | D32: 364.0129482 | E32: 176.1291885 | F32: 110.2073726 | G32: 103.9964099
A33: Зовнішній борг | B33: =B$34+B$41+B$49+B$52+B$63 -> 24507.10417 | C33: 26137.73757 | D33: 27931.82207 | E33: 30822.53355 | F33: 34426.97981 | G33: 35578.58341
A34: 1. Заборгованість за позиками, одержаними від міжнародних фінансових організацій | B34: =SUM(B$35:B$40) -> 10556.56361 | C34: 10020.91869 | D34: 7744.732902 | E34: 10723.23321 | F34: 14059.99638 | G34: 14058.27977
A35: Європейське Співтовариство | B35: 0 | C35: 0 | D35: 0 | E35: 1658.792021 | F35: 2414.646022 | G35: 2450.889979
A36: Європейський банк реконструкції та розвитку | B36: 444.7441562 | C36: 533.80904 | D36: 596.3525277 | E36: 594.1559335 | F36: 582.929594 | G36: 602.9812771
A37: Європейський Інвестиційний Банк | B37: 257.7799945 | C37: 400.7632038 | D37: 535.8606974 | E37: 485.3324518 | F37: 522.0748706 | G37: 536.5929654
A38: Міжнародний банк реконструкції та розвитку | B38: 3014.430145 | C38: 3031.842493 | D38: 3070.12992 | E38: 4332.60866 | F38: 5197.652457 | G38: 5095.631994
A39: Міжнародний Валютний Фонд | B39: 6839.609312 | C39: 6054.503949 | D39: 3542.389758 | E39: 3651.894139 | F39: 5341.838923 | G39: 5371.329039
A40: Фонд чистих технологій (МБРР) | B40: 0 | C40: 0 | D40: 0 | E40: 0.45 | F40: 0.8545125 | G40: 0.8545125
A41: 2. Заборгованість за позиками, одержаними від органів управління іноземних держав | B41: =SUM(B$42:B$48) -> 1341.828231 | C41: 1138.433801 | D41: 910.6629019 | E41: 1038.285415 | F41: 1362.817423 | G41: 1765.84553
A42: Італія | B42: 20.88794459 | C42: 10.59048492 | D42: 0 | E42: 0 | F42: 0 | G42: 0
A43: Канада | B43: 0 | C43: 0 | D43: 0 | E43: 171.9946456 | F43: 288.0759272 | G43: 303.9397047
A44: Німеччина | B44: 102.8891536 | C44: 60.29343823 | D44: 13.32276348 | E44: 8.53790011 | F44: 226.168202 | G44: 229.562998
A45: Росія | B45: 899.10586 | C45: 801.35586 | D45: 703.60586 | E45: 605.85586 | F45: 605.85586 | G45: 605.85586
A46: США | B46: 54.40177725 | C46: 33.13679451 | D46: 11.87181175 | E46: 10.44690459 | F46: 9.02199743 | G46: 9.02199743
A47: Франція | B47: 5.43111004 | C47: 2.77749727 | D47: 0 | E47: 0 | F47: 0 | G47: 0
A48: Японія | B48: 259.1123855 | C48: 230.2797265 | D48: 181.8624667 | E48: 241.4501046 | F48: 233.6954364 | G48: 617.4649704
A49: 3. Заборгованість за позиками, одержаними від іноземних комерційних банків, інших іноземних фінансових установ | B49: =SUM(B$50:B$51) -> 2000.0659 | C49: 0.06740362 | D49: 0.07062988 | E49: 0.06236229 | F49: 0.05586376 | G49: 0.05670228
A50: Chase Manhattan Bank Luxembourg S.A. | B50: 0.06590042 | C50: 0.06740362 | D50: 0.07062988 | E50: 0.06236229 | F50: 0.05586376 | G50: 0.05670228
A51: JSC VTB Bank | B51: 2000 | C51: 0 | D51: 0 | E51: 0 | F51: 0 | G51: 0
A52: 4. Заборгованість за випущеними цінними паперами на зовнішньому ринку | B52: =SUM(B$53:B$62) -> 8723.339983 | C52: 13090.98001 | D52: 17378.83998 | E52: 17281.82001 | F52: 17302.433 | G52: 18043.33
A53: ОЗДП 2003 року | B53: 1000 | C53: 1000 | D53: 0 | E53: 0 | F53: 0 | G53: 0
A54: ОЗДП 2005 року | B54: 773.3399835 | C54: 790.9800075 | D54: 828.839985 | E54: 731.8200094 | F54: 0 | G54: 0
A55: ОЗДП 2006 року | B55: 1000 | C55: 1000 | D55: 1000 | E55: 1000 | F55: 0 | G55: 0
A56: ОЗДП 2007 року | B56: 1200 | C56: 700 | D56: 700 | E56: 700 | F56: 0 | G56: 0
A57: ОЗДП 2010 року | B57: 2000 | C57: 2000 | D57: 2000 | E57: 2000 | F57: 0 | G57: 0
A58: ОЗДП 2011 року | B58: 2750 | C58: 2750 | D58: 2750 | E58: 2750 | F58: 0 | G58: 0
A59: ОЗДП 2012 року | B59: 0 | C59: 4850 | D59: 5850 | E59: 4850 | F59: 0 | G59: 0
A60: ОЗДП 2013 року | B60: 0 | C60: 0 | D60: 4250 | E60: 4250 | F60: 3000 | G60: 3000
A61: ОЗДП 2014 року | B61: 0 | C61: 0 | D61: 0 | E61: 1000 | F61: 1000 | G61: 1000
A62: ОЗДП 2015 року | B62: 0 | C62: 0 | D62: 0 | E62: 0 | F62: 13302.433 | G62: 14043.33
A63: 5. Заборгованість, не віднесена до інших категорій | B63: =SUM(B$64:B$64) -> 1885.30645 | C63: 1887.337674 | D63: 1897.515648 | E63: 1779.132557 | F63: 1701.677142 | G63: 1711.071408
A64: Міжнародний Валютний Фонд | B64: 1885.30645 | C64: 1887.337674 | D64: 1897.515648 | E64: 1779.132557 | F64: 1701.677142 | G64: 1711.071408
A65: Гарантований державою борг | B65: =B$66+B$86 -> 14507.41162 | C65: 14549.30551 | D65: 13082.43982 | E65: 9753.762333 | F65: 9912.581084 | G65: 9436.163143
A66: Внутрішній борг | B66: =B$67+B$80+B$84 -> 1539.862479 | C66: 2028.201665 | D66: 3394.113576 | E66: 1767.015608 | F66: 894.1191053 | G66: 818.145244
A67: 1. Заборгованість за випущеними цінними паперами на внутрішньому ринку | B67: =SUM(B$68:B$79) -> 727.5503832 | C67: 1247.492146 | D67: 2644.284747 | E67: 1367.722675 | F67: 683.3148262 | G67: 653.2735838
A68: Векселі Укравтодору | B68: 202.704004 | C68: 196.1450174 | D68: 125.0907523 | E68: 0 | F68: 0 | G68: 0
A69: Державні цінні папери | B69: 0.00145185 | C69: 0.00145127 | D69: 0.00145127 | E69: 0.00073564 | F69: 0.00048332 | G69: 0.00046778
A70: Облігації ДІУ (10 - річні) | B70: 0 | C70: 0 | D70: 0 | E70: 63.41734779 | F70: 41.66550871 | G70: 40.32550099
A71: Облігації ДІУ (5 - річні) | B71: 201.1940224 | C71: 227.3864633 | D71: 225.1970476 | E71: 190.2520434 | F71: 124.9965261 | G71: 120.976503
A72: Облігації ДІУ (7 - річні) | B72: 50.06383138 | C72: 50.04378836 | D72: 175.1532591 | E72: 202.935513 | F72: 133.3296278 | G72: 120.976503
A73: Облігації ДП КАЗ "Авіант" (5 - річні) | B73: 72.45563093 | C73: 72.4266233 | D73: 72.4266233 | E73: 0 | F73: 0 | G73: 0
A74: Облігації НАК "Нафтогаз України" (3 - річні) | B74: 0 | C74: 0 | D74: 600.5254598 | E74: 304.4032694 | F74: 199.9944418 | G74: 193.5624048
A75: Облігації Укравтодору (12 - місячні) | B75: 0 | C75: 0 | D75: 193.9196797 | E75: 0 | F75: 0 | G75: 0
A76: Облігації Укравтодору (3 - річні) | B76: 0 | C76: 500.4378831 | D76: 531.7152508 | E76: 269.5237281 | F76: 10.41637718 | G76: 10.08137525
A77: Облігації Укравтодору (5 - річні) | B77: 0 | C77: 0 | D77: 519.2043038 | E77: 263.1819933 | F77: 172.9118612 | G77: 167.3508291
A78: Облігації ХДАВП (5 - річні) | B78: 110.140429 | C78: 110.0963343 | D78: 110.0963343 | E78: 27.90363302 | F78: 0 | G78: 0
A79: Облігації ХДАВП (6 - річні) | B79: 90.99101354 | C79: 90.95458526 | D79: 90.95458526 | E79: 46.10441184 | F79: 0 | G79: 0
A80: 2. Заборгованість перед банківськими та іншими фінансовими установами | B80: =SUM(B$81:B$83) -> 812.1926118 | C80: 780.5900826 | D80: 749.7093929 | E80: 399.2323909 | F80: 210.7645032 | G80: 164.8331634
A81: ВАТ "Державний експортно-імпортний банк України" | B81: 262.8351148 | C81: 262.7298887 | D81: 262.7298887 | E81: 133.1764304 | F81: 43.74878415 | G81: 21.17088802
A82: ВАТ "Державний ощадний банк України" | B82: 549.3574971 | C82: 517.8601939 | D82: 486.9795042 | E82: 254.2948332 | F82: 160.8231271 | G82: 138.7827247
A83: ПАТ АБ "Укргазбанк" | B83: 0 | C83: 0 | D83: 0 | E83: 11.7611273 | F83: 6.19259196 | G83: 4.87955072
A84: 3. Заборгованість, не віднесена до інших категорій | B84: =SUM(B$85:B$85) -> 0.11948359 | C84: 0.11943576 | D84: 0.11943576 | E84: 0.06054137 | F84: 0.03977598 | G84: 0.03849674
A85: Інші кредитори | B85: 0.11948359 | C85: 0.11943576 | D85: 0.11943576 | E85: 0.06054137 | F85: 0.03977598 | G85: 0.03849674
A86: Зовнішній борг | B86: =B$87+B$93+B$95+B$108+B$112 -> 12967.54914 | C86: 12521.10385 | D86: 9688.326248 | E86: 7986.746725 | F86: 9018.461978 | G86: 8618.017899
A87: 1. Заборгованість за позиками, одержаними від міжнародних фінансових організацій | B87: =SUM(B$88:B$92) -> 7701.565347 | C87: 5074.16914 | D87: 2029.978926 | E87: 2543.705123 | F87: 5867.912051 | G87: 6049.388589
A88: Європейське співтоватиство з атомної енергії | B88: 55.4774943 | C88: 47.47375027 | D88: 39.83211956 | E88: 28.62979021 | F88: 19.0260701 | G88: 15.86552493
A89: Європейський банк реконструкції та розвитку | B89: 126.4127596 | C89: 113.1293154 | D89: 97.85945972 | E89: 88.30911699 | F89: 127.085772 | G89: 232.7814789
A90: Європейський Інвестиційний Банк | B90: 0 | C90: 0 | D90: 0 | E90: 0 | F90: 0 | G90: 11.0899999
A91: Міжнародний банк реконструкції та розвитку | B91: 158.0753958 | C91: 185.6161394 | D91: 243.7433671 | E91: 368.3112957 | F91: 392.4467181 | G91: 430.876905
A92: Міжнародний Валютний Фонд | B92: 7361.599698 | C92: 4727.949934 | D92: 1648.543979 | E92: 2058.45492 | F92: 5329.353491 | G92: 5358.77468
A93: 2. Заборгованість за позиками, одержаними від органів управління іноземних держав | B93: =SUM(B$94:B$94) -> 190.59356 | C93: 247.83356 | D93: 247.83356 | E93: 243.6946333 | F93: 194.9557066 | G93: 146.21678
A94: Канада | B94: 190.59356 | C94: 247.83356 | D94: 247.83356 | E94: 243.6946333 | F94: 194.9557066 | G94: 146.21678
A95: 3. Заборгованість за позиками, одержаними від іноземних комерційних банків, інших іноземних фінансових установ | B95: =SUM(B$96:B$107) -> 2097.335955 | C95: 3670.912153 | D95: 3881.649744 | E95: 3273.351352 | F95: 2842.735602 | G95: 2308.930865
A96: Aquasafety Invest plc | B96: 64.44499862 | C96: 43.94333331 | D96: 23.023332 | E96: 0 | F96: 0 | G96: 0
A97: Citibank, N.A. London | B97: 240.4972508 | C97: 196.786429 | D97: 154.6541562 | E97: 91.03406216 | F97: 40.77388535 | G97: 0
A98: Credit Suisse First Boston International | B98: 150 | C98: 150 | D98: 150 | E98: 0 | F98: 0 | G98: 0
A99: Credit Suisse International | B99: 302.4 | C99: 252 | D99: 201.6 | E99: 151.2 | F99: 100.8 | G99: 0
A100: Deutsche Bank AG London | B100: 57.142858 | C100: 42.857144 | D100: 28.57143 | E100: 14.285716 | F100: 0 | G100: 15.01431976
A101: UniCredit Bank Austria AG | B101: 98.60084737 | C101: 89.64440036 | D101: 82.19329806 | E101: 62.20470044 | F101: 46.43550014 | G101: 42.41924938
A102: VTB Capital PLC | B102: 440.8 | C102: 440.8 | D102: 293.866668 | E102: 146.933336 | F102: 0 | G102: 0
A103: ВАТ "Газпромбанк" | B103: 0 | C103: 0 | D103: 500 | E103: 500 | F103: 500 | G103: 500
A104: Державний банк розвитку КНР | B104: 0 | C104: 57.930846 | D104: 85 | E104: 85 | F104: 72.08 | G104: 65.62
A105: Експортно-імпортний банк Китаю | B105: 0 | C105: 1500 | D105: 1552.123895 | E105: 1552.123895 | F105: 1552.123895 | G105: 1539.092921
A106: Експортно-імпортний банк Кореї | B106: 107.45 | C106: 260.95 | D106: 228.33125 | E106: 195.7125 | F106: 163.09375 | G106: 146.784375
A107: Сбербанк Росії | B107: 636 | C107: 636 | D107: 582.2857143 | E107: 474.8571429 | F107: 367.4285714 | G107: 0
A108: 4. Заборгованість за випущеними цінними паперами на зовнішньому ринку | B108: =SUM(B$109:B$111) -> 2853.017 | C108: 3403.017 | D108: 3403.017 | E108: 1808 | F108: 0 | G108: 0
A109: Облігації ДП "ФІНІНПРО" (5 - річні) | B109: 0 | C109: 550 | D109: 550 | E109: 550 | F109: 0 | G109: 0
A110: Облігації ДП "ФІНІНПРО" (7 - річні) | B110: 1258 | C110: 1258 | D110: 1258 | E110: 1258 | F110: 0 | G110: 0
A111: Облігації НАК "Нафтогаз" (5 - річні) | B111: 1595.017 | C111: 1595.017 | D111: 1595.017 | E111: 0 | F111: 0 | G111: 0
A112: 5. Заборгованість, не віднесена до інших категорій | B112: =SUM(B$113:B$113) -> 125.0372806 | C112: 125.1719954 | D112: 125.8470189 | E112: 117.9956164 | F112: 112.8586189 | G112: 113.4816654
A113: Міжнародний Валютний Фонд | B113: 125.0372806 | C113: 125.1719954 | D113: 125.8470189 | E113: 117.9956164 | F113: 112.8586189 | G113: 113.4816654

Sheet KIND_CMP (hidden)
B1: ="Державний та гарантований державою борг України за станом на " & TEXT(DREPORTDATE,"dd.MM.yyyy") -> Державний та гарантований державою борг України за станом на 31.07.2016
A2: Структура боргу за ознакою умовності на кінець попереднього року та на звітну дату
H4: тис.одиниць | I4: =VALVAL -> млн. одиниць
B5: 2015-12-31 | E5: 2016-07-31
B6: дол.США | C6: грн. | D6: % | E6: дол.США | F6: грн. | G6: % | H6: % | I6: Зміна структури
A7: Загальна сума державного та гарантованого державою боргу | B7: =SUM(B$8+ B$9) -> 65505.68611 | C7: 1572180.159 | D7: 1 | E7: 66995.20092 | F7: 1661360.659 | G7: 1 | I7: =SUM(I$8+ I$9) -> 0
A8: Державний борг | B8: 55593.10503 | C8: 1334271.601 | D8: 0.848676 | E8: 57559.03777 | F8: 1427360.761 | G8: 0.859152 | H8: 0.010476 | I8: -21.4
A9: Гарантований державою борг | B9: 9912.581084 | C9: 237908.5577 | D9: 0.151324 | E9: 9436.163143 | F9: 233999.8986 | G9: 0.140848 | H9: -0.010476 | I9: 21.4

Sheet DTR (hidden)
A2: Структура державного та гарантованого державою боргу в розрізі термінів погашення
D4: =VALVAL -> млн. одиниць
B5: дол.США | C5: грн. | D5: % | E5: FORMAT
A6: Загальна сума державного та гарантованого державою боргу | B6: =SUM(B$7+ B$8+ B$9) -> 66995.20092 | C6: 1661360.659 | D6: 1 | E6: 3
A7: 2016.07.31-2016.12.31 | B7: 1814.829541 | C7: 45004.51318 | D7: 0.027089 | E7: 1
A8: 2017-2021 | B8: 31605.7747 | C8: 783766.4487 | D8: 0.471762 | E8: 1
A9: 2021-31.12.2060 | B9: 33574.59667 | C9: 832589.6975 | D9: 0.501149 | E9: 1

Sheet DEBT_TERM (hidden)
A3: Державний та гарантований державою борг України
A4: =" за станом на " & TEXT(DREPORTDATE,"dd.MM.yyyy") -> за станом на 31.07.2016
A5: (в розрізі середнього терміну обігу та середньої ставки)
B8: Середня ставка, % | C8: Середній термін обігу, років | D8: Середній термін до погашення, років | E8: ="Сума боргу " & VALVAL -> Сума боргу млн. одиниць | F8: IS_CHART_DATA | G8: IS_OVDP | H8: FORMAT
A9: Державний та гарантований державою борг України | B9: 34.575 | C9: 10.79 | D9: 8.13 | E9: 1661360659 | F9: 0 | G9: 0 | H9: 3 | I9: =IF(A9="","",A9 & "; " &B9 & "%; "&C9 &"р.") -> Державний та гарантований державою борг України; 34,575%; 10,79р. | J9: =E9 -> 1661360659
A10: Державний борг | B10: 35.815 | C10: 10.56 | D10: 7.89 | E10: 1427360761 | F10: 0 | G10: 0 | H10: 2 | I10: Державний борг; 35,815%; 10,56р. | J10: 1427360761
A11: Державний внутрішній борг | B11: 83.893 | C11: 6.65 | D11: 4.21 | E11: 545075791.4 | F11: 1 | G11: 0 | H11: 0 | I11: Державний внутрішній борг; 83,893%; 6,65р. | J11: 545075791.4
A12: в т.ч. ОВДП | B12: 84.268 | C12: 6.51 | D12: 4.13 | E12: 542496867.2 | F12: 0 | G12: 0 | H12: 0 | I12: в т.ч. ОВДП; 84,268%; 6,51р. | J12: 542496867.2
A13: ОВДП (1 - місячні) | B13: 0 | C13: 0 | D13: 0 | E13: 0 | F13: 0 | G13: 1 | H13: 0 | I13: ОВДП (1 - місячні); 0%; 0р. | J13: 0
A14: ОВДП (10 - річні) | B14: 20.101 | C14: 9.94 | D14: 7.07 | E14: 58128463 | F14: 0 | G14: 1 | H14: 0 | I14: ОВДП (10 - річні); 20,101%; 9,94р. | J14: 58128463
A15: ОВДП (11 - річні) | B15: 11.147 | C15: 11.89 | D15: 10.47 | E15: 38882981 | F15: 0 | G15: 1 | H15: 0 | I15: ОВДП (11 - річні); 11,147%; 11,89р. | J15: 38882981
A16: ОВДП (12 - місячні) | B16: 0 | C16: 0.91 | D16: 0.77 | E16: 2704570 | F16: 0 | G16: 1 | H16: 0 | I16: ОВДП (12 - місячні); 0%; 0,91р. | J16: 2704570
A17: ОВДП (12 - річні) | B17: 9.5 | C17: 12.43 | D17: 5.84 | E17: 1500000 | F17: 0 | G17: 1 | H17: 0 | I17: ОВДП (12 - річні); 9,5%; 12,43р. | J17: 1500000
A18: ОВДП (13 - річні) | B18: 12.5 | C18: 13.46 | D18: 11.81 | E18: 2617630 | F18: 0 | G18: 1 | H18: 0 | I18: ОВДП (13 - річні); 12,5%; 13,46р. | J18: 2617630
A19: ОВДП (14 - річні) | B19: 12.5 | C19: 13.96 | D19: 12.25 | E19: 3250000 | F19: 0 | G19: 1 | H19: 0 | I19: ОВДП (14 - річні); 12,5%; 13,96р. | J19: 3250000
A20: ОВДП (15 - річні) | B20: 7.743 | C20: 11.15 | D20: 9.48 | E20: 15848840 | F20: 0 | G20: 1 | H20: 0 | I20: ОВДП (15 - річні); 7,743%; 11,15р. | J20: 15848840
A21: ОВДП (18 - місячні) | B21: 7.616 | C21: 1.47 | D21: 1.07 | E21: 18735489.49 | F21: 0 | G21: 1 | H21: 0 | I21: ОВДП (18 - місячні); 7,616%; 1,47р. | J21: 18735489.49
A22: ОВДП (2 - річні) | B22: 169.788 | C22: 1.98 | D22: 1.32 | E22: 49252235.19 | F22: 0 | G22: 1 | H22: 0 | I22: ОВДП (2 - річні); 169,788%; 1,98р. | J22: 49252235.19
A23: ОВДП (3 - місячні) | B23: 0 | C23: 0.25 | D23: 0.14 | E23: 416000 | F23: 0 | G23: 1 | H23: 0 | I23: ОВДП (3 - місячні); 0%; 0,25р. | J23: 416000
A24: ОВДП (3 - річні) | B24: 385.172 | C24: 2.89 | D24: 1.73 | E24: 17667218.44 | F24: 0 | G24: 1 | H24: 0 | I24: ОВДП (3 - річні); 385,172%; 2,89р. | J24: 17667218.44
A25: ОВДП (4 - річні) | B25: 0 | C25: 0 | D25: 0 | E25: 0 | F25: 0 | G25: 1 | H25: 0 | I25: ОВДП (4 - річні); 0%; 0р. | J25: 0
A26: ОВДП (5 - річні) | B26: 24.453 | C26: 4.8 | D26: 3.09 | E26: 91724048.9 | F26: 0 | G26: 1 | H26: 0 | I26: ОВДП (5 - річні); 24,453%; 4,8р. | J26: 91724048.9
A27: ОВДП (6 - місячні) | B27: 13.789 | C27: 0.49 | D27: 0.23 | E27: 1086730 | F27: 0 | G27: 1 | H27: 0 | I27: ОВДП (6 - місячні); 13,789%; 0,49р. | J27: 1086730
A28: ОВДП (6 - річні) | B28: 14.3 | C28: 6.42 | D28: 4.32 | E28: 17600000 | F28: 0 | G28: 1 | H28: 0 | I28: ОВДП (6 - річні); 14,3%; 6,42р. | J28: 17600000
A29: ОВДП (7 - річні) | B29: 13.25 | C29: 7 | D29: 4.14 | E29: 9880900 | F29: 0 | G29: 1 | H29: 0 | I29: ОВДП (7 - річні); 13,25%; 7р. | J29: 9880900
A30: ОВДП (7-річні) | B30: 0 | C30: 0 | D30: 0 | E30: 0 | F30: 0 | G30: 1 | H30: 0 | I30: ОВДП (7-річні); 0%; 0р. | J30: 0
A31: ОВДП (8 - річні) | B31: 11.891 | C31: 8.08 | D31: 3.86 | E31: 30201198 | F31: 0 | G31: 1 | H31: 0 | I31: ОВДП (8 - річні); 11,891%; 8,08р. | J31: 30201198
A32: ОВДП (9 - місячні) | B32: 0.052 | C32: 0.75 | D32: 0.58 | E32: 196567 | F32: 0 | G32: 1 | H32: 0 | I32: ОВДП (9 - місячні); 0,052%; 0,75р. | J32: 196567
A33: ОВДП (9 - річні) | B33: 10.052 | C33: 9.29 | D33: 6.42 | E33: 50048919 | F33: 0 | G33: 1 | H33: 0 | I33: ОВДП (9 - річні); 10,052%; 9,29р. | J33: 50048919
A34: Казначейські зобов'язання | B34: 8 | C34: 4 | D34: 0.33 | E34: -247.98 | F34: 0 | G34: 1 | H34: 0 | I34: Казначейські зобов'язання; 8%; 4р. | J34: -247.98
A35: ОВДП (1 - місячні) | B35: 0 | C35: 0 | D35: 0 | E35: 0 | F35: 0 | G35: 1 | H35: 0 | I35: ОВДП (1 - місячні); 0%; 0р. | J35: 0
A36: ОВДП (10 - річні) | B36: 9.465 | C36: 10.03 | D36: 5.35 | E36: 2430000 | F36: 0 | G36: 1 | H36: 0 | I36: ОВДП (10 - річні); 9,465%; 10,03р. | J36: 2430000
A37: ОВДП (12 - місячні) | B37: 0 | C37: 0 | D37: 0 | E37: 0 | F37: 0 | G37: 1 | H37: 0 | I37: ОВДП (12 - місячні); 0%; 0р. | J37: 0
A38: ОВДП (18 - місячні) | B38: 0 | C38: 0 | D38: 0 | E38: 0 | F38: 0 | G38: 1 | H38: 0 | I38: ОВДП (18 - місячні); 0%; 0р. | J38: 0
A39: ОВДП (2 - річні) | B39: 0 | C39: 0 | D39: 0 | E39: 0 | F39: 0 | G39: 1 | H39: 0 | I39: ОВДП (2 - річні); 0%; 0р. | J39: 0
A40: ОВДП (3 - місячні) | B40: 0 | C40: 0 | D40: 0 | E40: 0 | F40: 0 | G40: 1 | H40: 0 | I40: ОВДП (3 - місячні); 0%; 0р. | J40: 0
A41: ОВДП (3 - річні) | B41: 788.701 | C41: 2.88 | D41: 0.19 | E41: 17192105.42 | F41: 0 | G41: 1 | H41: 0 | I41: ОВДП (3 - річні); 788,701%; 2,88р. | J41: 17192105.42
A42: ОВДП (4 - річні) | B42: 744.215 | C42: 3.97 | D42: 0.8 | E42: 3972712.64 | F42: 0 | G42: 1 | H42: 0 | I42: ОВДП (4 - річні); 744,215%; 3,97р. | J42: 3972712.64
A43: ОВДП (5 - річні) | B43: 69.262 | C43: 4.91 | D43: 1.52 | E43: 69301616.07 | F43: 0 | G43: 1 | H43: 0 | I43: ОВДП (5 - річні); 69,262%; 4,91р. | J43: 69301616.07
A44: ОВДП (6 - місячні) | B44: 0 | C44: 0 | D44: 0 | E44: 0 | F44: 0 | G44: 1 | H44: 0 | I44: ОВДП (6 - місячні); 0%; 0р. | J44: 0
A45: ОВДП (6 - річні) | B45: 9.5 | C45: 6.18 | D45: 1.2 | E45: 6500000 | F45: 0 | G45: 1 | H45: 0 | I45: ОВДП (6 - річні); 9,5%; 6,18р. | J45: 6500000
A46: ОВДП (7 - річні) | B46: 117.744 | C46: 6.98 | D46: 3.14 | E46: 31158891 | F46: 0 | G46: 1 | H46: 0 | I46: ОВДП (7 - річні); 117,744%; 6,98р. | J46: 31158891
A47: ОВДП (8 - річні) | B47: 9.5 | C47: 7.92 | D47: 2.79 | E47: 1100000 | F47: 0 | G47: 1 | H47: 0 | I47: ОВДП (8 - річні); 9,5%; 7,92р. | J47: 1100000
A48: ОВДП (9 - місячні) | B48: 0 | C48: 0 | D48: 0 | E48: 0 | F48: 0 | G48: 1 | H48: 0 | I48: ОВДП (9 - місячні); 0%; 0р. | J48: 0
A49: ОВДП (9 - річні) | B49: 9.5 | C49: 8.93 | D49: 3.81 | E49: 1100000 | F49: 0 | G49: 1 | H49: 0 | I49: ОВДП (9 - річні); 9,5%; 8,93р. | J49: 1100000
A50: Державний зовнішній борг | B50: 6.112 | C50: 12.97 | D50: 10.17 | E50: 882284969.4 | F50: 1 | G50: 0 | H50: 0 | I50: Державний зовнішній борг; 6,112%; 12,97р. | J50: 882284969.4
A51: в т.ч. ОЗДП | B51: 6.638 | C51: 7.33 | D51: 6.19 | E51: 447442178.2 | F51: 0 | G51: 0 | H51: 0 | I51: в т.ч. ОЗДП; 6,638%; 7,33р. | J51: 447442178.2
A52: Гарантований борг | B52: 27.012 | C52: 12.25 | D52: 9.54 | E52: 233999898.6 | F52: 0 | G52: 0 | H52: 2 | I52: Гарантований борг; 27,012%; 12,25р. | J52: 233999898.6
A53: Гарантований внутрішній борг | B53: 138.12 | C53: 6.03 | D53: 2.48 | E53: 20288532.66 | F53: 1 | G53: 0 | H53: 0 | I53: Гарантований внутрішній борг; 138,12%; 6,03р. | J53: 20288532.66
A54: Гарантований зовнішній борг | B54: 16.463 | C54: 12.84 | D54: 10.21 | E54: 213711365.9 | F54: 1 | G54: 0 | H54: 0 | J54: 213711365.9
A55: в т.ч. ОЗДП | J55: 0
J56: 0
J57: 0
J58: 0
J59: 0
J60: 0
J61: 0

Sheet K_ALL (hidden)
A2: Державний та гарантований державою борг України за станом на ReportDate (за ознакою умовності)

Sheet T_ALL (hidden)
A2: Державний та гарантований державою борг України за станом на ReportDate (за типом боргу)

Sheet YKT2_PRC (hidden)
A2: Державний та гарантований державою борг України за останні 5 років
G4: %

Sheet TBL1 (hidden)

Sheet DTK2
A2: ="Державний та гарантований державою борг України за станом на " & TEXT(DREPORTDATE,"dd.MM.yyyy") -> Державний та гарантований державою борг України за станом на 31.07.2016
A3: (за типом кредитора)
D5: =VALVAL -> млн. одиниць
B6: дол.США | C6: грн. | D6: %
A7: Загальна сума державного та гарантованого державою боргу | B7: =B$8+B$47 -> 66995.21092 | C7: =C$8+C$47 -> 1661360.907 | D7: 0.999999
A8: Внутрішній борг | B8: =B$9+B$32 -> 22798.60961 | C8: =C$9+C$32 -> 565364.572 | D8: =D$9+D$32 -> 0.340302
A9: Державний борг | B9: =B$10+B$30 -> 21980.46436 | C9: =C$10+C$30 -> 545076.0393 | D9: =D$10+D$30 -> 0.328089
A10: 1. Заборгованість за випущеними цінними паперами на внутрішньому ринку | B10: =SUM(B$11:B$29) -> 21876.46795 | C10: =SUM(C$11:C$29) -> 542497.1151 | D10: 0.326537
A11: ОВДП (10 - річні) | B11: 2442.05036 | C11: 60558.463 | D11: 0.036451
A12: ОВДП (11 - річні) | B12: 1567.975689 | C12: 38882.981 | D12: 0.023404
A13: ОВДП (12 - місячні) | B13: 109.0631402 | C13: 2704.57 | D13: 0.001628
A14: ОВДП (12 - річні) | B14: 60.48825149 | C14: 1500 | D14: 0.000903
A15: ОВДП (13 - річні) | B15: 105.5572412 | C15: 2617.63 | D15: 0.001576
A16: ОВДП (14 - річні) | B16: 131.0578782 | C16: 3250 | D16: 0.001956
A17: ОВДП (15 - річні) | B17: 639.1124131 | C17: 15848.84 | D17: 0.00954
A18: ОВДП (18 - місячні) | B18: 755.518 | C18: 18735.48949 | D18: 0.011277
A19: ОВДП (2 - річні) | B19: 1986.121059 | C19: 49252.23519 | D19: 0.029646
A20: ОВДП (3 - місячні) | B20: 16.77540841 | C20: 416 | D20: 0.00025
A21: ОВДП (3 - річні) | B21: 1405.719699 | C21: 34859.32385 | D21: 0.020982
A22: ОВДП (4 - річні) | B22: 160.2016275 | C22: 3972.71264 | D22: 0.002391
A23: ОВДП (5 - річні) | B23: 6493.440612 | C23: 161025.665 | D23: 0.096924
A24: ОВДП (6 - місячні) | B24: 43.8229317 | C24: 1086.73 | D24: 0.000654
A25: ОВДП (6 - річні) | B25: 971.8445739 | C25: 24100 | D25: 0.014506
A26: ОВДП (7 - річні) | B26: 1654.950133 | C26: 41039.791 | D26: 0.024703
A27: ОВДП (8 - річні) | B27: 1262.236491 | C27: 31301.198 | D27: 0.018841
A28: ОВДП (9 - місячні) | B28: 7.92666275 | C28: 196.567 | D28: 0.000118
A29: ОВДП (9 - річні) | B29: 2062.605784 | C29: 51148.919 | D29: 0.030787
A30: 2. Заборгованість перед банківськими та іншими фінансовими установами | B30: =SUM(B$31:B$31) -> 103.9964099 | C30: 2578.924189 | D30: 0.001552
A31: Національний банк України | B31: 103.9964099 | C31: 2578.924189 | D31: 0.001552
A32: Гарантований державою борг | B32: =B$33+B$41+B$45 -> 818.145244 | C32: 20288.53266 | D32: 0.012213
A33: 1. Заборгованість за випущеними цінними паперами на внутрішньому ринку | B33: =SUM(B$34:B$40) -> 653.2735838 | C33: 16200.0116 | D33: 0.009751
A34: Державні цінні папери | B34: 0.00046778 | C34: 0.0116 | D34: 0
A35: Облігації ДІУ (10 - річні) | B35: 40.32550099 | C35: 1000 | D35: 0.000602
A36: Облігації ДІУ (5 - річні) | B36: 120.976503 | C36: 3000 | D36: 0.001806
A37: Облігації ДІУ (7 - річні) | B37: 120.976503 | C37: 3000 | D37: 0.001806
A38: Облігації НАК "Нафтогаз України" (3 - річні) | B38: 193.5624048 | C38: 4800 | D38: 0.002889
A39: Облігації Укравтодору (3 - річні) | B39: 10.08137525 | C39: 250 | D39: 0.00015
A40: Облігації Укравтодору (5 - річні) | B40: 167.3508291 | C40: 4150 | D40: 0.002498
A41: 2. Заборгованість перед банківськими та іншими фінансовими установами | B41: =SUM(B$42:B$44) -> 164.8331634 | C41: 4087.566413 | D41: 0.002461
A42: ВАТ "Державний експортно-імпортний банк України" | B42: 21.17088802 | C42: 525 | D42: 0.000316
A43: ВАТ "Державний ощадний банк України" | B43: 138.7827247 | C43: 3441.562318 | D43: 0.002072
A44: ПАТ АБ "Укргазбанк" | B44: 4.87955072 | C44: 121.0040945 | D44: 7.3e-05
A45: 3. Заборгованість, не віднесена до інших категорій | B45: =SUM(B$46:B$46) -> 0.03849674 | C45: 0.95465 | D45: 1e-06
A46: Інші кредитори | B46: 0.03849674 | C46: 0.95465 | D46: 1e-06
A47: Зовнішній борг | B47: =B$48+B$70 -> 44196.60131 | C47: 1095996.335 | D47: 0.659697
A48: Державний борг | B48: =B$49+B$56+B$62+B$64+B$68 -> 35578.58341 | C48: 882284.9694 | D48: 0.531062
A49: 1. Заборгованість за позиками, одержаними від міжнародних фінансових організацій | B49: =SUM(B$50:B$55) -> 14058.27977 | C49: 348620.0896 | D49: 0.20984
A50: Європейське Співтовариство | B50: 2450.889979 | C50: 60777.66968 | D50: 0.036583
A51: Європейський банк реконструкції та розвитку | B51: 602.9812771 | C51: 14952.85272 | D51: 0.009
A52: Європейський Інвестиційний Банк | B52: 536.5929654 | C52: 13306.54182 | D52: 0.008009
A53: Міжнародний банк реконструкції та розвитку | B53: 5095.631994 | C53: 126362.5217 | D53: 0.07606
A54: Міжнародний Валютний Фонд | B54: 5371.329039 | C54: 133199.3133 | D54: 0.080175
A55: Фонд чистих технологій (МБРР) | B55: 0.8545125 | C55: 21.1903753 | D55: 1.3e-05
A56: 2. Заборгованість за позиками, одержаними від органів управління іноземних держав | B56: =SUM(B$57:B$61) -> 1765.84553 | C56: 43789.7977 | D56: 0.026359
A57: Канада | B57: 303.9397047 | C57: 7537.1588 | D57: 0.004537
A58: Німеччина | B58: 229.562998 | C58: 5692.750056 | D58: 0.003427
A59: Росія | B59: 605.85586 | C59: 15024.13721 | D59: 0.009043
A60: США | B60: 9.02199743 | C60: 223.7293328 | D60: 0.000135
A61: Японія | B61: 617.4649704 | C61: 15312.0223 | D61: 0.009217
A62: 3. Заборгованість за позиками, одержаними від іноземних комерційних банків, інших іноземних фінансових установ | B62: =SUM(B$63:B$63) -> 0.05670228 | C62: 1.40611476 | D62: 1e-06
A63: Chase Manhattan Bank Luxembourg S.A. | B63: 0.05670228 | C63: 1.40611476 | D63: 1e-06
A64: 4. Заборгованість за випущеними цінними паперами на зовнішньому ринку | B64: =SUM(B$65:B$67) -> 18043.33 | C64: 447442.1782 | D64: 0.269322
A65: ОЗДП 2013 року | B65: 3000 | C65: 74394.612 | D65: 0.044779
A66: ОЗДП 2014 року | B66: 1000 | C66: 24798.204 | D66: 0.014926
A67: ОЗДП 2015 року | B67: 14043.33 | C67: 348249.3622 | D67: 0.209617
A68: 5. Заборгованість, не віднесена до інших категорій | B68: =SUM(B$69:B$69) -> 1711.071408 | C68: 42431.49784 | D68: 0.02554
A69: Міжнародний Валютний Фонд | B69: 1711.071408 | C69: 42431.49784 | D69: 0.02554
A70: Гарантований державою борг | B70: =B$71+B$77+B$79+B$86+B$87 -> 8618.017899 | C70: 213711.3659 | D70: 0.128635
A71: 1. Заборгованість за позиками, одержаними від міжнародних фінансових організацій | B71: =SUM(B$72:B$76) -> 6049.388589 | C71: 150013.9723 | D71: 0.090296
A72: Європейське співтоватиство з атомної енергії | B72: 15.86552493 | C72: 393.4365237 | D72: 0.000237
A73: Європейський банк реконструкції та розвитку | B73: 232.7814789 | C73: 5772.562601 | D73: 0.003475
A74: Європейський Інвестиційний Банк | B74: 11.0899999 | C74: 275.01208 | D74: 0.000166
A75: Міжнародний банк реконструкції та розвитку | B75: 430.876905 | C75: 10684.97339 | D75: 0.006431
A76: Міжнародний Валютний Фонд | B76: 5358.77468 | C76: 132887.9877 | D76: 0.079987
A77: 2. Заборгованість за позиками, одержаними від органів управління іноземних держав | B77: =SUM(B$78:B$78) -> 146.21678 | C77: 3625.913538 | D77: 0.002182
A78: Канада | B78: 146.21678 | C78: 3625.913538 | D78: 0.002182
A79: 3. Заборгованість за позиками, одержаними від іноземних комерційних банків, інших іноземних фінансових установ | B79: =SUM(B$80:B$85) -> 2308.930865 | C79: 57257.33862 | D79: 0.034463
A80: Deutsche Bank AG London | B80: 15.01431976 | C80: 372.3281643 | D80: 0.000224
A81: UniCredit Bank Austria AG | B81: 42.41924938 | C81: 1051.9212 | D81: 0.000633
A82: ВАТ "Газпромбанк" | B82: 500 | C82: 12399.102 | D82: 0.007463
A83: Державний банк розвитку КНР | B83: 65.62 | C83: 1627.258146 | D83: 0.000979
A84: Експортно-імпортний банк Китаю | B84: 1539.092921 | C84: 38166.74024 | D84: 0.022973
A85: Експортно-імпортний банк Кореї | B85: 146.784375 | C85: 3639.988875 | D85: 0.002191
A86: 4. Заборгованість за випущеними цінними паперами на зовнішньому ринку
A87: 5. Заборгованість, не віднесена до інших категорій | B87: =SUM(B$88:B$88) -> 113.4816654 | C87: 2814.141488 | D87: 0.001694
A88: Міжнародний Валютний Фонд | B88: 113.4816654 | C88: 2814.141488 | D88: 0.001694

Sheet DATA
A1: STOP
A3: Дата отчета | B3: 2016-07-31 | C3: =DREPORTDATE -> 2016-07-31
A4: Единицы измерения | B4: 1000000 | C4: =IF($B$4=1,"дол. США",IF($B$4=1000,"тис. дол. США",IF($B$4=1000000,"млн. дол. США",IF($B$4=1000000000,"млрд. дол. США")))) -> млн. дол. США | D4: =IF($B$4=1,"грн",IF($B$4=1000,"тис. грн",IF($B$4=1000000,"млн. грн",IF($B$4=1000000000,"млрд. грн")))) -> млн. грн | E4: =IF($B$4=1,"одиниць",IF($B$4=1000,"тис. одиниць",IF($B$4=1000000,"млн. одиниць",IF($B$4=1000000000,"млрд. одиниць")))) -> млн. одиниць | F4: =1000000000/DDELIMER -> 1000 | G4: =IF($B$4=1,1000000000,IF($B$4=1000,1000000,IF($B$4=1000000,1000,IF($B$4=1000000000,1)))) -> 1000
A5: Сессия | B5: f44915a5-a526-43de-b1bc-dc00f01f404c
A8: SHORT
A12: 1000000000

Sheet AVGRATE_DETAIL (hidden)
